Workbook

Sheet Menu
H15: =+'Recap Saison'!AO55 -> 61460114 | L15: =SUM(L21:L37) -> 0
H19: gp | I19: Liste | J19: Q | K19: R | L19: Points
H21: 1 | I21: Adelaide | J21: =+'Recap Saison'!K5 -> 41 | K21: =+'Recap Saison'!L5 -> 41 | L21: =IF(K21=1,10,IF(K21=2,8,IF(K21=3,6,IF(K21=4,5,IF(K21=5,4,IF(K21=6,3,IF(K21=7,2,IF(K21=8,1,0)))))))) -> 0
H22: 2 | I22: Irungattukottai | J22: =+'Recap Saison'!K6 -> 41 | K22: =+'Recap Saison'!L6 -> 41 | L22: =IF(K22=1,10,IF(K22=2,8,IF(K22=3,6,IF(K22=4,5,IF(K22=5,4,IF(K22=6,3,IF(K22=7,2,IF(K22=8,1,0)))))))) -> 0
H23: 3 | I23: Singapore | J23: =+'Recap Saison'!K7 -> 41 | K23: =+'Recap Saison'!L7 -> 41 | L23: 0
H24: 4 | I24: Grobnik | J24: =+'Recap Saison'!K8 -> 41 | K24: =+'Recap Saison'!L8 -> 41 | L24: 0
H25: 5 | I25: Bucharest Ring | J25: =+'Recap Saison'!K9 -> 41 | K25: =+'Recap Saison'!L9 -> 41 | L25: 0
H26: 6 | I26: Jyllands-Ringen | J26: =+'Recap Saison'!K10 -> 41 | K26: =+'Recap Saison'!L10 -> 41 | L26: 0
H27: 7 | I27: Zandvoort | J27: =+'Recap Saison'!K11 -> 41 | K27: =+'Recap Saison'!L11 -> 41 | L27: 0
H28: 8 | I28: Valencia | J28: =+'Recap Saison'!K12 -> 41 | K28: =+'Recap Saison'!L12 -> 41 | L28: 0
H29: 9 | I29: Portimao | J29: =+'Recap Saison'!K13 -> 41 | K29: =+'Recap Saison'!L13 -> 41 | L29: 0
H30: 10 | I30: Indianapolis Oval | J30: =+'Recap Saison'!K14 -> 41 | K30: =+'Recap Saison'!L14 -> 41 | L30: 0
H31: 11 | I31: Mexico City | J31: =+'Recap Saison'!K15 -> 41 | K31: =+'Recap Saison'!L15 -> 41 | L31: 0
H32: 12 | I32: Brasilia | J32: =+'Recap Saison'!K16 -> 41 | K32: =+'Recap Saison'!L16 -> 41 | L32: 0
H33: 13 | I33: Sakhir | J33: =+'Recap Saison'!K17 -> 41 | K33: =+'Recap Saison'!L17 -> 41 | L33: 0
H34: 14 | I34: Fuji | J34: =+'Recap Saison'!K18 -> 41 | K34: =+'Recap Saison'!L18 -> 41 | L34: 0
H35: 15 | I35: Yeongam | J35: =+'Recap Saison'!K19 -> 41 | K35: =+'Recap Saison'!L19 -> 41 | L35: 0
H36: 16 | I36: Fiorano | J36: =+'Recap Saison'!K20 -> 41 | K36: =+'Recap Saison'!L20 -> 41 | L36: 0
H37: 17 | I37: Brands Hatch | J37: =+'Recap Saison'!K21 -> 41 | K37: =+'Recap Saison'!L21 -> 41 | L37: 0
B41: Commentaires du Pilote
B42: Pieces | D42: Divers Reglages - Info Pilotes | K42: + / - | L42: HR | M42: AJUST
B43: Ailerons | D43: Je manque un peu d'adhérence dans les courbes | K43: 0.5 | L43: =IMPORTS!F38 -> 86.2 | M43: =K43*$L$43 -> 43.1
B44: Ailerons | D44: La voiture est très instable dans de nombreux virages | K44: 1 | M44: =K44*$L$43 -> 86.2
B45: Ailerons | D45: La voiture manque un peu de vitesse dans les lignes droites | K45: -2 | M45: =K45*$L$43 -> -172.4
B46: Ailerons | D46: La voiture pourrait avoir un peu plus de vitesse dans les lignes droites | K46: -0.5 | M46: =K46*$L$43 -> -43.1
B47: Moteur | D47: Essayez de favoriser un peu plus les bas régimes | K47: -0.5 | L47: =IMPORTS!F39 -> 86.2 | M47: =K47*$L$47 -> -43.1
B48: Moteur | D48: Les tours du moteur sont trop élevés | K48: -1 | M48: =K48*$L$47 -> -86.2
B49: Moteur | D49: La puissance du moteur dans les lignes droites n'est pas suffisante | K49: 2 | M49: =K49*$L$47 -> 172.4
B50: Moteur | D50: Je pense que je n'ai pas assez de puissance du moteur dans les lignes droites | K50: 1 | M50: =K50*$L$47 -> 86.2
B51: Freins | D51: Mettez l'équilibre un peu plus à l'arrière | K51: -0.5 | L51: =IMPORTS!F40 -> 86.2 | M51: =K51*$L$51 -> -43.1
B52: Freins | D52: Je pense que l'efficacité des freins pourrait être plus élevé si l'on déplace l'équilibre à l'arrière | K52: -1.5 | M52: =K52*$L$51 -> -129.3
B53: Freins | D53: Je voudrais avoir l'équilibre un peu plus à l'avant | K53: 0.5 | M53: =K53*$L$51 -> 43.1
B54: Freins | D54: Je pense que l'efficacité des freins pourrait être plus élevé si l'on déplace l'équilibre à l'avant | K54: 1.5 | M54: =K54*$L$51 -> 129.3
B55: Boite de vitesse | D55: Je suis très souvent dans le rouge. Mettez le rapport de boite un peu plus élevé | K55: 0.5 | L55: =IMPORTS!F41 -> 86.2 | M55: =K55*$L$55 -> 43.1
B56: Boite de vitesse | D56: Le rapport de boite est trop élevé | K56: -1 | M56: =K56*$L$55 -> -86.2
B57: Boite de vitesse | D57: Je ne peux pas profiter de la puissance du moteur. Raccourcissez les rapports de boite | K57: -0.5 | M57: =K57*$L$55 -> -43.1
B58: Boite de vitesse | D58: On dirait que le moteur va exploser. Mettez un espace beaucoup plus élevé entre les vitesses | K58: 1.5 | M58: =K58*$L$55 -> 129.3
B59: Suspension | D59: Je pense qu'avec une suspension un peu plus rigide, je serai plus rapide | K59: 1 | L59: =IMPORTS!F42 -> 86.2 | M59: =K59*$L$59 -> 86.2
B60: Suspension | D60: La voiture est trop rigide. Baissez un peu la rigidité | K60: -0.5 | M60: =K60*$L$59 -> -43.1
B61: Suspension | D61: La rigidité de suspension est trop élevé | K61: -1 | M61: =K61*$L$59 -> -86.2
B62: Suspension | D62: La rigidité de suspension est trop faible | K62: 1.5 | M62: =K62*$L$59 -> 129.3

Sheet IMPORTS (hidden)
A3: Compétences du pilote | E3: Personnel et installations | H3: Compétences du DT | K3: Caractéristiques actuelles de la voiture
A4: 0.75 | E4: Niveau global: | F4: 19 | H4: Niveau global: | I4: 0 | K4: Puissance | L4: Maniabilité | M4: Accélération
A5: Niveau global: | B5: 147 | K5: 96 | L5: 98 | M5: 94
E6: Compétences du personnel | H6: Leadership: | I6: 0 | K6: Historique des caractéristiques de la voiture
A7: Concentration: | B7: 205 | E7: Expérience: | F7: 15
H8: R&D en mécanique: | I8: 0 | K8: Pièces | L8: Niveau | M8: Action | N8: Usure | P8: Nouveau niveau | Q8: Nouvelle usure
A9: Talent: | B9: 210 | E9: Motivation: | F9: 9 | K9: Châssis: | L9: 7 | N9: 0.71 | P9: 7 | Q9: 0.71 | R9: =+'Tyre&Fuel'!T25/100 -> 0.9272569677 | S9: =+'Setup&WS'!D26 -> NON OK
H10: R&D en électronique: | I10: 0 | K10: Moteur: | L10: 7 | N10: 0 | P10: 7 | Q10: 0 | R10: =+'Tyre&Fuel'!T26/100 -> 0.1279246552 | S10: =+'Setup&WS'!D27 -> NON OK
A11: Agressivité: | B11: 0 | E11: Compétence technique: | F11: 19 | K11: Aileron avant: | L11: 7 | N11: 0.31 | P11: 7 | Q11: 0.31 | R11: =+'Tyre&Fuel'!T27/100 -> 0.5397618779 | S11: =+'Setup&WS'!D28 -> NON OK
H12: R&D en aérodynamique: | I12: 0 | K12: Aileron arrière: | L12: 7 | N12: 0.34 | P12: 7 | Q12: 0.34 | R12: =+'Tyre&Fuel'!T28/100 -> 0.6105036821 | S12: =+'Setup&WS'!D29 -> NON OK
A13: Expérience: | B13: 131 | E13: Gestion du stress: | F13: 19 | K13: Fond plat: | L13: 7 | N13: 0 | P13: 7 | Q13: 0 | R13: =+'Tyre&Fuel'!T29/100 -> 0.2452460685 | S13: =+'Setup&WS'!D30 -> NON OK
H14: Expérience: | I14: 0 | K14: Pontons latéraux: | L14: 7 | N14: 0.28 | P14: 7 | Q14: 0.28 | R14: =+'Tyre&Fuel'!T30/100 -> 0.4280708147 | S14: =+'Setup&WS'!D31 -> NON OK
A15: Connaissances tech.: | B15: 119 | E15: Concentration: | F15: 19 | K15: Refroidissement: | L15: 7 | N15: 0.2 | P15: 7 | Q15: 0.2 | R15: =+'Tyre&Fuel'!T31/100 -> 0.3728558925 | S15: =+'Setup&WS'!D32 -> NON OK
H16: Coordination arrêts aux stands: | I16: 0 | K16: Boîte de vitesse: | L16: 6 | N16: 0.33 | P16: 6 | Q16: 0.33 | R16: =+'Tyre&Fuel'!T32/100 -> 0.4944698603 | S16: =+'Setup&WS'!D33 -> NON OK
A17: Endurance: | B17: 96 | E17: Efficacité: | F17: 19 | K17: Freins: | L17: 7 | N17: 0 | P17: 7 | Q17: 0 | R17: =+'Tyre&Fuel'!T33/100 -> 0.1364821629 | S17: =+'Setup&WS'!D34 -> NON OK
H18: Motivation: | I18: 0 | K18: Suspension: | L18: 7 | N18: 0.4 | P18: 7 | Q18: 0.4 | R18: =+'Tyre&Fuel'!T34/100 -> 0.4860360873 | S18: =+'Setup&WS'!D35 -> NON OK
A19: Charisme: | B19: 63 | E19: Niveau de l'installation | K19: Électronique: | L19: 7 | N19: 0 | P19: 7 | Q19: 0 | R19: =+'Tyre&Fuel'!T35/100 -> 0.1236314948 | S19: =+'Setup&WS'!D36 -> NON OK
E20: Soufflerie: | F20: 20
A21: Motivation: | B21: 244
E22: Centre d'entraînement aux arrêts aux stands: | F22: 29 | H22: Age: | I22: 0
A23: Réputation: | B23: 0
E24: Atelier de R&D: | F24: 19 | M24: Cout des entrainements Pilote | Q24: -750000
A25: Poids (kg): | B25: 56 | M25: Cout des entrainements Staff | Q25: 0
E26: Centre de design R&D: | F26: 19 | M26: Cout des contrats pilote et Staff | Q26: 0
A27: Âge: | B27: 25 | M27: Cout des Testings | Q27: 0
E28: Atelier d'ingénierie: | F28: 19 | M28: Cout des Ameliorations Installations | Q28: 0
M29: Couts des Réparations | Q29: -19697269
E30: Laboratoire de chimie et alliages: | F30: 19
E32: Commerce: | F32: 29
E36: Happy Range
E37: Pilote | F37: =135 - (0.1*B13) - (0.3 *B15) -> 86.2
E38: Aileron | F38: =F37-(0.390817*I12)-(0.0425979*I14) -> 86.2
E39: Moteur | F39: =F37-(0.148625*I8)-(0.218959*I10)-(0.042665*I14) -> 86.2
E40: Freins | F40: =F37-(0.24292*I8)-(0.009791*I12)-(0.06499*I14)-(0.08916*I10) -> 86.2
E41: Boite de Vitesse | F41: =F37-(0.291894*I10)-(0.062533*I14)-(0.065017*I8) -> 86.2
E42: Suspension | F42: =F37-(0.259221*I8)-(0.073354*I14)-(0.092522*I12) -> 86.2

Sheet Setup&WS (hidden)
A7: Driver | E7: Tech director | J7: Perfect Setups | Q7: Setup Factor Calculations
A8: OA | C8: =Tables!D43 -> 147.1232 | E8: R&D mechanics | H8: =IMPORTS!I8 -> 0 | J8: =+'Tyre&Fuel'!C11 -> Hard | K8: Low | L8: Setup | M8: High
A9: Concentration | C9: =IMPORTS!B7 -> 205 | E9: R&D electronics | H9: =IMPORTS!I10 -> 0 | J9: Front Wings | K9: =ROUND($Z$11,0)-IF($H$11=0,$R19/2,$S19/2)+U20 -> 600.5334062 | L9: =ROUND(Z11+U20,0) -> 644 | M9: =ROUND($Z$11,0)+IF($H$11=0,$R19/2,$S19/2)+U20 -> 688.5334062 | N9: Q1 | O9: =IF(AC9>1,P9+(999-P9),P9-(999-P9)) -> 422 | P9: =+AVERAGE(L9:L10) -> 710.5 | R9: Track Base | S9: Weather | V9: Driver | Y9: Car | Z9: Setups | AC9: =+U20 -> -66.46659378
A10: Talent | C10: =IMPORTS!B9 -> 210 | E10: R&D aerodynamics | H10: =IMPORTS!I12 -> 0 | J10: Rear Wings | K10: =ROUND($Z$11,0)-IF($H$11=0,$R19/2,$S19/2)-U20 -> 733.4665938 | L10: =ROUND(Z11-U20,0) -> 777 | M10: =ROUND($Z$11,0)+IF($H$11=0,$R19/2,$S19/2)-U20 -> 821.4665938 | O10: =IF(AC10<1,P10-(999-P10),P10+(999-P10)) -> 999 | S10: Q1 | T10: Q2 | U10: Race | V10: Q1 | W10: Q2 | X10: Race | Z10: Q1 | AA10: Q2 | AB10: Race | AC10: =-U20 -> 66.46659378
A11: Aggressiveness | C11: =IMPORTS!B11 -> 0 | E11: Experience | H11: =IMPORTS!I14 -> 0 | J11: Engine | K11: =L11-IF($H$11=0,$R20/2,$S20/2) -> 590 | L11: =ROUND(Z12,0) -> 633 | M11: =L11+IF($H$11=0,$R20/2,$S20/2) -> 676 | Q11: Wings | R11: =VLOOKUP($F$18,Tracks!$A$3:$W$889,19,0)*2 -> 1263.8 | S11: =IF($H$20="Dry",Tables!D4*$F$20,Tables!B4*$F$20+Tables!C4)*2 -> 480 | T11: =IF($H$21="Dry",Tables!D4*$F$21,Tables!B4*$F$21+Tables!C4)*2 -> 420 | U11: =IF($H$22="Dry",Tables!D4*$F$22,Tables!B4*$F$22+Tables!C4)*2 -> 388 | V11: =($C$10*FLOOR(($R$11+S11),1)*(-0.001349079032746))*IF($F$18<>"Indianapolis Oval",1,0.39) -> -493.8033984 | W11: =($C$10*FLOOR(($R$11+T11),1)*(-0.001349079032746))*IF($F$18<>"Indianapolis Oval",1,0.39) -> -476.8050025 | X11: =($C$10*FLOOR(($R$11+U11),1)*(-0.001349079032746))*IF($F$18<>"Indianapolis Oval",1,0.39) -> -467.7391914 | Y11: =Tables!M13+Tables!M19 -> 171.77 | Z11: =(R11+S11+V11+Y11)/2 -> 710.8833008 | AA11: =(R11+T11+W11+Y11)/2 -> 689.3824987 | AB11: =(R11+U11+X11+Y11)/2 -> 677.9154043
A12: Experience | C12: =IMPORTS!B13 -> 131 | E12: Pit coordination | H12: =IMPORTS!I16 -> 0 | J12: Brake | K12: =L12-IF($H$11=0,$R21/2,$S21/2) -> 322 | L12: =ROUND(Z13,0) -> 365 | M12: =L12+IF($H$11=0,$R21/2,$S21/2) -> 408 | Q12: Engine | R12: =VLOOKUP($F$18,Tracks!$A$3:$W$889,20,0) -> 496.9 | S12: =IF($H$20="Dry",Tables!D5*$F$20,Tables!B5*$F$20+Tables!C5) -> -120 | T12: =IF($H$21="Dry",Tables!D5*$F$21,Tables!B5*$F$21+Tables!C5) -> -105 | U12: =IF($H$22="Dry",Tables!D5*$F$22,Tables!B5*$F$22+Tables!C5) -> -97 | V12: =Tables!$G$28+($C$12*(($R$12+S12)*0.001655723+0.0469416263186552))*IF($F$18<>"Indianapolis Oval",1,0.39) -> 87.89885488 | W12: =(Tables!$G$28+$C$12*(($R$12+T12)*0.001655723+0.0469416263186552))*IF($F$18<>"Indianapolis Oval",1,0.39) -> 91.15235057 | X12: =(Tables!$G$28+$C$12*(($R$12+U12)*0.001655723+0.0469416263186552))*IF($F$18<>"Indianapolis Oval",1,0.39) -> 92.88754828 | Y12: =Tables!M14+Tables!M20 -> 168.16 | Z12: =R12+S12+V12+Y12 -> 632.9588549 | AA12: =R12+T12+W12+Y12 -> 651.2123506 | AB12: =R12+U12+X12+Y12 -> 660.9475483
A13: Technical insight | C13: =IMPORTS!B15 -> 119 | E13: Staff | J13: Gears | K13: =L13-IF($H$11=0,$R22/2,$S22/2) -> 302 | L13: =ROUND(Z14,0) -> 345 | M13: =L13+IF($H$11=0,$R22/2,$S22/2) -> 388 | Q13: Brake | R13: =VLOOKUP($F$18,Tracks!$A$3:$W$889,21,0) -> 358.33 | S13: =IF($H$20="Dry",Tables!D6*$F$20,Tables!B6*$F$20+Tables!C6) -> 240 | T13: =IF($H$21="Dry",Tables!D6*$F$21,Tables!B6*$F$21+Tables!C6) -> 210 | U13: =IF($H$22="Dry",Tables!D6*$F$22,Tables!B6*$F$22+Tables!C6) -> 194 | V13: =Tables!G29 -> -104.58 | W13: =Tables!G29 -> -104.58 | X13: =Tables!G29 -> -104.58 | Y13: =Tables!M15+Tables!M21 -> -128.87 | Z13: =R13+S13+V13+Y13 -> 364.88 | AA13: =R13+T13+W13+Y13 -> 334.88 | AB13: =R13+U13+X13+Y13 -> 318.88
A14: Stamina | C14: =IMPORTS!B17 -> 96 | E14: Stress handling | H14: =IMPORTS!F13 -> 19 | J14: Suspension | K14: =L14-IF($H$11=0,$R23/2,$S23/2) -> 649 | L14: =ROUND(Z15,0) -> 692 | M14: =L14+IF($H$11=0,$R23/2,$S23/2) -> 735 | Q14: Gears | R14: =VLOOKUP($F$18,Tracks!$A$3:$W$889,22,0) -> 549.99 | S14: =IF($H$20="Dry",Tables!D7*$F$20,Tables!B7*$F$20+Tables!C7) -> -160 | T14: =IF($H$21="Dry",Tables!D7*$F$21,Tables!B7*$F$21+Tables!C7) -> -140 | U14: =IF($H$22="Dry",Tables!D7*$F$22,Tables!B7*$F$22+Tables!C7) -> -129.3333333 | V14: =Tables!G30 -> 102.5 | W14: =Tables!G30 -> 102.5 | X14: =Tables!G30 -> 102.5 | Y14: =Tables!M16+Tables!M22 -> -147.03 | Z14: =R14+S14+V14+Y14 -> 345.46 | AA14: =R14+T14+W14+Y14 -> 365.46 | AB14: =R14+U14+X14+Y14 -> 376.1266667
A15: Charisma | C15: =IMPORTS!B19 -> 63 | E15: Concentration | H15: =IMPORTS!F15 -> 19 | Q15: Suspension | R15: =VLOOKUP($F$18,Tracks!$A$3:$W$889,23,0) -> 652.05 | S15: =IF($H$20="Dry",Tables!D8*$F$20,Tables!B8*$F$20+Tables!C8) -> -240 | T15: =IF($H$21="Dry",Tables!D8*$F$21,Tables!B8*$F$21+Tables!C8) -> -210 | U15: =IF($H$22="Dry",Tables!D8*$F$22,Tables!B8*$F$22+Tables!C8) -> -194 | V15: =Tables!G31 -> 210.25 | W15: =Tables!G31 -> 210.25 | X15: =Tables!G31 -> 210.25 | Y15: =Tables!M17+Tables!M23 -> 70.06 | Z15: =R15+S15+V15+Y15 -> 692.36 | AA15: =R15+T15+W15+Y15 -> 722.36 | AB15: =R15+U15+X15+Y15 -> 738.36
A16: Motivation | C16: =IMPORTS!B21 -> 244 | J16: Front Wings | K16: =ROUND($AA$11,0)-IF($H$11=0,$R19/2,$S19/2)+V20 -> 580.73619 | L16: =ROUND(AA11+V20,0) -> 625 | M16: =ROUND($AA$11,0)+IF($H$11=0,$R19/2,$S19/2)+V20 -> 668.73619 | N16: Q2 | O16: =IF(AC16>1,P16+(999-P16),P16-(999-P16)) -> 380 | P16: =AVERAGE(L16:L17) -> 689.5 | AC16: =+V20 -> -64.26381
A17: Reputation | C17: =IMPORTS!B23 -> 0 | E17: Stint Details | I17: =+PMA!L15 -> 24.55558963 | J17: Rear Wings | K17: =ROUND($AA$11,0)-IF($H$11=0,$R19/2,$S19/2)-V20 -> 709.26381 | L17: =ROUND(AA11-V20,0) -> 754 | M17: =ROUND($AA$11,0)+IF($H$11=0,$R19/2,$S19/2)-V20 -> 797.26381 | O17: =IF(AC17<1,P17-(999-P17),P17+(999-P17)) -> 999 | AC17: =-V20 -> 64.26381
A18: Weight(kg) | C18: =IMPORTS!B25 -> 56 | E18: Track | F18: Adelaide | I18: PMA | J18: Engine | K18: =L18-IF($H$11=0,$R20/2,$S20/2) -> 608 | L18: =ROUND(AA12,0) -> 651 | M18: =L18+IF($H$11=0,$R20/2,$S20/2) -> 694 | Q18: Happy Range | R18: Generic | S18: TD | U18: Wing Split
A19: Age | C19: =IMPORTS!B27 -> 25 | F19: Temp | G19: Hum | H19: Weather | I19: =PMA!H16 -> 82.51217185 | J19: Brake | K19: =L19-IF($H$11=0,$R21/2,$S21/2) -> 292 | L19: =ROUND(AA13,0) -> 335 | M19: =L19+IF($H$11=0,$R21/2,$S21/2) -> 378 | Q19: Wings | R19: =ROUND($C$12*-0.051+$C$13*-0.153+67.594,0)*2+2 -> 88 | S19: =MAX(2,ROUND($C$12*-0.051+$C$13*-0.153+69.592+$H$11*-0.031+$H$10*-0.203,0)*2) -> 90 | U19: Q1 | V19: Q2 | W19: Race
E20: Q1 | F20: 40 | G20: 10 | H20: Dry | I20: =PMA!I16 -> 92.82619333 | J20: Gears | K20: =L20-IF($H$11=0,$R22/2,$S22/2) -> 322 | L20: =ROUND(AA14,0) -> 365 | M20: =L20+IF($H$11=0,$R22/2,$S22/2) -> 408 | O20: Fuel | Q20: Engine | R20: =ROUND($C$12*-0.051+$C$13*-0.153+67.594,0)*2 -> 86 | S20: =MAX(2,ROUND($C$12*-0.051+$C$13*-0.153+69.592+$H$11*-0.031+$H$8*-0.076+$H$9*-0.123,0)*2) -> 90 | U20: =VLOOKUP($F$18,Tracks!$A$3:$Y$889,25,0)+$C$10*-0.246534498671854+3.69107049712848*($B$28+$B$29)/2+$Z$11*-0.189968386659174+$F$20*0.376337780506523+IF($H$20="Wet",58.8818967363256,0) -> -66.46659378 | V20: =VLOOKUP($F$18,Tracks!$A$3:$Y$889,25,0)+$C$10*-0.246534498671854+3.69107049712848*($B$28+$B$29)/2+$AA$11*-0.189968386659174+$F$21*0.376337780506523+IF($H$21="Wet",58.8818967363256,0) -> -64.26381 | W20: =VLOOKUP($F$18,Tracks!$A$3:$Y$889,25,0)+$C$10*-0.246534498671854+3.69107049712848*($B$28+$B$29)/2+$AB$11*-0.189968386659174+$F$22*0.376337780506523+IF($H$22="Wet",58.8818967363256,0) -> -63.08899198
A21: Car | D21: reel | E21: Q2 | F21: 35 | G21: 5 | H21: Dry | I21: =PMA!J16 -> 103.1402148 | J21: Suspension | K21: =L21-IF($H$11=0,$R23/2,$S23/2) -> 679 | L21: =ROUND(AA15,0) -> 722 | M21: =L21+IF($H$11=0,$R23/2,$S23/2) -> 765 | O21: =+'Tyre&Fuel'!H27 -> 94 | Q21: Brake | R21: =ROUND($C$12*-0.051+$C$13*-0.153+67.594,0)*2 -> 86 | S21: =MAX(2,ROUND($C$12*-0.051+$C$13*-0.153+69.592+$H$11*-0.031+$H$8*-0.12+$H$9*-0.075,0)*2) -> 90
A22: Power | C22: =IMPORTS!K5 -> 96 | D22: =PMA!H20 -> 93.58545 | E22: Race | F22: =AVERAGE(E25:F27) -> 32.33333333 | G22: =AVERAGE(G25:H28) -> 5.625 | H22: Dry | I22: 34° | Q22: Gears | R22: =ROUND($C$12*-0.051+$C$13*-0.153+67.594,0)*2 -> 86 | S22: =MAX(2,ROUND($C$12*-0.051+$C$13*-0.153+69.594+$H$11*-0.031+$H$8*-0.0418+$H$9*-0.157,0)*2) -> 90
A23: Handling | C23: =IMPORTS!L5 -> 98 | D23: =PMA!I20 -> 94.03071 | E23: Race Weather Details | J23: Front Wings | K23: =ROUND($AB$11,0)-IF($H$11=0,$R19/2,$S19/2)+W20 -> 570.911008 | L23: =ROUND(AB11+W20,0) -> 615 | M23: =ROUND($AB$11,0)+IF($H$11=0,$R19/2,$S19/2)+W20 -> 658.911008 | N23: RACE | O23: =IF(AC23>1,P23+(999-P23),P23-(999-P23)) -> 357 | P23: =AVERAGE(L23:L24) -> 678 | Q23: Suspension | R23: =ROUND($C$12*-0.051+$C$13*-0.153+67.594,0)*2 -> 86 | S23: =MAX(2,ROUND($C$12*-0.051+$C$13*-0.153+69.594+$H$11*-0.031+$H$8*-0.134+$H$10*-0.061,0)*2) -> 90 | AC23: =W20 -> -63.08899198
A24: Acceleration | C24: =IMPORTS!M5 -> 94 | D24: =PMA!J20 -> 90.86242 | E24: Temp | G24: Hum | J24: Rear Wings | K24: =ROUND($AB$11,0)-IF($H$11=0,$R19/2,$S19/2)-W20 -> 697.088992 | L24: =ROUND(AB11-W20,0) -> 741 | M24: =ROUND($AB$11,0)+IF($H$11=0,$R19/2,$S19/2)-W20 -> 785.088992 | O24: =IF(AC24<1,P24-(999-P24),P24+(999-P24)) -> 999 | AC24: =-W20 -> 63.08899198
B25: Level | C25: Wear | D25: contrôle | E25: 32 | F25: 37 | G25: 4 | H25: 12 | J25: Engine | K25: =L25-IF($H$11=0,$R20/2,$S20/2) -> 618 | L25: =ROUND(AB12,0) -> 661 | M25: =L25+IF($H$11=0,$R20/2,$S20/2) -> 704
A26: Chassis | B26: =+IMPORTS!P9 -> 7 | C26: =+IMPORTS!Q9*100 -> 71 | D26: =+'Tyre&Fuel'!U25 -> NON OK | E26: 29 | F26: 32 | G26: 2 | H26: 12 | J26: Brake | K26: =L26-IF($H$11=0,$R21/2,$S21/2) -> 276 | L26: =ROUND(AB13,0) -> 319 | M26: =L26+IF($H$11=0,$R21/2,$S21/2) -> 362
A27: Engine | B27: =+IMPORTS!P10 -> 7 | C27: =+IMPORTS!Q10*100 -> 0 | D27: =+'Tyre&Fuel'!U26 -> NON OK | E27: 30 | F27: 34 | G27: 0 | H27: 7 | J27: Gears | K27: =L27-IF($H$11=0,$R22/2,$S22/2) -> 333 | L27: =ROUND(AB14,0) -> 376 | M27: =L27+IF($H$11=0,$R22/2,$S22/2) -> 419
A28: Front wing | B28: =+IMPORTS!P11 -> 7 | C28: =+IMPORTS!Q11*100 -> 31 | D28: =+'Tyre&Fuel'!U27 -> NON OK | E28: 32 | F28: 36 | G28: 2 | H28: 6 | J28: Suspension | K28: =L28-IF($H$11=0,$R23/2,$S23/2) -> 695 | L28: =ROUND(AB15,0) -> 738 | M28: =L28+IF($H$11=0,$R23/2,$S23/2) -> 781
A29: Rear wing | B29: =+IMPORTS!P12 -> 7 | C29: =+IMPORTS!Q12*100 -> 34 | D29: =+'Tyre&Fuel'!U28 -> NON OK
A30: Underbody | B30: =+IMPORTS!P13 -> 7 | C30: =+IMPORTS!Q13*100 -> 0 | D30: =+'Tyre&Fuel'!U29 -> NON OK | E30: Determine track Base Values | J30: Marques | L30: Durabilité | M30: Montant
A31: Sidepods | B31: =+IMPORTS!P14 -> 7 | C31: =+IMPORTS!Q14*100 -> 28 | D31: =+'Tyre&Fuel'!U30 -> NON OK | E31: Balance | F31: =U20 -> -66.46659378 | G31: Q1 Setup | H31: Track Base | J31: Avonn | L31: 8 | M31: 1200000
A32: Cooling | B32: =+IMPORTS!P15 -> 7 | C32: =+IMPORTS!Q15*100 -> 20 | D32: =+'Tyre&Fuel'!U31 -> NON OK | E32: (FW+RW)/2 | G32: =AVERAGE(L9:L10) -> 710.5 | H32: =((2*G32-Y11-S11*(1-IF($F$18<>"Indianapolis Oval",1,0.39)*C10*0.001349079032746))/(1-IF($F$18<>"Indianapolis Oval",1,0.39)*C10*0.001349079032746))/2 -> 631.5233003 | J32: Badyear | L32: 7 | M32: 3400000
A33: Gearbox | B33: =+IMPORTS!P16 -> 6 | C33: =+IMPORTS!Q16*100 -> 33 | D33: =+'Tyre&Fuel'!U32 -> NON OK | E33: Engine | G33: =+L11 -> 633 | H33: =(G33-S12-Y12-IF($F$18<>"Indianapolis Oval",1,0.39)*C11*0.29521804804429-IF($F$18<>"Indianapolis Oval",1,0.39)*C12*S12*0.001655723-IF($F$18<>"Indianapolis Oval",1,0.39)*C12*0.0469416263186552)/(1+IF($F$18<>"Indianapolis Oval",1,0.39)*C12*0.001655723) -> 496.9338114 | J33: Bridgerock | L33: 7 | M33: 8400000
A34: Brakes | B34: =+IMPORTS!P17 -> 7 | C34: =+IMPORTS!Q17*100 -> 0 | D34: =+'Tyre&Fuel'!U33 -> NON OK | E34: Brake | G34: 900 | H34: =G34-S13-V13-Y13 -> 893.45 | J34: Contimental | L34: 8 | M34: 2400000
A35: Suspension | B35: =+IMPORTS!P18 -> 7 | C35: =+IMPORTS!Q18*100 -> 40 | D35: =+'Tyre&Fuel'!U34 -> NON OK | E35: Gears | G35: =+L13 -> 345 | H35: =G35-S14-V14-Y14 -> 549.53 | J35: Dunnolop | L35: 4 | M35: 2700000
A36: Electronics | B36: =+IMPORTS!P19 -> 7 | C36: =+IMPORTS!Q19*100 -> 0 | D36: =+'Tyre&Fuel'!U35 -> NON OK | E36: Suspension | G36: =+L14 -> 692 | H36: =G36-S15-V15-Y15 -> 651.69 | J36: Hancock | L36: 1 | M36: 5600000
J37: Michelini | L37: 5 | M37: 6000000
A38: Equilibre | B38: Chrono en secondes | J38: Pipirelli | L38: 1 | M38: 250000
A39: =U20*2 -> -132.9331876 | B39: 93.206 | J39: Yokomama | L39: 3 | M39: 1500000
A40: =+A39+30 -> -102.9331876 | B40: 93.205 | H40: Origine | I40: -30 | J40: 30 | K40: M | L40: Sec | M40: Centieme
A41: =+A39-30 -> -162.9331876 | B41: 93.207 | G41: Front Wings | H41: =ROUND(Z11+U20,0) -> 644 | I41: =+H41+15 -> 659 | J41: =+H41-15 -> 629 | K41: 1 | L41: 33 | M41: 206
A42: Meilleure valeur trouvée | G42: Rear Wings | H42: =ROUND(Z11-U20,0) -> 777 | I42: =+H42-15 -> 762 | J42: =+H42+15 -> 792 | K42: =(K41*60)+L41 -> 93 | M42: =M41 -> 206
A43: =IF(Calc!F3<Calc!F2,Calc!H400,LOOKUP(D63,A39:A41)) -> -42.33318756 | B43: =IF(Calc!F3<Calc!F2,Calc!J11,MIN(D59:E61)) -> 93.203

Sheet Recap Saison (hidden)
A2: reprise des Donnees des qualifs & Compte Rendu de course | I2: ='CR DE COURSE'!C18 -> 30 | K2: ='CR DE COURSE'!A35 -> 2 | L2: ='CR DE COURSE'!B35 -> 3 | N2: ='CR DE COURSE'!P36 -> 11.2 | O2: =+'CR DE COURSE'!P34 -> 9.71 | P2: ='CR DE COURSE'!B22 -> 146 | Q2: ='CR DE COURSE'!C22 -> 205 | R2: ='CR DE COURSE'!D22 -> 210 | S2: ='CR DE COURSE'!E22 -> 0 | T2: ='CR DE COURSE'!F22 -> 130 | U2: ='CR DE COURSE'!G22 -> 117 | V2: ='CR DE COURSE'!H22 -> 90 | W2: ='CR DE COURSE'!I22 -> 62 | X2: ='CR DE COURSE'!J22 -> 244 | Y2: =+'Setup&WS'!C19 -> 25 | Z2: ='CR DE COURSE'!AC39 -> 3 | AA2: ='CR DE COURSE'!T51 -> 1 | AB2: =+'Tyre&Fuel'!H29 -> 3 | AC2: ='CR DE COURSE'!S45 -> 119.680688 | AD2: ='CR DE COURSE'!S42 -> -31.4 | AE2: ='CR DE COURSE'!M50 -> FALSE | AF2: ='CR DE COURSE'!A27-'CR DE COURSE'!C27 -> 0.05 | AG2: ='CR DE COURSE'!A29-'CR DE COURSE'!C29 -> 0.04 | AH2: ='CR DE COURSE'!A31-'CR DE COURSE'!C31 -> 0.62 | AI2: ='CR DE COURSE'!A38 -> 90 | AJ2: ='CR DE COURSE'!B38 -> 95 | AK2: ='CR DE COURSE'!C38 -> 92
B3: Caracteristique du Circuit | I3: Risk | J3: Fumette | K3: Resultat | M3: Course | P3: Pilote | Z3: Nbre de Pit | AA3: Nbre de DM | AB3: Boost | AC3: Contrôle | AF3: Energy | AI3: Caisse | AL3: Gains | AN3: Couts | AP3: Balance
B4: Nbre | C4: Total | D4: Km / Tour | E4: GP | F4: Usure Fuel | G4: Usure Pneu | H4: Depassem° | K4: Q | L4: Race | M4: Meteo | N4: T° | O4: Taux Humide | P4: NG | Q4: Con | R4: Talent | S4: agres | T4: exp | U4: tech | V4: End | W4: Motiv | X4: Poids | Y4: Age | AC4: Pneus | AD4: Fuel | AE4: Piece | AF4: Q1 | AG4: Q2 | AH4: Race | AI4: P | AJ4: M | AK4: A
A5: 1 | B5: =LOOKUP(E5,Tracks!$A$3:$A$62,Tracks!$H$3:$H$62) -> 79 | C5: =LOOKUP(E5,Tracks!$A$3:$A$62,Tracks!$I$3:$I$62) -> 298.6 | D5: =C5/B5 -> 3.779746835 | E5: =+Menu!I21 -> Adelaide | F5: =LOOKUP(E5,Tracks!$A$3:$A$62,Tracks!$E$3:$E$62) -> Low | G5: =LOOKUP(E5,Tracks!$A$3:$A$62,Tracks!$F$3:$F$62) -> Medium | H5: =LOOKUP(E5,Tracks!$A$3:$A$62,Tracks!$C$3:$C$62) -> Hard | K5: 41 | L5: 41 | AL5: =I42 -> 0 | AN5: =I$47+SUM(I$33:I$40) -> 0 | AP5: =+AL5+AN5 -> 0
A6: 2 | B6: =LOOKUP(E6,Tracks!$A$3:$A$62,Tracks!$H$3:$H$62) -> 79 | C6: =LOOKUP(E6,Tracks!$A$3:$A$62,Tracks!$I$3:$I$62) -> 293.6 | D6: 3.716455696 | E6: =+Menu!I22 -> Irungattukottai | F6: =LOOKUP(E6,Tracks!$A$3:$A$62,Tracks!$E$3:$E$62) -> Medium | G6: =LOOKUP(E6,Tracks!$A$3:$A$62,Tracks!$F$3:$F$62) -> High | H6: =LOOKUP(E6,Tracks!$A$3:$A$62,Tracks!$C$3:$C$62) -> Easy | K6: 41 | L6: 41 | AL6: =K42 -> 0 | AN6: =K$47+SUM(K$33:K$40) -> 0 | AP6: 0
A7: 3 | B7: =LOOKUP(E7,Tracks!$A$3:$A$62,Tracks!$H$3:$H$62) -> 61 | C7: =LOOKUP(E7,Tracks!$A$3:$A$62,Tracks!$I$3:$I$62) -> 309.1 | D7: 5.067213115 | E7: =+Menu!I23 -> Singapore | F7: =LOOKUP(E7,Tracks!$A$3:$A$62,Tracks!$E$3:$E$62) -> Medium | G7: =LOOKUP(E7,Tracks!$A$3:$A$62,Tracks!$F$3:$F$62) -> High | H7: =LOOKUP(E7,Tracks!$A$3:$A$62,Tracks!$C$3:$C$62) -> Hard | K7: 41 | L7: 41 | AL7: =M42 -> 0 | AN7: =M$47+SUM(M$33:M$40) -> 0 | AP7: 0
A8: 4 | B8: =LOOKUP(E8,Tracks!$A$3:$A$62,Tracks!$H$3:$H$62) -> 74 | C8: =LOOKUP(E8,Tracks!$A$3:$A$62,Tracks!$M$3:$M$62) -> 0 | D8: 0 | E8: =+Menu!I24 -> Grobnik | F8: =LOOKUP(E8,Tracks!$A$3:$A$62,Tracks!$E$3:$E$62) -> Low | G8: =LOOKUP(E8,Tracks!$A$3:$A$62,Tracks!$F$3:$F$62) -> Medium | H8: =LOOKUP(E8,Tracks!$A$3:$A$62,Tracks!$C$3:$C$62) -> Hard | K8: 41 | L8: 41 | AL8: =O42 -> 0 | AN8: =O$47+SUM(O$33:O$40) -> 0 | AP8: 0
A9: 5 | B9: =LOOKUP(E9,Tracks!$A$3:$A$62,Tracks!$H$3:$H$62) -> 80 | C9: =LOOKUP(E9,Tracks!$A$3:$A$62,Tracks!$I$3:$I$62) -> 245.7 | D9: 3.07125 | E9: =+Menu!I25 -> Bucharest Ring | F9: =LOOKUP(E9,Tracks!$A$3:$A$62,Tracks!$E$3:$E$62) -> Very High | G9: =LOOKUP(E9,Tracks!$A$3:$A$62,Tracks!$F$3:$F$62) -> Low | H9: =LOOKUP(E9,Tracks!$A$3:$A$62,Tracks!$C$3:$C$62) -> Easy | K9: 41 | L9: 41 | AL9: =+Q42 -> 0 | AN9: =Q$47+SUM(Q$33:Q$40) -> 0 | AP9: 0
A10: 6 | B10: =LOOKUP(E10,Tracks!$A$3:$A$62,Tracks!$H$3:$H$62) -> 136 | C10: =LOOKUP(E10,Tracks!$A$3:$A$62,Tracks!$I$3:$I$62) -> 312.8 | D10: 2.3 | E10: =+Menu!I26 -> Jyllands-Ringen | F10: =LOOKUP(E10,Tracks!$A$3:$A$62,Tracks!$E$3:$E$62) -> Low | G10: =LOOKUP(E10,Tracks!$A$3:$A$62,Tracks!$F$3:$F$62) -> High | H10: =LOOKUP(E10,Tracks!$A$3:$A$62,Tracks!$C$3:$C$62) -> Normal | K10: 41 | L10: 41 | AL10: =+S42 -> 0 | AN10: =S$47+SUM(S$33:S$40) -> 0 | AP10: 0
A11: 7 | B11: =LOOKUP(E11,Tracks!$A$3:$A$62,Tracks!$H$3:$H$62) -> 71 | C11: =LOOKUP(E11,Tracks!$A$3:$A$62,Tracks!$I$3:$I$62) -> 301.8 | D11: 4.250704225 | E11: =+Menu!I27 -> Zandvoort | F11: =LOOKUP(E11,Tracks!$A$3:$A$62,Tracks!$E$3:$E$62) -> Low | G11: =LOOKUP(E11,Tracks!$A$3:$A$62,Tracks!$F$3:$F$62) -> Medium | H11: =LOOKUP(E11,Tracks!$A$3:$A$62,Tracks!$C$3:$C$62) -> Normal | K11: 41 | L11: 41 | AL11: =+U42 -> 0 | AN11: =U$47+SUM(U$33:U$40) -> 0 | AP11: 0
A12: 8 | B12: =LOOKUP(E12,Tracks!$A$3:$A$62,Tracks!$H$3:$H$62) -> 57 | C12: =LOOKUP(E12,Tracks!$A$3:$A$62,Tracks!$I$3:$I$62) -> 310.1 | D12: 5.440350877 | E12: =+Menu!I28 -> Valencia | F12: =LOOKUP(E12,Tracks!$A$3:$A$62,Tracks!$E$3:$E$62) -> Medium | G12: =LOOKUP(E12,Tracks!$A$3:$A$62,Tracks!$F$3:$F$62) -> Medium | H12: =LOOKUP(E12,Tracks!$A$3:$A$62,Tracks!$C$3:$C$62) -> Hard | K12: 41 | L12: 41 | AL12: =+W42 -> 0 | AN12: =W$47+SUM(W$33:W$40) -> 0 | AP12: 0
A13: 9 | B13: =LOOKUP(E13,Tracks!$A$3:$A$62,Tracks!$H$3:$H$62) -> 66 | C13: =LOOKUP(E13,Tracks!$A$3:$A$62,Tracks!$I$3:$I$62) -> 309.7 | D13: 4.692424242 | E13: =+Menu!I29 -> Portimao | F13: =LOOKUP(E13,Tracks!$A$3:$A$62,Tracks!$E$3:$E$62) -> Medium | G13: =LOOKUP(E13,Tracks!$A$3:$A$62,Tracks!$F$3:$F$62) -> High | H13: =LOOKUP(E13,Tracks!$A$3:$A$62,Tracks!$C$3:$C$62) -> Easy | K13: 41 | L13: 41 | AL13: =+Y42 -> 0 | AN13: =Y$47+SUM(Y$33:Y$40) -> 0 | AP13: 0
A14: 10 | B14: =LOOKUP(E14,Tracks!$A$3:$A$62,Tracks!$H$3:$H$62) -> 200 | C14: =LOOKUP(E14,Tracks!$A$3:$A$62,Tracks!$I$3:$I$62) -> 804.4 | D14: 4.022 | E14: =+Menu!I30 -> Indianapolis Oval | F14: =LOOKUP(E14,Tracks!$A$3:$A$62,Tracks!$E$3:$E$62) -> Very High | G14: =LOOKUP(E14,Tracks!$A$3:$A$62,Tracks!$F$3:$F$62) -> Low | H14: =LOOKUP(E14,Tracks!$A$3:$A$62,Tracks!$C$3:$C$62) -> Very Easy | K14: 41 | L14: 41 | AL14: =+AA42 -> 0 | AN14: =AA$47+SUM(AA$33:AA$40) -> 0 | AP14: 0
A15: 11 | B15: =LOOKUP(E15,Tracks!$A$3:$A$62,Tracks!$H$3:$H$62) -> 69 | C15: =LOOKUP(E15,Tracks!$A$3:$A$62,Tracks!$I$3:$I$62) -> 305 | D15: 4.420289855 | E15: =+Menu!I31 -> Mexico City | F15: =LOOKUP(E15,Tracks!$A$3:$A$62,Tracks!$E$3:$E$62) -> Low | G15: =LOOKUP(E15,Tracks!$A$3:$A$62,Tracks!$F$3:$F$62) -> Medium | H15: =LOOKUP(E15,Tracks!$A$3:$A$62,Tracks!$C$3:$C$62) -> Hard | K15: 41 | L15: 41 | AL15: =+AC42 -> 0 | AN15: =AC$47+SUM(AC$33:AC$40) -> 0 | AP15: 0
A16: 12 | B16: =LOOKUP(E16,Tracks!$A$3:$A$62,Tracks!$H$3:$H$62) -> 55 | C16: =LOOKUP(E16,Tracks!$A$3:$A$62,Tracks!$I$3:$I$62) -> 301.1 | D16: 5.474545455 | E16: =+Menu!I32 -> Brasilia | F16: =LOOKUP(E16,Tracks!$A$3:$A$62,Tracks!$E$3:$E$62) -> High | G16: =LOOKUP(E16,Tracks!$A$3:$A$62,Tracks!$F$3:$F$62) -> Medium | H16: =LOOKUP(E16,Tracks!$A$3:$A$62,Tracks!$C$3:$C$62) -> Hard | K16: 41 | L16: 41 | AL16: =+AE42 -> 0 | AN16: =AE$47+SUM(AE$33:AE$40) -> 0 | AP16: 0
A17: 13 | B17: =LOOKUP(E17,Tracks!$A$3:$A$62,Tracks!$H$3:$H$62) -> 57 | C17: =LOOKUP(E17,Tracks!$A$3:$A$62,Tracks!$I$3:$I$62) -> 308.5 | D17: 5.412280702 | E17: =+Menu!I33 -> Sakhir | F17: =LOOKUP(E17,Tracks!$A$3:$A$62,Tracks!$E$3:$E$62) -> Very High | G17: =LOOKUP(E17,Tracks!$A$3:$A$62,Tracks!$F$3:$F$62) -> Medium | H17: =LOOKUP(E17,Tracks!$A$3:$A$62,Tracks!$C$3:$C$62) -> Normal | K17: 41 | L17: 41 | AL17: =+AG42 -> 0 | AN17: =AG$47+SUM(AG$33:AG$40) -> 0 | AP17: 0
A18: 14 | B18: =LOOKUP(E18,Tracks!$A$3:$A$62,Tracks!$H$3:$H$62) -> 67 | C18: =LOOKUP(E18,Tracks!$A$3:$A$62,Tracks!$I$3:$I$62) -> 305.4 | D18: 4.558208955 | E18: =+Menu!I34 -> Fuji | F18: =LOOKUP(E18,Tracks!$A$3:$A$62,Tracks!$E$3:$E$62) -> Medium | G18: =LOOKUP(E18,Tracks!$A$3:$A$62,Tracks!$F$3:$F$62) -> Medium | H18: =LOOKUP(E18,Tracks!$A$3:$A$62,Tracks!$C$3:$C$62) -> Easy | K18: 41 | L18: 41 | AL18: =+AI42 -> 0 | AN18: =AI$47+SUM(AI$33:AI$40) -> 0 | AP18: 0
A19: 15 | B19: =LOOKUP(E19,Tracks!$A$3:$A$62,Tracks!$H$3:$H$62) -> 55 | C19: =LOOKUP(E19,Tracks!$A$3:$A$62,Tracks!$I$3:$I$62) -> 309.2 | D19: 5.621818182 | E19: =+Menu!I35 -> Yeongam | F19: =LOOKUP(E19,Tracks!$A$3:$A$62,Tracks!$E$3:$E$62) -> Medium | G19: =LOOKUP(E19,Tracks!$A$3:$A$62,Tracks!$F$3:$F$62) -> High | H19: =LOOKUP(E19,Tracks!$A$3:$A$62,Tracks!$C$3:$C$62) -> Normal | K19: 41 | L19: 41 | AL19: =+AK42 -> 0 | AN19: =AK$47+SUM(AK$33:AK$40) -> 0 | AP19: 0
A20: 16 | B20: =LOOKUP(E20,Tracks!$A$3:$A$62,Tracks!$H$3:$H$62) -> 79 | C20: =LOOKUP(E20,Tracks!$A$3:$A$62,Tracks!$I$3:$I$62) -> 238.6 | D20: 3.020253165 | E20: =+Menu!I36 -> Fiorano | F20: =LOOKUP(E20,Tracks!$A$3:$A$62,Tracks!$E$3:$E$62) -> Very High | G20: =LOOKUP(E20,Tracks!$A$3:$A$62,Tracks!$F$3:$F$62) -> High | H20: =LOOKUP(E20,Tracks!$A$3:$A$62,Tracks!$C$3:$C$62) -> Normal | K20: 41 | L20: 41 | AL20: =+AM42 -> 0 | AN20: =AM$47+SUM(AM$33:AM$40) -> 0 | AP20: 0
A21: 17 | B21: =LOOKUP(E21,Tracks!$A$3:$A$62,Tracks!$H$3:$H$62) -> 75 | C21: =LOOKUP(E21,Tracks!$A$3:$A$62,Tracks!$I$3:$I$62) -> 315.5 | D21: 4.206666667 | E21: =+Menu!I37 -> Brands Hatch | F21: =LOOKUP(E21,Tracks!$A$3:$A$62,Tracks!$E$3:$E$62) -> Low | G21: =LOOKUP(E21,Tracks!$A$3:$A$62,Tracks!$F$3:$F$62) -> Low | H21: =LOOKUP(E21,Tracks!$A$3:$A$62,Tracks!$C$3:$C$62) -> Normal | K21: 41 | L21: 41 | AL21: =+AO42 -> 0 | AN21: =AO$47+SUM(AO$33:AO$40) -> 0 | AP21: 0
A22: Saison | I22: =AVERAGE(I5:I21) ->  | K22: =AVERAGE(K5:K21) -> 41 | L22: =AVERAGE(L5:L21) -> 41 | N22: =AVERAGE(N5:N21) ->  | O22: =AVERAGE(O5:O21) ->  | P22: =AVERAGE(P5:P21) ->  | AF22: =AVERAGE(AF5:AF21) ->  | AI22: =AVERAGE(AI5:AI21) ->  | AJ22: =AVERAGE(AJ5:AJ21) ->  | AL22: =SUM(AL5:AL21) -> 0 | AN22: =SUM(AN5:AN21) -> 0 | AP22: =SUM(AP5:AP21) -> 0
A25: Detail | H25: Montant | I25: =E5 -> Adelaide | K25: =+E6 -> Irungattukottai | M25: =+E7 -> Singapore | O25: =+E8 -> Grobnik | Q25: =+E9 -> Bucharest Ring | S25: =+E10 -> Jyllands-Ringen | U25: =+E11 -> Zandvoort | W25: =+E12 -> Valencia | Y25: =+E13 -> Portimao | AA25: =+E14 -> Indianapolis Oval | AC25: =+E15 -> Mexico City | AE25: =+E16 -> Brasilia | AG25: =+E17 -> Sakhir | AI25: =+E18 -> Fuji | AK25: =+E19 -> Yeongam | AM25: =+E20 -> Fiorano | AO25: =E21 -> Brands Hatch
A26: Qualification (Mettre non si l'on a raté la course) | I26: NON | K26: NON | M26: NON | O26: NON | Q26: NON | S26: NON | U26: NON | W26: NON | Y26: NON | AA26: NON | AC26: NON | AE26: NON | AG26: NON | AI26: NON | AK26: NON | AM26: NON | AO26: NON | AQ26: NON
A27: Practices (Nbres de Tours)
A28: Qualification Coupe | K28: NON | Q28: NON | W28: NON | AC28: NON | AI28: NON | AO28: NON | AQ28: NON
A30: Balance Financiere
A31: Categorie | G31: Amateur | I31: =+I25 -> Adelaide | K31: =+K25 -> Irungattukottai | M31: =+M25 -> Singapore | O31: =+O25 -> Grobnik | Q31: =+Q25 -> Bucharest Ring | S31: =+S25 -> Jyllands-Ringen | U31: =+U25 -> Zandvoort | W31: =+W25 -> Valencia | Y31: =+Y25 -> Portimao | AA31: =+AA25 -> Indianapolis Oval | AC31: =+AC25 -> Mexico City | AE31: =+AE25 -> Brasilia | AG31: =+AG25 -> Sakhir | AI31: =+AI25 -> Fuji | AK31: =+AK25 -> Yeongam | AM31: =+AM25 -> Fiorano | AO31: =+AO25 -> Brands Hatch
A32: Avant Race | I32: 61460114 | K32: =+I55 -> 61460114 | M32: =+K55 -> 61460114 | O32: =+M55 -> 61460114 | Q32: =+O55 -> 61460114 | S32: =+Q55 -> 61460114 | U32: =+S55 -> 61460114 | W32: =+U55 -> 61460114 | Y32: =+W55 -> 61460114 | AA32: =+Y55 -> 61460114 | AC32: =+AA55 -> 61460114 | AE32: =+AC55 -> 61460114 | AG32: =+AE55 -> 61460114 | AI32: =+AG55 -> 61460114 | AK32: =+AI55 -> 61460114 | AM32: =+AK55 -> 61460114 | AO32: =+AM55 -> 61460114
A33: Cout des entrainements Pilote | I33: =IF(I27="",0,+IMPORTS!$Q$24) -> 0 | K33: =IF(K27="",0,+IMPORTS!$Q$24) -> 0 | M33: =IF(M27="",0,+IMPORTS!$Q$24) -> 0 | O33: =IF(O27="",0,+IMPORTS!$Q$24) -> 0 | Q33: =IF(Q27="",0,+IMPORTS!$Q$24) -> 0 | S33: =IF(S27="",0,+IMPORTS!$Q$24) -> 0 | U33: =IF(U27="",0,+IMPORTS!$Q$24) -> 0 | W33: =IF(W27="",0,+IMPORTS!$Q$24) -> 0 | Y33: =IF(Y27="",0,+IMPORTS!$Q$24) -> 0 | AA33: =IF(AA27="",0,+IMPORTS!$Q$24) -> 0 | AC33: =IF(AC27="",0,+IMPORTS!$Q$24) -> 0 | AE33: =IF(AE27="",0,+IMPORTS!$Q$24) -> 0 | AG33: =IF(AG27="",0,+IMPORTS!$Q$24) -> 0 | AI33: =IF(AI27="",0,+IMPORTS!$Q$24) -> 0 | AK33: =IF(AK27="",0,+IMPORTS!$Q$24) -> 0 | AM33: =IF(AM27="",0,+IMPORTS!$Q$24) -> 0 | AO33: =IF(AO27="",0,+IMPORTS!$Q$24) -> 0 | AQ33: =IF(AQ27="",0,+IMPORTS!$Q$24) -> 0
A34: Cout des entrainements Staff | I34: =IF(I27="",0,+IMPORTS!$Q$25) -> 0 | K34: =IF(K27="",0,+IMPORTS!$Q$25) -> 0 | M34: =IF(M27="",0,+IMPORTS!$Q$25) -> 0 | O34: =IF(O27="",0,+IMPORTS!$Q$25) -> 0 | Q34: =IF(Q27="",0,+IMPORTS!$Q$25) -> 0 | S34: =IF(S27="",0,+IMPORTS!$Q$25) -> 0 | U34: =IF(U27="",0,+IMPORTS!$Q$25) -> 0 | W34: =IF(W27="",0,+IMPORTS!$Q$25) -> 0 | Y34: =IF(Y27="",0,+IMPORTS!$Q$25) -> 0 | AA34: =IF(AA27="",0,+IMPORTS!$Q$25) -> 0 | AC34: =IF(AC27="",0,+IMPORTS!$Q$25) -> 0 | AE34: =IF(AE27="",0,+IMPORTS!$Q$25) -> 0 | AG34: =IF(AG27="",0,+IMPORTS!$Q$25) -> 0 | AI34: =IF(AI27="",0,+IMPORTS!$Q$25) -> 0 | AK34: =IF(AK27="",0,+IMPORTS!$Q$25) -> 0 | AM34: =IF(AM27="",0,+IMPORTS!$Q$25) -> 0 | AO34: =IF(AO27="",0,+IMPORTS!$Q$25) -> 0 | AQ34: =IF(AQ27="",0,+IMPORTS!$Q$25) -> 0
A35: Cout des contrats pilote et Staff | I35: =IF(I27="",0,+IMPORTS!$Q$26) -> 0 | K35: =IF(K27="",0,+IMPORTS!$Q$26) -> 0 | M35: =IF(M27="",0,+IMPORTS!$Q$26) -> 0 | O35: =IF(O27="",0,+IMPORTS!$Q$26) -> 0 | Q35: =IF(Q27="",0,+IMPORTS!$Q$26) -> 0 | S35: =IF(S27="",0,+IMPORTS!$Q$26) -> 0 | U35: =IF(U27="",0,+IMPORTS!$Q$26) -> 0 | W35: =IF(W27="",0,+IMPORTS!$Q$26) -> 0 | Y35: =IF(Y27="",0,+IMPORTS!$Q$26) -> 0 | AA35: =IF(AA27="",0,+IMPORTS!$Q$26) -> 0 | AC35: =IF(AC27="",0,+IMPORTS!$Q$26) -> 0 | AE35: =IF(AE27="",0,+IMPORTS!$Q$26) -> 0 | AG35: =IF(AG27="",0,+IMPORTS!$Q$26) -> 0 | AI35: =IF(AI27="",0,+IMPORTS!$Q$26) -> 0 | AK35: =IF(AK27="",0,+IMPORTS!$Q$26) -> 0 | AM35: =IF(AM27="",0,+IMPORTS!$Q$26) -> 0 | AO35: =IF(AO27="",0,+IMPORTS!$Q$26) -> 0 | AQ35: =IF(AQ27="",0,+IMPORTS!$Q$26) -> 0
A36: Cout des Testings | I36: =IF(I27="",0,+IMPORTS!$Q$27) -> 0 | K36: =IF(K27="",0,+IMPORTS!$Q$27) -> 0 | M36: =IF(M27="",0,+IMPORTS!$Q$27) -> 0 | O36: =IF(O27="",0,+IMPORTS!$Q$27) -> 0 | Q36: =IF(Q27="",0,+IMPORTS!$Q$27) -> 0 | S36: =IF(S27="",0,+IMPORTS!$Q$27) -> 0 | U36: =IF(U27="",0,+IMPORTS!$Q$27) -> 0 | W36: =IF(W27="",0,+IMPORTS!$Q$27) -> 0 | Y36: =IF(Y27="",0,+IMPORTS!$Q$27) -> 0 | AA36: =IF(AA27="",0,+IMPORTS!$Q$27) -> 0 | AC36: =IF(AC27="",0,+IMPORTS!$Q$27) -> 0 | AE36: =IF(AE27="",0,+IMPORTS!$Q$27) -> 0 | AG36: =IF(AG27="",0,+IMPORTS!$Q$27) -> 0 | AI36: =IF(AI27="",0,+IMPORTS!$Q$27) -> 0 | AK36: =IF(AK27="",0,+IMPORTS!$Q$27) -> 0 | AM36: =IF(AM27="",0,+IMPORTS!$Q$27) -> 0 | AO36: =IF(AO27="",0,+IMPORTS!$Q$27) -> 0 | AQ36: =IF(AQ27="",0,+IMPORTS!$Q$27) -> 0
A37: Cout des Ameliorations Installations | I37: =IF(I27="",0,+IMPORTS!$Q$28) -> 0 | K37: =IF(K27="",0,+IMPORTS!$Q$28) -> 0 | M37: =IF(M27="",0,+IMPORTS!$Q$28) -> 0 | O37: =IF(O27="",0,+IMPORTS!$Q$28) -> 0 | Q37: =IF(Q27="",0,+IMPORTS!$Q$28) -> 0 | S37: =IF(S27="",0,+IMPORTS!$Q$28) -> 0 | U37: =IF(U27="",0,+IMPORTS!$Q$28) -> 0 | W37: =IF(W27="",0,+IMPORTS!$Q$28) -> 0 | Y37: =IF(Y27="",0,+IMPORTS!$Q$28) -> 0 | AA37: =IF(AA27="",0,+IMPORTS!$Q$28) -> 0 | AC37: =IF(AC27="",0,+IMPORTS!$Q$28) -> 0 | AE37: =IF(AE27="",0,+IMPORTS!$Q$28) -> 0 | AG37: =IF(AG27="",0,+IMPORTS!$Q$28) -> 0 | AI37: =IF(AI27="",0,+IMPORTS!$Q$28) -> 0 | AK37: =IF(AK27="",0,+IMPORTS!$Q$28) -> 0 | AM37: =IF(AM27="",0,+IMPORTS!$Q$28) -> 0 | AO37: =IF(AO27="",0,+IMPORTS!$Q$28) -> 0 | AQ37: =IF(AQ27="",0,+IMPORTS!$Q$28) -> 0
A38: Couts des Réparations | I38: =IF(I27="",0,+IMPORTS!$Q$29) -> 0 | K38: =IF(K27="",0,+IMPORTS!$Q$29) -> 0 | M38: =IF(M27="",0,+IMPORTS!$Q$29) -> 0 | O38: =IF(O27="",0,+IMPORTS!$Q$29) -> 0 | Q38: =IF(Q27="",0,+IMPORTS!$Q$29) -> 0 | S38: =IF(S27="",0,+IMPORTS!$Q$29) -> 0 | U38: =IF(U27="",0,+IMPORTS!$Q$29) -> 0 | W38: =IF(W27="",0,+IMPORTS!$Q$29) -> 0 | Y38: =IF(Y27="",0,+IMPORTS!$Q$29) -> 0 | AA38: =IF(AA27="",0,+IMPORTS!$Q$29) -> 0 | AC38: =IF(AC27="",0,+IMPORTS!$Q$29) -> 0 | AE38: =IF(AE27="",0,+IMPORTS!$Q$29) -> 0 | AG38: =IF(AG27="",0,+IMPORTS!$Q$29) -> 0 | AI38: =IF(AI27="",0,+IMPORTS!$Q$29) -> 0 | AK38: =IF(AK27="",0,+IMPORTS!$Q$29) -> 0 | AM38: =IF(AM27="",0,+IMPORTS!$Q$29) -> 0 | AO38: =IF(AO27="",0,+IMPORTS!$Q$29) -> 0 | AQ38: =IF(AQ27="",0,+IMPORTS!$Q$29) -> 0
A39: Couts des Qualifs + Practices | I39: =IF(I27="",0,(I27*-50000)-200000) -> 0 | K39: =IF(K27="",0,(K27*-50000)-200000) -> 0 | M39: =IF(M27="",0,(M27*-50000)-200000) -> 0 | O39: =IF(O27="",0,(O27*-50000)-200000) -> 0 | Q39: =IF(Q27="",0,(Q27*-50000)-200000) -> 0 | S39: =IF(S27="",0,(S27*-50000)-200000) -> 0 | U39: =IF(U27="",0,(U27*-50000)-200000) -> 0 | W39: =IF(W27="",0,(W27*-50000)-200000) -> 0 | Y39: =IF(Y27="",0,(Y27*-50000)-200000) -> 0 | AA39: =IF(AA27="",0,(AA27*-50000)-200000) -> 0 | AC39: =IF(AC27="",0,(AC27*-50000)-200000) -> 0 | AE39: =IF(AE27="",0,(AE27*-50000)-200000) -> 0 | AG39: =IF(AG27="",0,(AG27*-50000)-200000) -> 0 | AI39: =IF(AI27="",0,(AI27*-50000)-200000) -> 0 | AK39: =IF(AK27="",0,(AK27*-50000)-200000) -> 0 | AM39: =IF(AM27="",0,(AM27*-50000)-200000) -> 0 | AO39: =IF(AO27="",0,(AO27*-50000)-200000) -> 0
A40: Gains des Coupes | K40: =LOOKUP(K28,Tables!$X$60:$X$61,Tables!$AD$60:$AD$61) -> 0 | Q40: =LOOKUP(Q28,Tables!$X$60:$X$61,Tables!$AD$60:$AD$61) -> 0 | W40: =LOOKUP(W28,Tables!$X$60:$X$61,Tables!$AD$60:$AD$61) -> 0 | AC40: =LOOKUP(AC28,Tables!$X$60:$X$61,Tables!$AD$60:$AD$61) -> 0 | AI40: =LOOKUP(AI28,Tables!$X$60:$X$61,Tables!$AD$60:$AD$61) -> 0 | AO40: =LOOKUP(AO28,Tables!$X$60:$X$61,Tables!$AD$60:$AD$61) -> 0
A41: Balance Avant Race | I41: =SUM(I33:J40)+I32 -> 61460114 | K41: =SUM(K33:L40)+K32 -> 61460114 | M41: =SUM(M33:N40)+M32 -> 61460114 | O41: =SUM(O33:P40)+O32 -> 61460114 | Q41: =SUM(Q33:R40)+Q32 -> 61460114 | S41: =SUM(S33:T40)+S32 -> 61460114 | U41: =SUM(U33:V40)+U32 -> 61460114 | W41: =SUM(W33:X40)+W32 -> 61460114 | Y41: =SUM(Y33:Z40)+Y32 -> 61460114 | AA41: =SUM(AA33:AB40)+AA32 -> 61460114 | AC41: =SUM(AC33:AD40)+AC32 -> 61460114 | AE41: =SUM(AE33:AF40)+AE32 -> 61460114 | AG41: =SUM(AG33:AH40)+AG32 -> 61460114 | AI41: =SUM(AI33:AJ40)+AI32 -> 61460114 | AK41: =SUM(AK33:AL40)+AK32 -> 61460114 | AM41: =SUM(AM33:AN40)+AM32 -> 61460114 | AO41: =SUM(AO33:AP40)+AO32 -> 61460114
A42: Gains | I42: =+SUM(I43:J46) -> 0 | K42: =+SUM(K43:L46) -> 0 | M42: =+SUM(M43:N46) -> 0 | O42: =+SUM(O43:P46) -> 0 | Q42: =+SUM(Q43:R46) -> 0 | S42: =+SUM(S43:T46) -> 0 | U42: =+SUM(U43:V46) -> 0 | W42: =+SUM(W43:X46) -> 0 | Y42: =+SUM(Y43:Z46) -> 0 | AA42: =+SUM(AA43:AB46) -> 0 | AC42: =+SUM(AC43:AD46) -> 0 | AE42: =+SUM(AE43:AF46) -> 0 | AG42: =+SUM(AG43:AH46) -> 0 | AI42: =+SUM(AI43:AJ46) -> 0 | AK42: =+SUM(AK43:AL46) -> 0 | AM42: =+SUM(AM43:AN46) -> 0 | AO42: =+SUM(AO43:AP46) -> 0
A43: Position en Course | I43: =LOOKUP(K5,Tables!Q19:Q59,Tables!W19:W58) -> 0 | K43: =LOOKUP(K6,Tables!Q19:Q59,Tables!W19:W58) -> 0 | M43: =LOOKUP(K7,Tables!Q19:Q59,Tables!W19:W58) -> 0 | O43: =LOOKUP(K8,Tables!Q19:Q59,Tables!W19:W58) -> 0 | Q43: =LOOKUP(K9,Tables!Q19:Q59,Tables!W19:W58) -> 0 | S43: =LOOKUP(K10,Tables!Q19:Q59,Tables!W19:W58) -> 0 | U43: =LOOKUP(K11,Tables!Q19:Q59,Tables!W19:W58) -> 0 | W43: =LOOKUP(K12,Tables!Q19:Q59,Tables!W19:W58) -> 0 | Y43: =LOOKUP(K13,Tables!Q19:Q59,Tables!W19:W58) -> 0 | AA43: =LOOKUP(K14,Tables!Q19:Q59,Tables!W19:W58) -> 0 | AC43: =LOOKUP(K15,Tables!Q19:Q59,Tables!W19:W58) -> 0 | AE43: =LOOKUP(K16,Tables!Q19:Q59,Tables!W19:W58) -> 0 | AG43: =LOOKUP(K17,Tables!Q19:Q59,Tables!W19:W58) -> 0 | AI43: =LOOKUP(K18,Tables!Q19:Q59,Tables!W19:W58) -> 0 | AK43: =LOOKUP(K19,Tables!Q19:Q59,Tables!W19:W58) -> 0 | AM43: =LOOKUP(K20,Tables!Q19:Q59,Tables!W19:W58) -> 0 | AO43: =LOOKUP(K21,Tables!Q19:Q59,Tables!W19:W58) -> 0
A44: Position en Qualif | I44: =LOOKUP(L5,Tables!X19:X59,Tables!AD19:AD59) -> 0 | K44: =LOOKUP(L6,Tables!X19:X59,Tables!AD19:AD59) -> 0 | M44: =LOOKUP(L7,Tables!X19:X59,Tables!AD19:AD59) -> 0 | O44: =LOOKUP(L8,Tables!X19:X59,Tables!AD19:AD59) -> 0 | Q44: =LOOKUP(L9,Tables!X19:X59,Tables!AD19:AD59) -> 0 | S44: =LOOKUP(L10,Tables!X19:X59,Tables!AD19:AD59) -> 0 | U44: =LOOKUP(L11,Tables!X19:X59,Tables!AD19:AD59) -> 0 | W44: =LOOKUP(L12,Tables!X19:X59,Tables!AD19:AD59) -> 0 | Y44: =LOOKUP(L13,Tables!X19:X59,Tables!AD19:AD59) -> 0 | AA44: =LOOKUP(L14,Tables!X19:X59,Tables!AD19:AD59) -> 0 | AC44: =LOOKUP(L15,Tables!X19:X59,Tables!AD19:AD59) -> 0 | AE44: =LOOKUP(L16,Tables!X19:X59,Tables!AD19:AD59) -> 0 | AG44: =LOOKUP(L17,Tables!X19:X59,Tables!AD19:AD59) -> 0 | AI44: =LOOKUP(L18,Tables!X19:X59,Tables!AD19:AD59) -> 0 | AK44: =LOOKUP(L19,Tables!X19:X59,Tables!AD19:AD59) -> 0 | AM44: =LOOKUP(L20,Tables!X19:X59,Tables!AD19:AD59) -> 0 | AO44: =LOOKUP(L21,Tables!X19:X59,Tables!AD19:AD59) -> 0
A45: Tour du pilote le plus rapide: | I45: =IF(I$27="",0,(VLOOKUP($A$45,'CR DE COURSE'!$O$21:$T$28,5))) -> 0 | K45: =IF(K$27="",0,(VLOOKUP($A$45,'CR DE COURSE'!$O$21:$T$28,5))) -> 0 | M45: =IF(M$27="",0,(VLOOKUP($A$45,'CR DE COURSE'!$O$21:$T$28,5))) -> 0 | O45: =IF(O$27="",0,(VLOOKUP($A$45,'CR DE COURSE'!$O$21:$T$28,5))) -> 0 | Q45: =IF(Q$27="",0,(VLOOKUP($A$45,'CR DE COURSE'!$O$21:$T$28,5))) -> 0 | S45: =IF(S$27="",0,(VLOOKUP($A$45,'CR DE COURSE'!$O$21:$T$28,5))) -> 0 | U45: =IF(U$27="",0,(VLOOKUP($A$45,'CR DE COURSE'!$O$21:$T$28,5))) -> 0 | W45: =IF(W$27="",0,(VLOOKUP($A$45,'CR DE COURSE'!$O$21:$T$28,5))) -> 0 | Y45: =IF(Y$27="",0,(VLOOKUP($A$45,'CR DE COURSE'!$O$21:$T$28,5))) -> 0 | AA45: =IF(AA$27="",0,(VLOOKUP($A$45,'CR DE COURSE'!$O$21:$T$28,5))) -> 0 | AC45: =IF(AC$27="",0,(VLOOKUP($A$45,'CR DE COURSE'!$O$21:$T$28,5))) -> 0 | AE45: =IF(AE$27="",0,(VLOOKUP($A$45,'CR DE COURSE'!$O$21:$T$28,5))) -> 0 | AG45: =IF(AG$27="",0,(VLOOKUP($A$45,'CR DE COURSE'!$O$21:$T$28,5))) -> 0 | AI45: =IF(AI$27="",0,(VLOOKUP($A$45,'CR DE COURSE'!$O$21:$T$28,5))) -> 0 | AK45: =IF(AK$27="",0,(VLOOKUP($A$45,'CR DE COURSE'!$O$21:$T$28,5))) -> 0 | AM45: =IF(AM$27="",0,(VLOOKUP($A$45,'CR DE COURSE'!$O$21:$T$28,5))) -> 0 | AO45: =IF(AO$27="",0,(VLOOKUP($A$45,'CR DE COURSE'!$O$21:$T$28,5))) -> 0 | AQ45: =IF(AQ$27="",0,(VLOOKUP($A$45,'CR DE COURSE'!$O$21:$T$28,5))) -> 0
A46: Gains par sponsor: | I46: =IF(I$27="",0,(VLOOKUP($A46,'CR DE COURSE'!$O$21:$T$28,5))) -> 0 | K46: =IF(K$27="",0,(VLOOKUP($A46,'CR DE COURSE'!$O$21:$T$28,5))) -> 0 | M46: =IF(M$27="",0,(VLOOKUP($A46,'CR DE COURSE'!$O$21:$T$28,5))) -> 0 | O46: =IF(O$27="",0,(VLOOKUP($A46,'CR DE COURSE'!$O$21:$T$28,5))) -> 0 | Q46: =IF(Q$27="",0,(VLOOKUP($A46,'CR DE COURSE'!$O$21:$T$28,5))) -> 0 | S46: =IF(S$27="",0,(VLOOKUP($A46,'CR DE COURSE'!$O$21:$T$28,5))) -> 0 | U46: =IF(U$27="",0,(VLOOKUP($A46,'CR DE COURSE'!$O$21:$T$28,5))) -> 0 | W46: =IF(W$27="",0,(VLOOKUP($A46,'CR DE COURSE'!$O$21:$T$28,5))) -> 0 | Y46: =IF(Y$27="",0,(VLOOKUP($A46,'CR DE COURSE'!$O$21:$T$28,5))) -> 0 | AA46: =IF(AA$27="",0,(VLOOKUP($A46,'CR DE COURSE'!$O$21:$T$28,5))) -> 0 | AC46: =IF(AC$27="",0,(VLOOKUP($A46,'CR DE COURSE'!$O$21:$T$28,5))) -> 0 | AE46: =IF(AE$27="",0,(VLOOKUP($A46,'CR DE COURSE'!$O$21:$T$28,5))) -> 0 | AG46: =IF(AG$27="",0,(VLOOKUP($A46,'CR DE COURSE'!$O$21:$T$28,5))) -> 0 | AI46: =IF(AI$27="",0,(VLOOKUP($A46,'CR DE COURSE'!$O$21:$T$28,5))) -> 0 | AK46: =IF(AK$27="",0,(VLOOKUP($A46,'CR DE COURSE'!$O$21:$T$28,5))) -> 0 | AM46: =IF(AM$27="",0,(VLOOKUP($A46,'CR DE COURSE'!$O$21:$T$28,5))) -> 0 | AO46: =IF(AO$27="",0,(VLOOKUP($A46,'CR DE COURSE'!$O$21:$T$28,5))) -> 0 | AQ46: =IF(AQ$27="",0,(VLOOKUP($A46,'CR DE COURSE'!$O$21:$T$28,5))) -> 0
A47: Couts | I47: =SUM(I48:J54) -> 0 | K47: =SUM(K48:L54) -> 0 | M47: =SUM(M48:N54) -> 0 | O47: =SUM(O48:P54) -> 0 | Q47: =SUM(Q48:R54) -> 0 | S47: =SUM(S48:T54) -> 0 | U47: =SUM(U48:V54) -> 0 | W47: =SUM(W48:X54) -> 0 | Y47: =SUM(Y48:Z54) -> 0 | AA47: =SUM(AA48:AB54) -> 0 | AC47: =SUM(AC48:AD54) -> 0 | AE47: =SUM(AE48:AF54) -> 0 | AG47: =SUM(AG48:AH54) -> 0 | AI47: =SUM(AI48:AJ54) -> 0 | AK47: =SUM(AK48:AL54) -> 0 | AM47: =SUM(AM48:AN54) -> 0 | AO47: =SUM(AO48:AP54) -> 0 | AQ47: =SUM(AQ48:AR54) -> 0
A48: Salaire du pilote: | I48: =IF(I$27="",0,(VLOOKUP($A48,'CR DE COURSE'!$O$21:$T$28,5))) -> 0 | K48: =IF(K$27="",0,(VLOOKUP($A48,'CR DE COURSE'!$O$21:$T$28,5))) -> 0 | M48: =IF(M$27="",0,(VLOOKUP($A48,'CR DE COURSE'!$O$21:$T$28,5))) -> 0 | O48: =IF(O$27="",0,(VLOOKUP($A48,'CR DE COURSE'!$O$21:$T$28,5))) -> 0 | Q48: =IF(Q$27="",0,(VLOOKUP($A48,'CR DE COURSE'!$O$21:$T$28,5))) -> 0 | S48: =IF(S$27="",0,(VLOOKUP($A48,'CR DE COURSE'!$O$21:$T$28,5))) -> 0 | U48: =IF(U$27="",0,(VLOOKUP($A48,'CR DE COURSE'!$O$21:$T$28,5))) -> 0 | W48: =IF(W$27="",0,(VLOOKUP($A48,'CR DE COURSE'!$O$21:$T$28,5))) -> 0 | Y48: =IF(Y$27="",0,(VLOOKUP($A48,'CR DE COURSE'!$O$21:$T$28,5))) -> 0 | AA48: =IF(AA$27="",0,(VLOOKUP($A48,'CR DE COURSE'!$O$21:$T$28,5))) -> 0 | AC48: =IF(AC$27="",0,(VLOOKUP($A48,'CR DE COURSE'!$O$21:$T$28,5))) -> 0 | AE48: =IF(AE$27="",0,(VLOOKUP($A48,'CR DE COURSE'!$O$21:$T$28,5))) -> 0 | AG48: =IF(AG$27="",0,(VLOOKUP($A48,'CR DE COURSE'!$O$21:$T$28,5))) -> 0 | AI48: =IF(AI$27="",0,(VLOOKUP($A48,'CR DE COURSE'!$O$21:$T$28,5))) -> 0 | AK48: =IF(AK$27="",0,(VLOOKUP($A48,'CR DE COURSE'!$O$21:$T$28,5))) -> 0 | AM48: =IF(AM$27="",0,(VLOOKUP($A48,'CR DE COURSE'!$O$21:$T$28,5))) -> 0 | AO48: =IF(AO$27="",0,(VLOOKUP($A48,'CR DE COURSE'!$O$21:$T$28,5))) -> 0 | AQ48: =IF(AQ$27="",0,(VLOOKUP($A48,'CR DE COURSE'!$O$21:$T$28,5))) -> 0
A49: Salaire du DT : | I49: =IF(I$27="",0,(VLOOKUP($A49,'CR DE COURSE'!$O$21:$T$28,5))) -> 0 | K49: =IF(K$27="",0,(VLOOKUP($A49,'CR DE COURSE'!$O$21:$T$28,5))) -> 0 | M49: =IF(M$27="",0,(VLOOKUP($A49,'CR DE COURSE'!$O$21:$T$28,5))) -> 0 | O49: =IF(O$27="",0,(VLOOKUP($A49,'CR DE COURSE'!$O$21:$T$28,5))) -> 0 | Q49: =IF(Q$27="",0,(VLOOKUP($A49,'CR DE COURSE'!$O$21:$T$28,5))) -> 0 | S49: =IF(S$27="",0,(VLOOKUP($A49,'CR DE COURSE'!$O$21:$T$28,5))) -> 0 | U49: =IF(U$27="",0,(VLOOKUP($A49,'CR DE COURSE'!$O$21:$T$28,5))) -> 0 | W49: =IF(W$27="",0,(VLOOKUP($A49,'CR DE COURSE'!$O$21:$T$28,5))) -> 0 | Y49: =IF(Y$27="",0,(VLOOKUP($A49,'CR DE COURSE'!$O$21:$T$28,5))) -> 0 | AA49: =IF(AA$27="",0,(VLOOKUP($A49,'CR DE COURSE'!$O$21:$T$28,5))) -> 0 | AC49: =IF(AC$27="",0,(VLOOKUP($A49,'CR DE COURSE'!$O$21:$T$28,5))) -> 0 | AE49: =IF(AE$27="",0,(VLOOKUP($A49,'CR DE COURSE'!$O$21:$T$28,5))) -> 0 | AG49: =IF(AG$27="",0,(VLOOKUP($A49,'CR DE COURSE'!$O$21:$T$28,5))) -> 0 | AI49: =IF(AI$27="",0,(VLOOKUP($A49,'CR DE COURSE'!$O$21:$T$28,5))) -> 0 | AK49: =IF(AK$27="",0,(VLOOKUP($A49,'CR DE COURSE'!$O$21:$T$28,5))) -> 0 | AM49: =IF(AM$27="",0,(VLOOKUP($A49,'CR DE COURSE'!$O$21:$T$28,5))) -> 0 | AO49: =IF(AO$27="",0,(VLOOKUP($A49,'CR DE COURSE'!$O$21:$T$28,5))) -> 0 | AQ49: =IF(AQ$27="",0,(VLOOKUP($A49,'CR DE COURSE'!$O$21:$T$28,5))) -> 0
A50: Bonus points (pilote): | I50: =IF(I$27="",0,(VLOOKUP($A50,'CR DE COURSE'!$O$21:$T$28,5))) -> 0 | K50: =IF(K$27="",0,(VLOOKUP($A50,'CR DE COURSE'!$O$21:$T$28,5))) -> 0 | M50: =IF(M$27="",0,(VLOOKUP($A50,'CR DE COURSE'!$O$21:$T$28,5))) -> 0 | O50: =IF(O$27="",0,(VLOOKUP($A50,'CR DE COURSE'!$O$21:$T$28,5))) -> 0 | Q50: =IF(Q$27="",0,(VLOOKUP($A50,'CR DE COURSE'!$O$21:$T$28,5))) -> 0 | S50: =IF(S$27="",0,(VLOOKUP($A50,'CR DE COURSE'!$O$21:$T$28,5))) -> 0 | U50: =IF(U$27="",0,(VLOOKUP($A50,'CR DE COURSE'!$O$21:$T$28,5))) -> 0 | W50: =IF(W$27="",0,(VLOOKUP($A50,'CR DE COURSE'!$O$21:$T$28,5))) -> 0 | Y50: =IF(Y$27="",0,(VLOOKUP($A50,'CR DE COURSE'!$O$21:$T$28,5))) -> 0 | AA50: =IF(AA$27="",0,(VLOOKUP($A50,'CR DE COURSE'!$O$21:$T$28,5))) -> 0 | AC50: =IF(AC$27="",0,(VLOOKUP($A50,'CR DE COURSE'!$O$21:$T$28,5))) -> 0 | AE50: =IF(AE$27="",0,(VLOOKUP($A50,'CR DE COURSE'!$O$21:$T$28,5))) -> 0 | AG50: =IF(AG$27="",0,(VLOOKUP($A50,'CR DE COURSE'!$O$21:$T$28,5))) -> 0 | AI50: =IF(AI$27="",0,(VLOOKUP($A50,'CR DE COURSE'!$O$21:$T$28,5))) -> 0 | AK50: =IF(AK$27="",0,(VLOOKUP($A50,'CR DE COURSE'!$O$21:$T$28,5))) -> 0 | AM50: =IF(AM$27="",0,(VLOOKUP($A50,'CR DE COURSE'!$O$21:$T$28,5))) -> 0 | AO50: =IF(AO$27="",0,(VLOOKUP($A50,'CR DE COURSE'!$O$21:$T$28,5))) -> 0 | AQ50: =IF(AQ$27="",0,(VLOOKUP($A50,'CR DE COURSE'!$O$21:$T$28,5))) -> 0
A51: Bonus points pour le DT: | I51: =IF(I$27="",0,(VLOOKUP($A51,'CR DE COURSE'!$O$21:$T$28,5))) -> 0 | K51: =IF(K$27="",0,(VLOOKUP($A51,'CR DE COURSE'!$O$21:$T$28,5))) -> 0 | M51: =IF(M$27="",0,(VLOOKUP($A51,'CR DE COURSE'!$O$21:$T$28,5))) -> 0 | O51: =IF(O$27="",0,(VLOOKUP($A51,'CR DE COURSE'!$O$21:$T$28,5))) -> 0 | Q51: =IF(Q$27="",0,(VLOOKUP($A51,'CR DE COURSE'!$O$21:$T$28,5))) -> 0 | S51: =IF(S$27="",0,(VLOOKUP($A51,'CR DE COURSE'!$O$21:$T$28,5))) -> 0 | U51: =IF(U$27="",0,(VLOOKUP($A51,'CR DE COURSE'!$O$21:$T$28,5))) -> 0 | W51: =IF(W$27="",0,(VLOOKUP($A51,'CR DE COURSE'!$O$21:$T$28,5))) -> 0 | Y51: =IF(Y$27="",0,(VLOOKUP($A51,'CR DE COURSE'!$O$21:$T$28,5))) -> 0 | AA51: =IF(AA$27="",0,(VLOOKUP($A51,'CR DE COURSE'!$O$21:$T$28,5))) -> 0 | AC51: =IF(AC$27="",0,(VLOOKUP($A51,'CR DE COURSE'!$O$21:$T$28,5))) -> 0 | AE51: =IF(AE$27="",0,(VLOOKUP($A51,'CR DE COURSE'!$O$21:$T$28,5))) -> 0 | AG51: =IF(AG$27="",0,(VLOOKUP($A51,'CR DE COURSE'!$O$21:$T$28,5))) -> 0 | AI51: =IF(AI$27="",0,(VLOOKUP($A51,'CR DE COURSE'!$O$21:$T$28,5))) -> 0 | AK51: =IF(AK$27="",0,(VLOOKUP($A51,'CR DE COURSE'!$O$21:$T$28,5))) -> 0 | AM51: =IF(AM$27="",0,(VLOOKUP($A51,'CR DE COURSE'!$O$21:$T$28,5))) -> 0 | AO51: =IF(AO$27="",0,(VLOOKUP($A51,'CR DE COURSE'!$O$21:$T$28,5))) -> 0 | AQ51: =IF(AQ$27="",0,(VLOOKUP($A51,'CR DE COURSE'!$O$21:$T$28,5))) -> 0
A52: Salaire du personnel: | I52: =IF(I$27="",0,(VLOOKUP($A52,'CR DE COURSE'!$O$21:$T$28,5))) -> 0 | K52: =IF(K$27="",0,(VLOOKUP($A52,'CR DE COURSE'!$O$21:$T$28,5))) -> 0 | M52: =IF(M$27="",0,(VLOOKUP($A52,'CR DE COURSE'!$O$21:$T$28,5))) -> 0 | O52: =IF(O$27="",0,(VLOOKUP($A52,'CR DE COURSE'!$O$21:$T$28,5))) -> 0 | Q52: =IF(Q$27="",0,(VLOOKUP($A52,'CR DE COURSE'!$O$21:$T$28,5))) -> 0 | S52: =IF(S$27="",0,(VLOOKUP($A52,'CR DE COURSE'!$O$21:$T$28,5))) -> 0 | U52: =IF(U$27="",0,(VLOOKUP($A52,'CR DE COURSE'!$O$21:$T$28,5))) -> 0 | W52: =IF(W$27="",0,(VLOOKUP($A52,'CR DE COURSE'!$O$21:$T$28,5))) -> 0 | Y52: =IF(Y$27="",0,(VLOOKUP($A52,'CR DE COURSE'!$O$21:$T$28,5))) -> 0 | AA52: =IF(AA$27="",0,(VLOOKUP($A52,'CR DE COURSE'!$O$21:$T$28,5))) -> 0 | AC52: =IF(AC$27="",0,(VLOOKUP($A52,'CR DE COURSE'!$O$21:$T$28,5))) -> 0 | AE52: =IF(AE$27="",0,(VLOOKUP($A52,'CR DE COURSE'!$O$21:$T$28,5))) -> 0 | AG52: =IF(AG$27="",0,(VLOOKUP($A52,'CR DE COURSE'!$O$21:$T$28,5))) -> 0 | AI52: =IF(AI$27="",0,(VLOOKUP($A52,'CR DE COURSE'!$O$21:$T$28,5))) -> 0 | AK52: =IF(AK$27="",0,(VLOOKUP($A52,'CR DE COURSE'!$O$21:$T$28,5))) -> 0 | AM52: =IF(AM$27="",0,(VLOOKUP($A52,'CR DE COURSE'!$O$21:$T$28,5))) -> 0 | AO52: =IF(AO$27="",0,(VLOOKUP($A52,'CR DE COURSE'!$O$21:$T$28,5))) -> 0 | AQ52: =IF(AQ$27="",0,(VLOOKUP($A52,'CR DE COURSE'!$O$21:$T$28,5))) -> 0
A53: Coût des installations: | I53: =IF(I$27="",0,(VLOOKUP($A53,'CR DE COURSE'!$O$21:$T$28,5))) -> 0 | K53: =IF(K$27="",0,(VLOOKUP($A53,'CR DE COURSE'!$O$21:$T$28,5))) -> 0 | M53: =IF(M$27="",0,(VLOOKUP($A53,'CR DE COURSE'!$O$21:$T$28,5))) -> 0 | O53: =IF(O$27="",0,(VLOOKUP($A53,'CR DE COURSE'!$O$21:$T$28,5))) -> 0 | Q53: =IF(Q$27="",0,(VLOOKUP($A53,'CR DE COURSE'!$O$21:$T$28,5))) -> 0 | S53: =IF(S$27="",0,(VLOOKUP($A53,'CR DE COURSE'!$O$21:$T$28,5))) -> 0 | U53: =IF(U$27="",0,(VLOOKUP($A53,'CR DE COURSE'!$O$21:$T$28,5))) -> 0 | W53: =IF(W$27="",0,(VLOOKUP($A53,'CR DE COURSE'!$O$21:$T$28,5))) -> 0 | Y53: =IF(Y$27="",0,(VLOOKUP($A53,'CR DE COURSE'!$O$21:$T$28,5))) -> 0 | AA53: =IF(AA$27="",0,(VLOOKUP($A53,'CR DE COURSE'!$O$21:$T$28,5))) -> 0 | AC53: =IF(AC$27="",0,(VLOOKUP($A53,'CR DE COURSE'!$O$21:$T$28,5))) -> 0 | AE53: =IF(AE$27="",0,(VLOOKUP($A53,'CR DE COURSE'!$O$21:$T$28,5))) -> 0 | AG53: =IF(AG$27="",0,(VLOOKUP($A53,'CR DE COURSE'!$O$21:$T$28,5))) -> 0 | AI53: =IF(AI$27="",0,(VLOOKUP($A53,'CR DE COURSE'!$O$21:$T$28,5))) -> 0 | AK53: =IF(AK$27="",0,(VLOOKUP($A53,'CR DE COURSE'!$O$21:$T$28,5))) -> 0 | AM53: =IF(AM$27="",0,(VLOOKUP($A53,'CR DE COURSE'!$O$21:$T$28,5))) -> 0 | AO53: =IF(AO$27="",0,(VLOOKUP($A53,'CR DE COURSE'!$O$21:$T$28,5))) -> 0 | AQ53: =IF(AQ$27="",0,(VLOOKUP($A53,'CR DE COURSE'!$O$21:$T$28,5))) -> 0
A54: Cout des Pneumatques | I54: =IF(I27>0,-LOOKUP('Tyre&Fuel'!$C$10,'Setup&WS'!$J$31:$J$39,'Setup&WS'!$M$31:$M$39),0) -> 0 | K54: =IF(K27>0,-LOOKUP('Tyre&Fuel'!$C$10,'Setup&WS'!$J$31:$J$39,'Setup&WS'!$M$31:$M$39),0) -> 0 | M54: =IF(M27>0,-LOOKUP('Tyre&Fuel'!$C$10,'Setup&WS'!$J$31:$J$39,'Setup&WS'!$M$31:$M$39),0) -> 0 | O54: =IF(O27>0,-LOOKUP('Tyre&Fuel'!$C$10,'Setup&WS'!$J$31:$J$39,'Setup&WS'!$M$31:$M$39),0) -> 0 | Q54: =IF(Q27>0,-LOOKUP('Tyre&Fuel'!$C$10,'Setup&WS'!$J$31:$J$39,'Setup&WS'!$M$31:$M$39),0) -> 0 | S54: =IF(S27>0,-LOOKUP('Tyre&Fuel'!$C$10,'Setup&WS'!$J$31:$J$39,'Setup&WS'!$M$31:$M$39),0) -> 0 | U54: =IF(U27>0,-LOOKUP('Tyre&Fuel'!$C$10,'Setup&WS'!$J$31:$J$39,'Setup&WS'!$M$31:$M$39),0) -> 0 | W54: =IF(W27>0,-LOOKUP('Tyre&Fuel'!$C$10,'Setup&WS'!$J$31:$J$39,'Setup&WS'!$M$31:$M$39),0) -> 0 | Y54: =IF(Y27>0,-LOOKUP('Tyre&Fuel'!$C$10,'Setup&WS'!$J$31:$J$39,'Setup&WS'!$M$31:$M$39),0) -> 0 | AA54: =IF(AA27>0,-LOOKUP('Tyre&Fuel'!$C$10,'Setup&WS'!$J$31:$J$39,'Setup&WS'!$M$31:$M$39),0) -> 0 | AC54: =IF(AC27>0,-LOOKUP('Tyre&Fuel'!$C$10,'Setup&WS'!$J$31:$J$39,'Setup&WS'!$M$31:$M$39),0) -> 0 | AE54: =IF(AE27>0,-LOOKUP('Tyre&Fuel'!$C$10,'Setup&WS'!$J$31:$J$39,'Setup&WS'!$M$31:$M$39),0) -> 0 | AG54: =IF(AG27>0,-LOOKUP('Tyre&Fuel'!$C$10,'Setup&WS'!$J$31:$J$39,'Setup&WS'!$M$31:$M$39),0) -> 0 | AI54: =IF(AI27>0,-LOOKUP('Tyre&Fuel'!$C$10,'Setup&WS'!$J$31:$J$39,'Setup&WS'!$M$31:$M$39),0) -> 0 | AK54: =IF(AK27>0,-LOOKUP('Tyre&Fuel'!$C$10,'Setup&WS'!$J$31:$J$39,'Setup&WS'!$M$31:$M$39),0) -> 0 | AM54: =IF(AM27>0,-LOOKUP('Tyre&Fuel'!$C$10,'Setup&WS'!$J$31:$J$39,'Setup&WS'!$M$31:$M$39),0) -> 0 | AO54: =IF(AO27>0,-LOOKUP('Tyre&Fuel'!$C$10,'Setup&WS'!$J$31:$J$39,'Setup&WS'!$M$31:$M$39),0) -> 0 | AQ54: =IF(AQ27>0,-LOOKUP('Tyre&Fuel'!$C$10,'Setup&WS'!$J$31:$J$39,'Setup&WS'!$M$31:$M$39),0) -> 0
A55: Balance Définitive | I55: =+I41+I42+I47 -> 61460114 | K55: =+K41+K42+K47 -> 61460114 | M55: =+M41+M42+M47 -> 61460114 | O55: =+O41+O42+O47 -> 61460114 | Q55: =+Q41+Q42+Q47 -> 61460114 | S55: =+S41+S42+S47 -> 61460114 | U55: =+U41+U42+U47 -> 61460114 | W55: =+W41+W42+W47 -> 61460114 | Y55: =+Y41+Y42+Y47 -> 61460114 | AA55: =+AA41+AA42+AA47 -> 61460114 | AC55: =+AC41+AC42+AC47 -> 61460114 | AE55: =+AE41+AE42+AE47 -> 61460114 | AG55: =+AG41+AG42+AG47 -> 61460114 | AI55: =+AI41+AI42+AI47 -> 61460114 | AK55: =+AK41+AK42+AK47 -> 61460114 | AM55: =+AM41+AM42+AM47 -> 61460114 | AO55: =+AO41+AO42+AO47 -> 61460114
A58: Caisse | I58: RISK | J58: Chassis | K58: Engine | L58: Front wing | M58: Rear wing | N58: Underbody | O58: Sidepods | P58: Cooling | Q58: Gearbox | R58: Brakes | S58: Suspension | T58: Electronics | V58: Chassis | W58: Engine | X58: Front wing | Y58: Rear wing | Z58: Underbody | AA58: Sidepods | AB58: Cooling | AC58: Gearbox | AD58: Brakes | AE58: Suspension | AF58: Electronics
G59: Level | J59: 6 | K59: 6 | L59: 6 | M59: 6 | N59: 6 | O59: 6 | P59: 6 | Q59: 6 | R59: 6 | S59: 6 | T59: 6
A60: A1-Ring | G60: Usure | I60: =+I5 -> 0 | J60: =VLOOKUP(A60,Tracks!$A$3:$AP$889,32,0)*VLOOKUP($J$59,Tables!$B$94:$C$102,2,0)^I60*Tables!$B$91 -> 14.36884462 | K60: =VLOOKUP(A60,Tracks!$A$3:$AP$889,33,0)*VLOOKUP($K$59,Tables!$B$94:$C$102,2,0)^I60*Tables!$B$91 -> 26.87395425 | L60: =VLOOKUP(A60,Tracks!$A$3:$AP$889,34,0)*VLOOKUP($L$59,Tables!$B$94:$C$102,2,0)^I60*Tables!$B$91 -> 10.21432147 | M60: =VLOOKUP(A60,Tracks!$A$3:$AP$889,35,0)*VLOOKUP($M$59,Tables!$B$94:$C$102,2,0)^I60*Tables!$B$91 -> 10.73762624 | N60: =VLOOKUP(A60,Tracks!$A$3:$AP$889,36,0)*VLOOKUP($N$59,Tables!$B$94:$C$102,2,0)^I60*Tables!$B$91 -> 10.61148598 | O60: =VLOOKUP(A60,Tracks!$A$3:$AP$889,37,0)*VLOOKUP($O$59,Tables!$B$94:$C$102,2,0)^I60*Tables!$B$91 -> 12.21128894 | P60: =VLOOKUP(A60,Tracks!$A$3:$AP$889,38,0)*VLOOKUP($P$59,Tables!$B$94:$C$102,2,0)^I60*Tables!$B$91 -> 9.259404244 | Q60: =VLOOKUP(A60,Tracks!$A$3:$AP$889,39,0)*VLOOKUP($Q$59,Tables!$B$94:$C$102,2,0)^I60*Tables!$B$91 -> 18.00056959 | R60: =VLOOKUP(A60,Tracks!$A$3:$AP$889,40,0)*VLOOKUP($R$59,Tables!$B$94:$C$102,2,0)^I60*Tables!$B$91 -> 20.98386271 | S60: =VLOOKUP(A60,Tracks!$A$3:$AP$889,41,0)*VLOOKUP($S$59,Tables!$B$94:$C$102,2,0)^I60*Tables!$B$91 -> 13.6064306 | T60: =VLOOKUP(A60,Tracks!$A$3:$AP$889,42,0)*VLOOKUP($T$59,Tables!$B$94:$C$102,2,0)^I60*Tables!$B$91 -> 10.75687656 | V60: =+J60 -> 14.36884462 | W60: =+K60 -> 26.87395425 | X60: 10.21432147 | Y60: 10.73762624 | Z60: 10.61148598 | AA60: 12.21128894 | AB60: 9.259404244 | AC60: 18.00056959 | AD60: 20.98386271 | AE60: 13.6064306 | AF60: 10.75687656
A61: Magny Cours | G61: Usure | I61: =+I6 -> 0 | J61: =VLOOKUP(A61,Tracks!$A$3:$AP$889,32,0)*VLOOKUP($J$59,Tables!$B$94:$C$102,2,0)^I61*Tables!$B$91 -> 11.88555325 | K61: =VLOOKUP(A61,Tracks!$A$3:$AP$889,33,0)*VLOOKUP($K$59,Tables!$B$94:$C$102,2,0)^I61*Tables!$B$91 -> 25.73615898 | L61: =VLOOKUP(A61,Tracks!$A$3:$AP$889,34,0)*VLOOKUP($L$59,Tables!$B$94:$C$102,2,0)^I61*Tables!$B$91 -> 14.75283786 | M61: =VLOOKUP(A61,Tracks!$A$3:$AP$889,35,0)*VLOOKUP($M$59,Tables!$B$94:$C$102,2,0)^I61*Tables!$B$91 -> 13.04158567 | N61: =VLOOKUP(A61,Tracks!$A$3:$AP$889,36,0)*VLOOKUP($N$59,Tables!$B$94:$C$102,2,0)^I61*Tables!$B$91 -> 13.89467883 | O61: =VLOOKUP(A61,Tracks!$A$3:$AP$889,37,0)*VLOOKUP($O$59,Tables!$B$94:$C$102,2,0)^I61*Tables!$B$91 -> 10.51878049 | P61: =VLOOKUP(A61,Tracks!$A$3:$AP$889,38,0)*VLOOKUP($P$59,Tables!$B$94:$C$102,2,0)^I61*Tables!$B$91 -> 10.76396878 | Q61: =VLOOKUP(A61,Tracks!$A$3:$AP$889,39,0)*VLOOKUP($Q$59,Tables!$B$94:$C$102,2,0)^I61*Tables!$B$91 -> 17.64849136 | R61: =VLOOKUP(A61,Tracks!$A$3:$AP$889,40,0)*VLOOKUP($R$59,Tables!$B$94:$C$102,2,0)^I61*Tables!$B$91 -> 26.5264353 | S61: =VLOOKUP(A61,Tracks!$A$3:$AP$889,41,0)*VLOOKUP($S$59,Tables!$B$94:$C$102,2,0)^I61*Tables!$B$91 -> 20.19611932 | T61: =VLOOKUP(A61,Tracks!$A$3:$AP$889,42,0)*VLOOKUP($T$59,Tables!$B$94:$C$102,2,0)^I61*Tables!$B$91 -> 6.834877014 | V61: =+J61+V60 -> 26.25439788 | W61: =+K61+W60 -> 52.61011323 | X61: 24.96715933 | Y61: 23.77921191 | Z61: 24.50616481 | AA61: 22.73006943 | AB61: 20.02337303 | AC61: 35.64906095 | AD61: 47.51029801 | AE61: 33.80254993 | AF61: 17.59175357
A62: Anderstorp | G62: Usure | I62: 0 | J62: =VLOOKUP(A62,Tracks!$A$3:$AP$889,32,0)*VLOOKUP($J$59,Tables!$B$94:$C$102,2,0)^I62*Tables!$B$91 -> 12.18697275 | K62: =VLOOKUP(A62,Tracks!$A$3:$AP$889,33,0)*VLOOKUP($K$59,Tables!$B$94:$C$102,2,0)^I62*Tables!$B$91 -> 26.60596952 | L62: =VLOOKUP(A62,Tracks!$A$3:$AP$889,34,0)*VLOOKUP($L$59,Tables!$B$94:$C$102,2,0)^I62*Tables!$B$91 -> 9.629719624 | M62: =VLOOKUP(A62,Tracks!$A$3:$AP$889,35,0)*VLOOKUP($M$59,Tables!$B$94:$C$102,2,0)^I62*Tables!$B$91 -> 8.957478162 | N62: =VLOOKUP(A62,Tracks!$A$3:$AP$889,36,0)*VLOOKUP($N$59,Tables!$B$94:$C$102,2,0)^I62*Tables!$B$91 -> 21.11608202 | O62: =VLOOKUP(A62,Tracks!$A$3:$AP$889,37,0)*VLOOKUP($O$59,Tables!$B$94:$C$102,2,0)^I62*Tables!$B$91 -> 13.44482923 | P62: =VLOOKUP(A62,Tracks!$A$3:$AP$889,38,0)*VLOOKUP($P$59,Tables!$B$94:$C$102,2,0)^I62*Tables!$B$91 -> 7.343997337 | Q62: =VLOOKUP(A62,Tracks!$A$3:$AP$889,39,0)*VLOOKUP($Q$59,Tables!$B$94:$C$102,2,0)^I62*Tables!$B$91 -> 20.42864293 | R62: =VLOOKUP(A62,Tracks!$A$3:$AP$889,40,0)*VLOOKUP($R$59,Tables!$B$94:$C$102,2,0)^I62*Tables!$B$91 -> 26.26098351 | S62: =VLOOKUP(A62,Tracks!$A$3:$AP$889,41,0)*VLOOKUP($S$59,Tables!$B$94:$C$102,2,0)^I62*Tables!$B$91 -> 10.51270144 | T62: =VLOOKUP(A62,Tracks!$A$3:$AP$889,42,0)*VLOOKUP($T$59,Tables!$B$94:$C$102,2,0)^I62*Tables!$B$91 -> 6.110457052 | V62: =+J62+V61 -> 38.44137062 | W62: =+K62+W61 -> 79.21608275 | X62: =+L62+X61 -> 34.59687895 | Y62: =+M62+Y61 -> 32.73669007 | Z62: =+N62+Z61 -> 45.62224682 | AA62: =+O62+AA61 -> 36.17489866 | AB62: =+P62+AB61 -> 27.36737036 | AC62: =+Q62+AC61 -> 56.07770389 | AD62: =+R62+AD61 -> 73.77128152 | AE62: =+S62+AE61 -> 44.31525137 | AF62: =+T62+AF61 -> 23.70221062
A63: Portimao | G63: Usure | I63: 0 | J63: =VLOOKUP(A63,Tracks!$A$3:$AP$889,32,0)*VLOOKUP($J$59,Tables!$B$94:$C$102,2,0)^I63*Tables!$B$91 -> 12.26194768 | K63: =VLOOKUP(A63,Tracks!$A$3:$AP$889,33,0)*VLOOKUP($K$59,Tables!$B$94:$C$102,2,0)^I63*Tables!$B$91 -> 12.66164513 | L63: =VLOOKUP(A63,Tracks!$A$3:$AP$889,34,0)*VLOOKUP($L$59,Tables!$B$94:$C$102,2,0)^I63*Tables!$B$91 -> 12.24624347 | M63: =VLOOKUP(A63,Tracks!$A$3:$AP$889,35,0)*VLOOKUP($M$59,Tables!$B$94:$C$102,2,0)^I63*Tables!$B$91 -> 13.2893069 | N63: =VLOOKUP(A63,Tracks!$A$3:$AP$889,36,0)*VLOOKUP($N$59,Tables!$B$94:$C$102,2,0)^I63*Tables!$B$91 -> 22.94992836 | O63: =VLOOKUP(A63,Tracks!$A$3:$AP$889,37,0)*VLOOKUP($O$59,Tables!$B$94:$C$102,2,0)^I63*Tables!$B$91 -> 11.15100154 | P63: =VLOOKUP(A63,Tracks!$A$3:$AP$889,38,0)*VLOOKUP($P$59,Tables!$B$94:$C$102,2,0)^I63*Tables!$B$91 -> 10.85464792 | Q63: =VLOOKUP(A63,Tracks!$A$3:$AP$889,39,0)*VLOOKUP($Q$59,Tables!$B$94:$C$102,2,0)^I63*Tables!$B$91 -> 11.65302964 | R63: =VLOOKUP(A63,Tracks!$A$3:$AP$889,40,0)*VLOOKUP($R$59,Tables!$B$94:$C$102,2,0)^I63*Tables!$B$91 -> 16.76804248 | S63: =VLOOKUP(A63,Tracks!$A$3:$AP$889,41,0)*VLOOKUP($S$59,Tables!$B$94:$C$102,2,0)^I63*Tables!$B$91 -> 24.68802968 | T63: =VLOOKUP(A63,Tracks!$A$3:$AP$889,42,0)*VLOOKUP($T$59,Tables!$B$94:$C$102,2,0)^I63*Tables!$B$91 -> 9.329819891 | V63: 50.70331831 | W63: 91.87772788 | X63: 46.84312242 | Y63: 46.02599697 | Z63: 68.57217518 | AA63: 47.3259002 | AB63: 38.22201829 | AC63: 67.73073353 | AD63: 90.539324 | AE63: 69.00328104 | AF63: 33.03203051
A64: Silverstone | G64: Usure | I64: 0 | J64: =VLOOKUP(A64,Tracks!$A$3:$AP$889,32,0)*VLOOKUP($J$59,Tables!$B$94:$C$102,2,0)^I64*Tables!$B$91 -> 12.67279005 | K64: =VLOOKUP(A64,Tracks!$A$3:$AP$889,33,0)*VLOOKUP($K$59,Tables!$B$94:$C$102,2,0)^I64*Tables!$B$91 -> 28.48996801 | L64: =VLOOKUP(A64,Tracks!$A$3:$AP$889,34,0)*VLOOKUP($L$59,Tables!$B$94:$C$102,2,0)^I64*Tables!$B$91 -> 11.33641253 | M64: =VLOOKUP(A64,Tracks!$A$3:$AP$889,35,0)*VLOOKUP($M$59,Tables!$B$94:$C$102,2,0)^I64*Tables!$B$91 -> 13.61605577 | N64: =VLOOKUP(A64,Tracks!$A$3:$AP$889,36,0)*VLOOKUP($N$59,Tables!$B$94:$C$102,2,0)^I64*Tables!$B$91 -> 14.3293308 | O64: =VLOOKUP(A64,Tracks!$A$3:$AP$889,37,0)*VLOOKUP($O$59,Tables!$B$94:$C$102,2,0)^I64*Tables!$B$91 -> 8.674802401 | P64: =VLOOKUP(A64,Tracks!$A$3:$AP$889,38,0)*VLOOKUP($P$59,Tables!$B$94:$C$102,2,0)^I64*Tables!$B$91 -> 8.31056607 | Q64: =VLOOKUP(A64,Tracks!$A$3:$AP$889,39,0)*VLOOKUP($Q$59,Tables!$B$94:$C$102,2,0)^I64*Tables!$B$91 -> 19.03907373 | R64: =VLOOKUP(A64,Tracks!$A$3:$AP$889,40,0)*VLOOKUP($R$59,Tables!$B$94:$C$102,2,0)^I64*Tables!$B$91 -> 13.93672558 | S64: =VLOOKUP(A64,Tracks!$A$3:$AP$889,41,0)*VLOOKUP($S$59,Tables!$B$94:$C$102,2,0)^I64*Tables!$B$91 -> 11.2771418 | T64: =VLOOKUP(A64,Tracks!$A$3:$AP$889,42,0)*VLOOKUP($T$59,Tables!$B$94:$C$102,2,0)^I64*Tables!$B$91 -> 6.239130248 | V64: 63.37610836 | W64: 120.3676959 | X64: 58.17953495 | Y64: 59.64205273 | Z64: 82.90150598 | AA64: 56.0007026 | AB64: 46.53258436 | AC64: 86.76980726 | AD64: 104.4760496 | AE64: 80.28042285 | AF64: 39.27116076
A65: Slovakiaring | G65: Usure | I65: 0 | J65: =VLOOKUP(A65,Tracks!$A$3:$AP$889,32,0)*VLOOKUP($J$59,Tables!$B$94:$C$102,2,0)^I65*Tables!$B$91 -> 10.86629943 | K65: =VLOOKUP(A65,Tracks!$A$3:$AP$889,33,0)*VLOOKUP($K$59,Tables!$B$94:$C$102,2,0)^I65*Tables!$B$91 -> 25.14294515 | L65: =VLOOKUP(A65,Tracks!$A$3:$AP$889,34,0)*VLOOKUP($L$59,Tables!$B$94:$C$102,2,0)^I65*Tables!$B$91 -> 12.85820104 | M65: =VLOOKUP(A65,Tracks!$A$3:$AP$889,35,0)*VLOOKUP($M$59,Tables!$B$94:$C$102,2,0)^I65*Tables!$B$91 -> 14.60086164 | N65: =VLOOKUP(A65,Tracks!$A$3:$AP$889,36,0)*VLOOKUP($N$59,Tables!$B$94:$C$102,2,0)^I65*Tables!$B$91 -> 19.1930763 | O65: =VLOOKUP(A65,Tracks!$A$3:$AP$889,37,0)*VLOOKUP($O$59,Tables!$B$94:$C$102,2,0)^I65*Tables!$B$91 -> 9.471157772 | P65: =VLOOKUP(A65,Tracks!$A$3:$AP$889,38,0)*VLOOKUP($P$59,Tables!$B$94:$C$102,2,0)^I65*Tables!$B$91 -> 8.20975518 | Q65: =VLOOKUP(A65,Tracks!$A$3:$AP$889,39,0)*VLOOKUP($Q$59,Tables!$B$94:$C$102,2,0)^I65*Tables!$B$91 -> 23.08316084 | R65: =VLOOKUP(A65,Tracks!$A$3:$AP$889,40,0)*VLOOKUP($R$59,Tables!$B$94:$C$102,2,0)^I65*Tables!$B$91 -> 15.94483798 | S65: =VLOOKUP(A65,Tracks!$A$3:$AP$889,41,0)*VLOOKUP($S$59,Tables!$B$94:$C$102,2,0)^I65*Tables!$B$91 -> 19.9600496 | T65: =VLOOKUP(A65,Tracks!$A$3:$AP$889,42,0)*VLOOKUP($T$59,Tables!$B$94:$C$102,2,0)^I65*Tables!$B$91 -> 7.692529459 | V65: 74.24240779 | W65: 145.510641 | X65: 71.03773599 | Y65: 74.24291438 | Z65: 102.0945823 | AA65: 65.47186037 | AB65: 54.74233954 | AC65: 109.8529681 | AD65: 120.4208876 | AE65: 100.2404724 | AF65: 46.96369022
A66: Istanbul | G66: Usure | I66: 0 | J66: =VLOOKUP(A66,Tracks!$A$3:$AP$889,32,0)*VLOOKUP($J$59,Tables!$B$94:$C$102,2,0)^I66*Tables!$B$91 -> 13.82882247 | K66: =VLOOKUP(A66,Tracks!$A$3:$AP$889,33,0)*VLOOKUP($K$59,Tables!$B$94:$C$102,2,0)^I66*Tables!$B$91 -> 16.58719079 | L66: =VLOOKUP(A66,Tracks!$A$3:$AP$889,34,0)*VLOOKUP($L$59,Tables!$B$94:$C$102,2,0)^I66*Tables!$B$91 -> 8.760922256 | M66: =VLOOKUP(A66,Tracks!$A$3:$AP$889,35,0)*VLOOKUP($M$59,Tables!$B$94:$C$102,2,0)^I66*Tables!$B$91 -> 9.828808466 | N66: =VLOOKUP(A66,Tracks!$A$3:$AP$889,36,0)*VLOOKUP($N$59,Tables!$B$94:$C$102,2,0)^I66*Tables!$B$91 -> 10.1687286 | O66: =VLOOKUP(A66,Tracks!$A$3:$AP$889,37,0)*VLOOKUP($O$59,Tables!$B$94:$C$102,2,0)^I66*Tables!$B$91 -> 10.55930748 | P66: =VLOOKUP(A66,Tracks!$A$3:$AP$889,38,0)*VLOOKUP($P$59,Tables!$B$94:$C$102,2,0)^I66*Tables!$B$91 -> 13.58616711 | Q66: =VLOOKUP(A66,Tracks!$A$3:$AP$889,39,0)*VLOOKUP($Q$59,Tables!$B$94:$C$102,2,0)^I66*Tables!$B$91 -> 10.78980474 | R66: =VLOOKUP(A66,Tracks!$A$3:$AP$889,40,0)*VLOOKUP($R$59,Tables!$B$94:$C$102,2,0)^I66*Tables!$B$91 -> 22.67282505 | S66: =VLOOKUP(A66,Tracks!$A$3:$AP$889,41,0)*VLOOKUP($S$59,Tables!$B$94:$C$102,2,0)^I66*Tables!$B$91 -> 10.0121931 | T66: =VLOOKUP(A66,Tracks!$A$3:$AP$889,42,0)*VLOOKUP($T$59,Tables!$B$94:$C$102,2,0)^I66*Tables!$B$91 -> 8.651499381 | V66: 88.07123026 | W66: 162.0978318 | X66: 79.79865824 | Y66: 84.07172284 | Z66: 112.2633109 | AA66: 76.03116785 | AB66: 68.32850665 | AC66: 120.6427728 | AD66: 143.0937126 | AE66: 110.2526655 | AF66: 55.6151896
A67: Grobnik | G67: Usure | I67: 0 | J67: =VLOOKUP(A67,Tracks!$A$3:$AP$889,32,0)*VLOOKUP($J$59,Tables!$B$94:$C$102,2,0)^I67*Tables!$B$91 -> 15.51307251 | K67: =VLOOKUP(A67,Tracks!$A$3:$AP$889,33,0)*VLOOKUP($K$59,Tables!$B$94:$C$102,2,0)^I67*Tables!$B$91 -> 17.97881413 | L67: =VLOOKUP(A67,Tracks!$A$3:$AP$889,34,0)*VLOOKUP($L$59,Tables!$B$94:$C$102,2,0)^I67*Tables!$B$91 -> 11.09967086 | M67: =VLOOKUP(A67,Tracks!$A$3:$AP$889,35,0)*VLOOKUP($M$59,Tables!$B$94:$C$102,2,0)^I67*Tables!$B$91 -> 10.40497095 | N67: =VLOOKUP(A67,Tracks!$A$3:$AP$889,36,0)*VLOOKUP($N$59,Tables!$B$94:$C$102,2,0)^I67*Tables!$B$91 -> 11.64231519 | O67: =VLOOKUP(A67,Tracks!$A$3:$AP$889,37,0)*VLOOKUP($O$59,Tables!$B$94:$C$102,2,0)^I67*Tables!$B$91 -> 14.69747461 | P67: =VLOOKUP(A67,Tracks!$A$3:$AP$889,38,0)*VLOOKUP($P$59,Tables!$B$94:$C$102,2,0)^I67*Tables!$B$91 -> 13.25523708 | Q67: =VLOOKUP(A67,Tracks!$A$3:$AP$889,39,0)*VLOOKUP($Q$59,Tables!$B$94:$C$102,2,0)^I67*Tables!$B$91 -> 18.24194549 | R67: =VLOOKUP(A67,Tracks!$A$3:$AP$889,40,0)*VLOOKUP($R$59,Tables!$B$94:$C$102,2,0)^I67*Tables!$B$91 -> 10.56295153 | S67: =VLOOKUP(A67,Tracks!$A$3:$AP$889,41,0)*VLOOKUP($S$59,Tables!$B$94:$C$102,2,0)^I67*Tables!$B$91 -> 21.00195814 | T67: =VLOOKUP(A67,Tracks!$A$3:$AP$889,42,0)*VLOOKUP($T$59,Tables!$B$94:$C$102,2,0)^I67*Tables!$B$91 -> 9.106850129 | V67: 103.5843028 | W67: 180.076646 | X67: 90.89832911 | Y67: 94.4766938 | Z67: 123.9056261 | AA67: 90.72864246 | AB67: 81.58374373 | AC67: 138.8847183 | AD67: 153.6566641 | AE67: 131.2546237 | AF67: 64.72203973
A68: Hockenheim | G68: Usure | I68: 0 | J68: =VLOOKUP(A68,Tracks!$A$3:$AP$889,32,0)*VLOOKUP($J$59,Tables!$B$94:$C$102,2,0)^I68*Tables!$B$91 -> 14.97421655 | K68: =VLOOKUP(A68,Tracks!$A$3:$AP$889,33,0)*VLOOKUP($K$59,Tables!$B$94:$C$102,2,0)^I68*Tables!$B$91 -> 32.64753069 | L68: =VLOOKUP(A68,Tracks!$A$3:$AP$889,34,0)*VLOOKUP($L$59,Tables!$B$94:$C$102,2,0)^I68*Tables!$B$91 -> 10.67936869 | M68: =VLOOKUP(A68,Tracks!$A$3:$AP$889,35,0)*VLOOKUP($M$59,Tables!$B$94:$C$102,2,0)^I68*Tables!$B$91 -> 11.65353623 | N68: =VLOOKUP(A68,Tracks!$A$3:$AP$889,36,0)*VLOOKUP($N$59,Tables!$B$94:$C$102,2,0)^I68*Tables!$B$91 -> 12.11047805 | O68: =VLOOKUP(A68,Tracks!$A$3:$AP$889,37,0)*VLOOKUP($O$59,Tables!$B$94:$C$102,2,0)^I68*Tables!$B$91 -> 10.12110939 | P68: =VLOOKUP(A68,Tracks!$A$3:$AP$889,38,0)*VLOOKUP($P$59,Tables!$B$94:$C$102,2,0)^I68*Tables!$B$91 -> 10.43367381 | Q68: =VLOOKUP(A68,Tracks!$A$3:$AP$889,39,0)*VLOOKUP($Q$59,Tables!$B$94:$C$102,2,0)^I68*Tables!$B$91 -> 18.60492834 | R68: =VLOOKUP(A68,Tracks!$A$3:$AP$889,40,0)*VLOOKUP($R$59,Tables!$B$94:$C$102,2,0)^I68*Tables!$B$91 -> 25.42004845 | S68: =VLOOKUP(A68,Tracks!$A$3:$AP$889,41,0)*VLOOKUP($S$59,Tables!$B$94:$C$102,2,0)^I68*Tables!$B$91 -> 13.24574039 | T68: =VLOOKUP(A68,Tracks!$A$3:$AP$889,42,0)*VLOOKUP($T$59,Tables!$B$94:$C$102,2,0)^I68*Tables!$B$91 -> 8.891621802 | V68: 118.5585193 | W68: 212.7241766 | X68: 101.5776978 | Y68: 106.13023 | Z68: 136.0161041 | AA68: 100.8497519 | AB68: 92.01741753 | AC68: 157.4896467 | AD68: 179.0767126 | AE68: 144.5003641 | AF68: 73.61366153
A69: Zolder | G69: Usure | I69: 0 | J69: =VLOOKUP(A69,Tracks!$A$3:$AP$889,32,0)*VLOOKUP($J$59,Tables!$B$94:$C$102,2,0)^I69*Tables!$B$91 -> 8.835897189 | K69: =VLOOKUP(A69,Tracks!$A$3:$AP$889,33,0)*VLOOKUP($K$59,Tables!$B$94:$C$102,2,0)^I69*Tables!$B$91 -> 11.57805471 | L69: =VLOOKUP(A69,Tracks!$A$3:$AP$889,34,0)*VLOOKUP($L$59,Tables!$B$94:$C$102,2,0)^I69*Tables!$B$91 -> 12.78677221 | M69: =VLOOKUP(A69,Tracks!$A$3:$AP$889,35,0)*VLOOKUP($M$59,Tables!$B$94:$C$102,2,0)^I69*Tables!$B$91 -> 11.54006066 | N69: =VLOOKUP(A69,Tracks!$A$3:$AP$889,36,0)*VLOOKUP($N$59,Tables!$B$94:$C$102,2,0)^I69*Tables!$B$91 -> 10.38757435 | O69: =VLOOKUP(A69,Tracks!$A$3:$AP$889,37,0)*VLOOKUP($O$59,Tables!$B$94:$C$102,2,0)^I69*Tables!$B$91 -> 11.55475169 | P69: =VLOOKUP(A69,Tracks!$A$3:$AP$889,38,0)*VLOOKUP($P$59,Tables!$B$94:$C$102,2,0)^I69*Tables!$B$91 -> 10.86528626 | Q69: =VLOOKUP(A69,Tracks!$A$3:$AP$889,39,0)*VLOOKUP($Q$59,Tables!$B$94:$C$102,2,0)^I69*Tables!$B$91 -> 20.75437862 | R69: =VLOOKUP(A69,Tracks!$A$3:$AP$889,40,0)*VLOOKUP($R$59,Tables!$B$94:$C$102,2,0)^I69*Tables!$B$91 -> 14.70167253 | S69: =VLOOKUP(A69,Tracks!$A$3:$AP$889,41,0)*VLOOKUP($S$59,Tables!$B$94:$C$102,2,0)^I69*Tables!$B$91 -> 16.18698675 | T69: =VLOOKUP(A69,Tracks!$A$3:$AP$889,42,0)*VLOOKUP($T$59,Tables!$B$94:$C$102,2,0)^I69*Tables!$B$91 -> 9.350083386 | V69: 127.3944165 | W69: 224.3022314 | X69: 114.36447 | Y69: 117.6702907 | Z69: 146.4036785 | AA69: 112.4045035 | AB69: 102.8827038 | AC69: 178.2440253 | AD69: 193.7783851 | AE69: 160.6873508 | AF69: 82.96374492
A70: Hungaroring | G70: Usure | I70: 0 | J70: =VLOOKUP(A70,Tracks!$A$3:$AP$889,32,0)*VLOOKUP($J$59,Tables!$B$94:$C$102,2,0)^I70*Tables!$B$91 -> 12.84908246 | K70: =VLOOKUP(A70,Tracks!$A$3:$AP$889,33,0)*VLOOKUP($K$59,Tables!$B$94:$C$102,2,0)^I70*Tables!$B$91 -> 19.58720129 | L70: =VLOOKUP(A70,Tracks!$A$3:$AP$889,34,0)*VLOOKUP($L$59,Tables!$B$94:$C$102,2,0)^I70*Tables!$B$91 -> 38.52191802 | M70: =VLOOKUP(A70,Tracks!$A$3:$AP$889,35,0)*VLOOKUP($M$59,Tables!$B$94:$C$102,2,0)^I70*Tables!$B$91 -> 35.09130824 | N70: =VLOOKUP(A70,Tracks!$A$3:$AP$889,36,0)*VLOOKUP($N$59,Tables!$B$94:$C$102,2,0)^I70*Tables!$B$91 -> 17.97169411 | O70: =VLOOKUP(A70,Tracks!$A$3:$AP$889,37,0)*VLOOKUP($O$59,Tables!$B$94:$C$102,2,0)^I70*Tables!$B$91 -> 9.460519437 | P70: =VLOOKUP(A70,Tracks!$A$3:$AP$889,38,0)*VLOOKUP($P$59,Tables!$B$94:$C$102,2,0)^I70*Tables!$B$91 -> 7.703167794 | Q70: =VLOOKUP(A70,Tracks!$A$3:$AP$889,39,0)*VLOOKUP($Q$59,Tables!$B$94:$C$102,2,0)^I70*Tables!$B$91 -> 24.51578997 | R70: =VLOOKUP(A70,Tracks!$A$3:$AP$889,40,0)*VLOOKUP($R$59,Tables!$B$94:$C$102,2,0)^I70*Tables!$B$91 -> 15.94635774 | S70: =VLOOKUP(A70,Tracks!$A$3:$AP$889,41,0)*VLOOKUP($S$59,Tables!$B$94:$C$102,2,0)^I70*Tables!$B$91 -> 26.50921133 | T70: =VLOOKUP(A70,Tracks!$A$3:$AP$889,42,0)*VLOOKUP($T$59,Tables!$B$94:$C$102,2,0)^I70*Tables!$B$91 -> 6.425047819 | V70: 140.243499 | W70: 243.8894326 | X70: 152.886388 | Y70: 152.7615989 | Z70: 164.3753726 | AA70: 121.865023 | AB70: 110.5858716 | AC70: 202.7598153 | AD70: 209.7247429 | AE70: 187.1965622 | AF70: 89.38879274
A71: Laguna Seca | G71: Usure | I71: 0 | J71: =VLOOKUP(A71,Tracks!$A$3:$AP$889,32,0)*VLOOKUP($J$59,Tables!$B$94:$C$102,2,0)^I71*Tables!$B$91 -> 15.27310311 | K71: =VLOOKUP(A71,Tracks!$A$3:$AP$889,33,0)*VLOOKUP($K$59,Tables!$B$94:$C$102,2,0)^I71*Tables!$B$91 -> 20.55073049 | L71: =VLOOKUP(A71,Tracks!$A$3:$AP$889,34,0)*VLOOKUP($L$59,Tables!$B$94:$C$102,2,0)^I71*Tables!$B$91 -> 13.3536435 | M71: =VLOOKUP(A71,Tracks!$A$3:$AP$889,35,0)*VLOOKUP($M$59,Tables!$B$94:$C$102,2,0)^I71*Tables!$B$91 -> 8.891621802 | N71: =VLOOKUP(A71,Tracks!$A$3:$AP$889,36,0)*VLOOKUP($N$59,Tables!$B$94:$C$102,2,0)^I71*Tables!$B$91 -> 8.707223993 | O71: =VLOOKUP(A71,Tracks!$A$3:$AP$889,37,0)*VLOOKUP($O$59,Tables!$B$94:$C$102,2,0)^I71*Tables!$B$91 -> 8.006107051 | P71: =VLOOKUP(A71,Tracks!$A$3:$AP$889,38,0)*VLOOKUP($P$59,Tables!$B$94:$C$102,2,0)^I71*Tables!$B$91 -> 12.37542326 | Q71: =VLOOKUP(A71,Tracks!$A$3:$AP$889,39,0)*VLOOKUP($Q$59,Tables!$B$94:$C$102,2,0)^I71*Tables!$B$91 -> 19.99044485 | R71: =VLOOKUP(A71,Tracks!$A$3:$AP$889,40,0)*VLOOKUP($R$59,Tables!$B$94:$C$102,2,0)^I71*Tables!$B$91 -> 21.81466602 | S71: =VLOOKUP(A71,Tracks!$A$3:$AP$889,41,0)*VLOOKUP($S$59,Tables!$B$94:$C$102,2,0)^I71*Tables!$B$91 -> 17.69003152 | T71: =VLOOKUP(A71,Tracks!$A$3:$AP$889,42,0)*VLOOKUP($T$59,Tables!$B$94:$C$102,2,0)^I71*Tables!$B$91 -> 4.726460313 | V71: 155.5166021 | W71: 264.4401631 | X71: 166.2400315 | Y71: 161.6532207 | Z71: 173.0825966 | AA71: 129.87113 | AB71: 122.9612948 | AC71: 222.7502601 | AD71: 231.5394089 | AE71: 204.8865937 | AF71: 94.11525305
A72: Brasilia | G72: Usure | I72: 0 | J72: =VLOOKUP(A72,Tracks!$A$3:$AP$889,32,0)*VLOOKUP($J$59,Tables!$B$94:$C$102,2,0)^I72*Tables!$B$91 -> 9.896184589 | K72: =VLOOKUP(A72,Tracks!$A$3:$AP$889,33,0)*VLOOKUP($K$59,Tables!$B$94:$C$102,2,0)^I72*Tables!$B$91 -> 21.20473481 | L72: =VLOOKUP(A72,Tracks!$A$3:$AP$889,34,0)*VLOOKUP($L$59,Tables!$B$94:$C$102,2,0)^I72*Tables!$B$91 -> 12.78119975 | M72: =VLOOKUP(A72,Tracks!$A$3:$AP$889,35,0)*VLOOKUP($M$59,Tables!$B$94:$C$102,2,0)^I72*Tables!$B$91 -> 15.64240531 | N72: =VLOOKUP(A72,Tracks!$A$3:$AP$889,36,0)*VLOOKUP($N$59,Tables!$B$94:$C$102,2,0)^I72*Tables!$B$91 -> 10.41189055 | O72: =VLOOKUP(A72,Tracks!$A$3:$AP$889,37,0)*VLOOKUP($O$59,Tables!$B$94:$C$102,2,0)^I72*Tables!$B$91 -> 9.615028589 | P72: =VLOOKUP(A72,Tracks!$A$3:$AP$889,38,0)*VLOOKUP($P$59,Tables!$B$94:$C$102,2,0)^I72*Tables!$B$91 -> 11.12263265 | Q72: =VLOOKUP(A72,Tracks!$A$3:$AP$889,39,0)*VLOOKUP($Q$59,Tables!$B$94:$C$102,2,0)^I72*Tables!$B$91 -> 16.40785885 | R72: =VLOOKUP(A72,Tracks!$A$3:$AP$889,40,0)*VLOOKUP($R$59,Tables!$B$94:$C$102,2,0)^I72*Tables!$B$91 -> 22.47322962 | S72: =VLOOKUP(A72,Tracks!$A$3:$AP$889,41,0)*VLOOKUP($S$59,Tables!$B$94:$C$102,2,0)^I72*Tables!$B$91 -> 10.4660954 | T72: =VLOOKUP(A72,Tracks!$A$3:$AP$889,42,0)*VLOOKUP($T$59,Tables!$B$94:$C$102,2,0)^I72*Tables!$B$91 -> 8.785238451 | V72: 165.4127867 | W72: 285.6448979 | X72: 179.0212313 | Y72: 177.295626 | Z72: 183.4944871 | AA72: 139.4861586 | AB72: 134.0839275 | AC72: 239.158119 | AD72: 254.0126385 | AE72: 215.3526891 | AF72: 102.9004915
A73: New Delhi | G73: Usure | I73: =+I18 -> 0 | J73: =VLOOKUP(A73,Tracks!$A$3:$AP$889,32,0)*VLOOKUP($J$59,Tables!$B$94:$C$102,2,0)^I73*Tables!$B$91 -> 13.64898395 | K73: =VLOOKUP(A73,Tracks!$A$3:$AP$889,33,0)*VLOOKUP($K$59,Tables!$B$94:$C$102,2,0)^I73*Tables!$B$91 -> 24.63990388 | L73: =VLOOKUP(A73,Tracks!$A$3:$AP$889,34,0)*VLOOKUP($L$59,Tables!$B$94:$C$102,2,0)^I73*Tables!$B$91 -> 19.16572058 | M73: =VLOOKUP(A73,Tracks!$A$3:$AP$889,35,0)*VLOOKUP($M$59,Tables!$B$94:$C$102,2,0)^I73*Tables!$B$91 -> 16.55679554 | N73: =VLOOKUP(A73,Tracks!$A$3:$AP$889,36,0)*VLOOKUP($N$59,Tables!$B$94:$C$102,2,0)^I73*Tables!$B$91 -> 12.33590944 | O73: =VLOOKUP(A73,Tracks!$A$3:$AP$889,37,0)*VLOOKUP($O$59,Tables!$B$94:$C$102,2,0)^I73*Tables!$B$91 -> 8.20975518 | P73: =VLOOKUP(A73,Tracks!$A$3:$AP$889,38,0)*VLOOKUP($P$59,Tables!$B$94:$C$102,2,0)^I73*Tables!$B$91 -> 10.51574096 | Q73: =VLOOKUP(A73,Tracks!$A$3:$AP$889,39,0)*VLOOKUP($Q$59,Tables!$B$94:$C$102,2,0)^I73*Tables!$B$91 -> 17.0684488 | R73: =VLOOKUP(A73,Tracks!$A$3:$AP$889,40,0)*VLOOKUP($R$59,Tables!$B$94:$C$102,2,0)^I73*Tables!$B$91 -> 23.09835846 | S73: =VLOOKUP(A73,Tracks!$A$3:$AP$889,41,0)*VLOOKUP($S$59,Tables!$B$94:$C$102,2,0)^I73*Tables!$B$91 -> 21.06390352 | T73: =VLOOKUP(A73,Tracks!$A$3:$AP$889,42,0)*VLOOKUP($T$59,Tables!$B$94:$C$102,2,0)^I73*Tables!$B$91 -> 6.60893904 | V73: 179.0617706 | W73: 310.2848018 | X73: 198.1869519 | Y73: 193.8524216 | Z73: 195.8303966 | AA73: 147.6959138 | AB73: 144.5996685 | AC73: 256.2265678 | AD73: 277.110997 | AE73: 236.4165926 | AF73: 109.5094305
A74: Fuji | G74: Usure | I74: 0 | J74: =VLOOKUP(A74,Tracks!$A$3:$AP$889,32,0)*VLOOKUP($J$59,Tables!$B$94:$C$102,2,0)^I74*Tables!$B$91 -> 16.01576021 | K74: =VLOOKUP(A74,Tracks!$A$3:$AP$889,33,0)*VLOOKUP($K$59,Tables!$B$94:$C$102,2,0)^I74*Tables!$B$91 -> 20.09834796 | L74: =VLOOKUP(A74,Tracks!$A$3:$AP$889,34,0)*VLOOKUP($L$59,Tables!$B$94:$C$102,2,0)^I74*Tables!$B$91 -> 10.23965084 | M74: =VLOOKUP(A74,Tracks!$A$3:$AP$889,35,0)*VLOOKUP($M$59,Tables!$B$94:$C$102,2,0)^I74*Tables!$B$91 -> 11.96052819 | N74: =VLOOKUP(A74,Tracks!$A$3:$AP$889,36,0)*VLOOKUP($N$59,Tables!$B$94:$C$102,2,0)^I74*Tables!$B$91 -> 12.02182526 | O74: =VLOOKUP(A74,Tracks!$A$3:$AP$889,37,0)*VLOOKUP($O$59,Tables!$B$94:$C$102,2,0)^I74*Tables!$B$91 -> 11.58869305 | P74: =VLOOKUP(A74,Tracks!$A$3:$AP$889,38,0)*VLOOKUP($P$59,Tables!$B$94:$C$102,2,0)^I74*Tables!$B$91 -> 15.80451327 | Q74: =VLOOKUP(A74,Tracks!$A$3:$AP$889,39,0)*VLOOKUP($Q$59,Tables!$B$94:$C$102,2,0)^I74*Tables!$B$91 -> 14.04108258 | R74: =VLOOKUP(A74,Tracks!$A$3:$AP$889,40,0)*VLOOKUP($R$59,Tables!$B$94:$C$102,2,0)^I74*Tables!$B$91 -> 26.38509742 | S74: =VLOOKUP(A74,Tracks!$A$3:$AP$889,41,0)*VLOOKUP($S$59,Tables!$B$94:$C$102,2,0)^I74*Tables!$B$91 -> 11.12161948 | T74: =VLOOKUP(A74,Tracks!$A$3:$AP$889,42,0)*VLOOKUP($T$59,Tables!$B$94:$C$102,2,0)^I74*Tables!$B$91 -> 10.23357179 | V74: 195.0775308 | W74: 330.3831498 | X74: 208.4266027 | Y74: 205.8129498 | Z74: 207.8522218 | AA74: 159.2846068 | AB74: 160.4041817 | AC74: 270.2676503 | AD74: 303.4960944 | AE74: 247.5382121 | AF74: 119.7430023
A75: Sepang | G75: Usure | I75: 0 | J75: =VLOOKUP(A75,Tracks!$A$3:$AP$889,32,0)*VLOOKUP($J$59,Tables!$B$94:$C$102,2,0)^I75*Tables!$B$91 -> 12.80399619 | K75: =VLOOKUP(A75,Tracks!$A$3:$AP$889,33,0)*VLOOKUP($K$59,Tables!$B$94:$C$102,2,0)^I75*Tables!$B$91 -> 24.30859572 | L75: =VLOOKUP(A75,Tracks!$A$3:$AP$889,34,0)*VLOOKUP($L$59,Tables!$B$94:$C$102,2,0)^I75*Tables!$B$91 -> 16.62163873 | M75: =VLOOKUP(A75,Tracks!$A$3:$AP$889,35,0)*VLOOKUP($M$59,Tables!$B$94:$C$102,2,0)^I75*Tables!$B$91 -> 13.32426143 | N75: =VLOOKUP(A75,Tracks!$A$3:$AP$889,36,0)*VLOOKUP($N$59,Tables!$B$94:$C$102,2,0)^I75*Tables!$B$91 -> 16.68648191 | O75: =VLOOKUP(A75,Tracks!$A$3:$AP$889,37,0)*VLOOKUP($O$59,Tables!$B$94:$C$102,2,0)^I75*Tables!$B$91 -> 9.261937181 | P75: =VLOOKUP(A75,Tracks!$A$3:$AP$889,38,0)*VLOOKUP($P$59,Tables!$B$94:$C$102,2,0)^I75*Tables!$B$91 -> 16.12416991 | Q75: =VLOOKUP(A75,Tracks!$A$3:$AP$889,39,0)*VLOOKUP($Q$59,Tables!$B$94:$C$102,2,0)^I75*Tables!$B$91 -> 18.54211151 | R75: =VLOOKUP(A75,Tracks!$A$3:$AP$889,40,0)*VLOOKUP($R$59,Tables!$B$94:$C$102,2,0)^I75*Tables!$B$91 -> 21.86937746 | S75: =VLOOKUP(A75,Tracks!$A$3:$AP$889,41,0)*VLOOKUP($S$59,Tables!$B$94:$C$102,2,0)^I75*Tables!$B$91 -> 13.17431156 | T75: =VLOOKUP(A75,Tracks!$A$3:$AP$889,42,0)*VLOOKUP($T$59,Tables!$B$94:$C$102,2,0)^I75*Tables!$B$91 -> 9.519283573 | V75: 207.881527 | W75: 354.6917455 | X75: 225.0482414 | Y75: 219.1372112 | Z75: 224.5387037 | AA75: 168.546544 | AB75: 176.5283516 | AC75: 288.8097619 | AD75: 325.3654719 | AE75: 260.7125236 | AF75: 129.2622859
A76: Yas Marina | G76: Usure | I76: 0 | J76: =VLOOKUP(A76,Tracks!$A$3:$AP$889,32,0)*VLOOKUP($J$59,Tables!$B$94:$C$102,2,0)^I76*Tables!$B$91 -> 11.47471088 | K76: =VLOOKUP(A76,Tracks!$A$3:$AP$889,33,0)*VLOOKUP($K$59,Tables!$B$94:$C$102,2,0)^I76*Tables!$B$91 -> 9.125158587 | L76: =VLOOKUP(A76,Tracks!$A$3:$AP$889,34,0)*VLOOKUP($L$59,Tables!$B$94:$C$102,2,0)^I76*Tables!$B$91 -> 17.61049731 | M76: =VLOOKUP(A76,Tracks!$A$3:$AP$889,35,0)*VLOOKUP($M$59,Tables!$B$94:$C$102,2,0)^I76*Tables!$B$91 -> 20.00462929 | N76: =VLOOKUP(A76,Tracks!$A$3:$AP$889,36,0)*VLOOKUP($N$59,Tables!$B$94:$C$102,2,0)^I76*Tables!$B$91 -> 14.36124581 | O76: =VLOOKUP(A76,Tracks!$A$3:$AP$889,37,0)*VLOOKUP($O$59,Tables!$B$94:$C$102,2,0)^I76*Tables!$B$91 -> 10.69963218 | P76: =VLOOKUP(A76,Tracks!$A$3:$AP$889,38,0)*VLOOKUP($P$59,Tables!$B$94:$C$102,2,0)^I76*Tables!$B$91 -> 14.64392157 | Q76: =VLOOKUP(A76,Tracks!$A$3:$AP$889,39,0)*VLOOKUP($Q$59,Tables!$B$94:$C$102,2,0)^I76*Tables!$B$91 -> 17.87442933 | R76: =VLOOKUP(A76,Tracks!$A$3:$AP$889,40,0)*VLOOKUP($R$59,Tables!$B$94:$C$102,2,0)^I76*Tables!$B$91 -> 20.7832541 | S76: =VLOOKUP(A76,Tracks!$A$3:$AP$889,41,0)*VLOOKUP($S$59,Tables!$B$94:$C$102,2,0)^I76*Tables!$B$91 -> 15.21079286 | T76: =VLOOKUP(A76,Tracks!$A$3:$AP$889,42,0)*VLOOKUP($T$59,Tables!$B$94:$C$102,2,0)^I76*Tables!$B$91 -> 10.530432 | V76: 219.3562379 | W76: 363.8169041 | X76: 242.6587387 | Y76: 239.1418405 | Z76: 238.8999496 | AA76: 179.2461762 | AB76: 191.1722732 | AC76: 306.6841912 | AD76: 346.148726 | AE76: 275.9233165 | AF76: 139.7927179
A77: Austin | G77: Usure | J77: =VLOOKUP(A77,Tracks!$A$3:$AP$889,32,0)*VLOOKUP($J$59,Tables!$B$94:$C$102,2,0)^I77*Tables!$B$91 -> 8.833364252 | K77: =VLOOKUP(A77,Tracks!$A$3:$AP$889,33,0)*VLOOKUP($K$59,Tables!$B$94:$C$102,2,0)^I77*Tables!$B$91 -> 20.06744613 | L77: =VLOOKUP(A77,Tracks!$A$3:$AP$889,34,0)*VLOOKUP($L$59,Tables!$B$94:$C$102,2,0)^I77*Tables!$B$91 -> 14.33946255 | M77: =VLOOKUP(A77,Tracks!$A$3:$AP$889,35,0)*VLOOKUP($M$59,Tables!$B$94:$C$102,2,0)^I77*Tables!$B$91 -> 14.36935121 | N77: =VLOOKUP(A77,Tracks!$A$3:$AP$889,36,0)*VLOOKUP($N$59,Tables!$B$94:$C$102,2,0)^I77*Tables!$B$91 -> 9.985343969 | O77: =VLOOKUP(A77,Tracks!$A$3:$AP$889,37,0)*VLOOKUP($O$59,Tables!$B$94:$C$102,2,0)^I77*Tables!$B$91 -> 9.432150543 | P77: =VLOOKUP(A77,Tracks!$A$3:$AP$889,38,0)*VLOOKUP($P$59,Tables!$B$94:$C$102,2,0)^I77*Tables!$B$91 -> 9.714319717 | Q77: =VLOOKUP(A77,Tracks!$A$3:$AP$889,39,0)*VLOOKUP($Q$59,Tables!$B$94:$C$102,2,0)^I77*Tables!$B$91 -> 15.13176522 | R77: =VLOOKUP(A77,Tracks!$A$3:$AP$889,40,0)*VLOOKUP($R$59,Tables!$B$94:$C$102,2,0)^I77*Tables!$B$91 -> 18.07858405 | S77: =VLOOKUP(A77,Tracks!$A$3:$AP$889,41,0)*VLOOKUP($S$59,Tables!$B$94:$C$102,2,0)^I77*Tables!$B$91 -> 7.73305645 | T77: =VLOOKUP(A77,Tracks!$A$3:$AP$889,42,0)*VLOOKUP($T$59,Tables!$B$94:$C$102,2,0)^I77*Tables!$B$91 -> 7.682904299 | U77: 4 | V77: =+(J77*$U$77)+V76 -> 254.6896949 | W77: =+(K77*$U$77)+W76 -> 444.0866886 | X77: 300.0165889 | Y77: 296.6192453 | Z77: 278.8413254 | AA77: 216.9747784 | AB77: 230.0295521 | AC77: 367.2112521 | AD77: 418.4630622 | AE77: 306.8555423 | AF77: 170.5243351
A78: Total Saison | G78: Usure | J78: =SUM(J60:J76) -> 219.3562379 | K78: =SUM(K60:K76) -> 363.8169041 | L78: 242.6587387 | M78: 239.1418405 | N78: 238.8999496 | O78: 179.2461762 | P78: 191.1722732 | Q78: 306.6841912 | R78: 346.148726 | S78: 275.9233165 | T78: 139.7927179
A79: Cout Saison | G79: NOMBRES DE PIECES SAISON | J79: =+J78/100 -> 2.193562379 | K79: =+K78/100 -> 3.638169041 | L79: 2.426587387 | M79: 2.391418405 | N79: 2.388999496 | O79: 1.792461762 | P79: 1.911722732 | Q79: 3.066841912 | R79: 3.46148726 | S79: 2.759233165 | T79: 1.397927179
G80: =-SUM(J80:T80) -> -121352872.8 | J80: =LOOKUP(J59,Tables!$R$3:$Z$4,Tables!$R$4:$Z$4)*J79 -> 8261780.698 | K80: =LOOKUP(K59,Tables!$R$3:$Z$4,Tables!$R$5:$Z$5)*K79 -> 35109026.14 | L80: =LOOKUP(L59,Tables!$R$3:$Z$4,Tables!$R$6:$Z$6)*L79 -> 10969502.33 | M80: =LOOKUP(M59,Tables!$R$3:$Z$4,Tables!$R$7:$Z$7)*M79 -> 10481412.3 | N80: =LOOKUP(N59,Tables!$R$3:$Z$4,Tables!$R$8:$Z$8)*N79 -> 3551202.359 | O80: =LOOKUP(O59,Tables!$R$3:$Z$4,Tables!$R$9:$Z$9)*O79 -> 2401751.779 | P80: =LOOKUP(P59,Tables!$R$3:$Z$4,Tables!$R$10:$Z$10)*P79 -> 2532105.435 | Q80: =LOOKUP(Q59,Tables!$R$3:$Z$4,Tables!$R$11:$Z$11)*Q79 -> 27686461.26 | R80: =LOOKUP(R59,Tables!$R$3:$Z$4,Tables!$R$12:$Z$12)*R79 -> 7037127.446 | S80: =LOOKUP(S59,Tables!$R$3:$Z$4,Tables!$R$13:$Z$13)*S79 -> 9499893.547 | T80: =LOOKUP(T59,Tables!$R$3:$Z$4,Tables!$R$14:$Z$14)*T79 -> 3822609.504
A81: GAINS SAISON | F81: 5 | G81: =LOOKUP(F81,Tables!X19:X43,Tables!AE19:AE43)*17 -> 197496410.3
A82: Tresorerie debut | G82: =I32 -> 61460114
A83: Divers Cout | G83: =-(2500000)*17 -> -42500000
A84: FIN DE SAISON Sans Bonus | G84: =SUM(G80:I83) -> 95103651.47

Sheet Testing (hidden)
G3: AVANT RACE | I3: Jerez
A7: Driver | G7: Tech director | L7: Perfect Setups | S7: Setup Factor Calculations | AF7: Commentaires du Pilote
A8: OA | C8: =Tables!D43 -> 147.1232 | G8: R&D mechanics | J8: =IMPORTS!$I$8 -> 0 | L8: Rain | M8: Low | N8: Setup | O8: High | P8: Q1 | AF8: Pieces | AH8: Divers Reglages - Info Pilotes | AO8: + / - | AP8: HR | AQ8: AJUST
A9: Concentration | C9: =IMPORTS!$B$7 -> 205 | G9: R&D electronics | J9: =IMPORTS!$I$10 -> 0 | L9: Front Wings | M9: =ROUND($AB$11,0)-IF($J$11=0,$T19/2,$U19/2) -> 443 | N9: =ROUND(AB11+W20,0) -> 586 | O9: =ROUND($AB$11,0)+IF($J$11=0,$T19/2,$U19/2) -> 531 | T9: Track Base | U9: Weather | X9: Driver | AA9: Car | AB9: Setups | AF9: Ailerons | AH9: Je manque un peu d'adhérence dans les courbes | AO9: 0.5 | AP9: =IMPORTS!F38 -> 86.2 | AQ9: =+AO9*$AP$9 -> 43.1
A10: Talent | C10: =IMPORTS!$B$9 -> 210 | G10: R&D aerodynamics | J10: =IMPORTS!$I$12 -> 0 | L10: Rear Wings | M10: =ROUND($AB$11,0)-IF($J$11=0,$T19/2,$U19/2) -> 443 | N10: =ROUND(AB11-W20,0) -> 387 | O10: =ROUND($AB$11,0)+IF($J$11=0,$T19/2,$U19/2) -> 531 | U10: Q1 | V10: Q2 | W10: Race | X10: Q1 | Y10: Q2 | Z10: Race | AB10: Q1 | AC10: Q2 | AD10: Race | AF10: Ailerons | AH10: La voiture est très instable dans de nombreux virages | AO10: 1 | AQ10: =+AO10*$AP$9 -> 86.2
A11: Aggressiveness | C11: =IMPORTS!$B$11 -> 0 | G11: Experience | J11: =IMPORTS!$I$14 -> 0 | L11: Engine | M11: =N11-IF($J$11=0,$T20/2,$U20/2) -> 810 | N11: =ROUND(AB12,0) -> 853 | O11: =N11+IF($J$11=0,$T20/2,$U20/2) -> 896 | S11: Wings | T11: =VLOOKUP($H$24,Tracks!$A$3:$W$889,19,0)*2 -> 498.44 | U11: =IF($J$26="Dry",Tables!D4*$H$26,Tables!B4*$H$26+Tables!C4)*2 -> 620 | V11: =IF($J$21="Dry",Tables!D4*$H$21,Tables!B4*$H$21+Tables!C4)*2 -> 526 | W11: =IF(#REF!="Dry",Tables!D4*#REF!,Tables!B4*#REF!+Tables!C4)*2 ->  | X11: =($C$10*FLOOR(($T$11+U11),1)*(-0.001349079032746))*IF($H$24<>"Indianapolis Oval",1,0.39) -> -316.7367753 | Y11: =($C$10*FLOOR(($T$11+V11),1)*(-0.001349079032746))*IF($H$24<>"Indianapolis Oval",1,0.39) -> -290.1059552 | Z11: =($C$10*FLOOR(($T$11+W11),1)*(-0.001349079032746))*IF($H$24<>"Indianapolis Oval",1,0.39) ->  | AA11: =Tables!M13+Tables!M19 -> 171.77 | AB11: =(T11+U11+X11+AA11)/2 -> 486.7366123 | AC11: =(T11+V11+Y11+AA11)/2 -> 453.0520224 | AD11: =(T11+W11+Z11+AA11)/2 ->  | AF11: Ailerons | AH11: La voiture manque un peu de vitesse dans les lignes droites | AO11: -2 | AQ11: =+AO11*$AP$9 -> -172.4
A12: Experience | C12: =IMPORTS!$B$13 -> 131 | G12: Pit coordination | J12: =IMPORTS!$I$16 -> 0 | L12: Brake | M12: =N12-IF($J$11=0,$T21/2,$U21/2) -> 693 | N12: =ROUND(AB13,0) -> 736 | O12: =N12+IF($J$11=0,$T21/2,$U21/2) -> 779 | S12: Engine | T12: =VLOOKUP($H$24,Tracks!$A$3:$W$889,20,0) -> 714.42 | U12: =IF($J$26="Dry",Tables!D5*$H$26,Tables!B5*$H$26+Tables!C5) -> -157.1 | V12: =IF($J$21="Dry",Tables!D5*$H$21,Tables!B5*$H$21+Tables!C5) -> -190 | W12: =IF(#REF!="Dry",Tables!D5*#REF!,Tables!B5*#REF!+Tables!C5) ->  | X12: =Tables!$G$28+($C$12*(($T$12+U12)*0.001655723+0.0469416263186552))*IF($H$24<>"Indianapolis Oval",1,0.39) -> 127.0319011 | Y12: =(Tables!$G$28+$C$12*(($T$12+V12)*0.001655723+0.0469416263186552))*IF($H$24<>"Indianapolis Oval",1,0.39) -> 119.8959005 | Z12: =(Tables!$G$28+$C$12*(($T$12+W12)*0.001655723+0.0469416263186552))*IF($H$24<>"Indianapolis Oval",1,0.39) ->  | AA12: =Tables!M14+Tables!M20 -> 168.16 | AB12: =T12+U12+X12+AA12 -> 852.5119011 | AC12: =T12+V12+Y12+AA12 -> 812.4759005 | AD12: =T12+W12+Z12+AA12 ->  | AF12: Ailerons | AH12: La voiture pourrait avoir un peu plus de vitesse dans les lignes droites | AO12: -0.5 | AQ12: =+AO12*$AP$9 -> -43.1
A13: Technical insight | C13: =IMPORTS!$B$15 -> 119 | G13: Staff | L13: Gears | M13: =N13-IF($J$11=0,$T22/2,$U22/2) -> 320 | N13: =ROUND(AB14,0) -> 363 | O13: =N13+IF($J$11=0,$T22/2,$U22/2) -> 406 | S13: Brake | T13: =VLOOKUP($H$24,Tracks!$A$3:$W$889,21,0) -> 676.29 | U13: =IF($J$26="Dry",Tables!D6*$H$26,Tables!B6*$H$26+Tables!C6) -> 292.9862382 | V13: =IF($J$21="Dry",Tables!D6*$H$21,Tables!B6*$H$21+Tables!C6) -> 105.5325924 | W13: =IF(#REF!="Dry",Tables!D6*#REF!,Tables!B6*#REF!+Tables!C6) ->  | X13: =Tables!G29 -> -104.58 | Y13: =Tables!G29 -> -104.58 | Z13: =Tables!G29 -> -104.58 | AA13: =Tables!M15+Tables!M21 -> -128.87 | AB13: =T13+U13+X13+AA13 -> 735.8262382 | AC13: =T13+V13+Y13+AA13 -> 548.3725924 | AD13: =T13+W13+Z13+AA13 ->  | AF13: Moteur | AH13: Essayez de favoriser un peu plus les bas régimes | AO13: -0.5 | AP13: =IMPORTS!F39 -> 86.2 | AQ13: =AO13*$AP$13 -> -43.1
A14: Stamina | C14: =IMPORTS!$B$17 -> 96 | G14: Soufflerie: | J14: =IMPORTS!F20 -> 20 | L14: Suspension | M14: =N14-IF($J$11=0,$T23/2,$U23/2) -> 445 | N14: =ROUND(AB15,0) -> 488 | O14: =N14+IF($J$11=0,$T23/2,$U23/2) -> 531 | S14: Gears | T14: =VLOOKUP($H$24,Tracks!$A$3:$W$889,22,0) -> 789.1 | U14: =IF($J$26="Dry",Tables!D7*$H$26,Tables!B7*$H$26+Tables!C7) -> -381.6810282 | V14: =IF($J$21="Dry",Tables!D7*$H$21,Tables!B7*$H$21+Tables!C7) -> -4.742711704 | W14: =IF(#REF!="Dry",Tables!D7*#REF!,Tables!B7*#REF!+Tables!C7) ->  | X14: =Tables!G30 -> 102.5 | Y14: =Tables!G30 -> 102.5 | Z14: =Tables!G30 -> 102.5 | AA14: =Tables!M16+Tables!M22 -> -147.03 | AB14: =T14+U14+X14+AA14 -> 362.8889718 | AC14: =T14+V14+Y14+AA14 -> 739.8272883 | AD14: =T14+W14+Z14+AA14 ->  | AF14: Moteur | AH14: Les tours du moteur sont trop élevés | AO14: -1 | AQ14: =AO14*$AP$13 -> -86.2
A15: Charisma | C15: =IMPORTS!$B$19 -> 63 | G15: Centre d'entraînement aux stands: | J15: =IMPORTS!F22 -> 29 | S15: Suspension | T15: =VLOOKUP($H$24,Tracks!$A$3:$W$889,23,0) -> 511.89 | U15: =IF($J$26="Dry",Tables!D8*$H$26,Tables!B8*$H$26+Tables!C8) -> -304 | V15: =IF($J$21="Dry",Tables!D8*$H$21,Tables!B8*$H$21+Tables!C8) -> -257 | W15: =IF(#REF!="Dry",Tables!D8*#REF!,Tables!B8*#REF!+Tables!C8) ->  | X15: =Tables!G31 -> 210.25 | Y15: =Tables!G31 -> 210.25 | Z15: =Tables!G31 -> 210.25 | AA15: =Tables!M17+Tables!M23 -> 70.06 | AB15: =T15+U15+X15+AA15 -> 488.2 | AC15: =T15+V15+Y15+AA15 -> 535.2 | AD15: =T15+W15+Z15+AA15 ->  | AF15: Moteur | AH15: La puissance du moteur dans les lignes droites n'est pas suffisante | AO15: 2 | AQ15: =AO15*$AP$13 -> 172.4
A16: Motivation | C16: =IMPORTS!$B$21 -> 244 | G16: Atelier de R&D: | J16: =IMPORTS!F24 -> 19 | L16: Recherche | N16: Pneus | O16: Fuel Reel | P16: Tours | AF16: Moteur | AH16: Je pense que je n'ai pas assez de puissance du moteur dans les lignes droites | AO16: 1 | AQ16: =AO16*$AP$13 -> 86.2
A17: Reputation | C17: =IMPORTS!$B$23 -> 0 | G17: Centre de design R&D: | J17: =IMPORTS!F26 -> 19 | L17: Reglages | N17: 0.13 | O17: 14 | P17: 5 | AF17: Freins | AH17: Mettez l'équilibre un peu plus à l'arrière | AO17: -0.5 | AP17: =IMPORTS!F40 -> 86.2 | AQ17: =AO17*$AP$17 -> -43.1
A18: Weight(kg) | C18: =IMPORTS!$B$25 -> 56 | G18: Atelier d'ingénierie: | J18: =IMPORTS!F28 -> 19 | L18: Epingle a cheveux | N18: =($N$17/$P$17)*P18 -> 0.832 | O18: =($O$17/$P$17)*P18 -> 89.6 | P18: 32 | S18: Happy Range | T18: Generic | U18: TD | W18: Wing Split | AF18: Freins | AH18: Je pense que l'efficacité des freins pourrait être plus élevé si l'on déplace l'équilibre à l'arrière | AO18: -1.5 | AQ18: =AO18*$AP$17 -> -129.3
A19: Age | C19: =IMPORTS!$B$27 -> 25 | G19: Laboratoire de chimie et alliages: | J19: =IMPORTS!F30 -> 19 | L19: Virage | N19: =($N$17/$P$17)*P19 -> 0.832 | O19: =($O$17/$P$17)*P19 -> 89.6 | P19: 32 | S19: Wings | T19: =ROUND($C$12*-0.051+$C$13*-0.153+67.594,0)*2+2 -> 88 | U19: =MAX(2,ROUND($C$12*-0.051+$C$13*-0.153+69.592+$J$11*-0.031+$J$10*-0.203,0)*2) -> 90 | W19: Q1 | X19: Q2 | Y19: Race | AF19: Freins | AH19: Je voudrais avoir l'équilibre un peu plus à l'avant | AO19: 0.5 | AQ19: =AO19*$AP$17 -> 43.1
G20: Commerce: | J20: =IMPORTS!F32 -> 29 | L20: Vitesse de pointe | N20: =($N$17/$P$17)*P20 -> 0.806 | O20: =($O$17/$P$17)*P20 -> 86.8 | P20: 31 | S20: Engine | T20: =ROUND($C$12*-0.051+$C$13*-0.153+67.594,0)*2 -> 86 | U20: =MAX(2,ROUND($C$12*-0.051+$C$13*-0.153+69.592+$J$11*-0.031+$J$8*-0.076+$J$9*-0.123,0)*2) -> 90 | W20: =VLOOKUP($H$24,Tracks!$A$3:$Y$889,25,0)+$C$10*-0.246534498671854+3.69107049712848*($B$28+$B$29)/2+$AB$11*-0.189968386659174+$H$26*0.376337780506523+IF($J$26="Wet",58.8818967363256,0) -> 99.6304522 | X20: =VLOOKUP($H$24,Tracks!$A$3:$Y$889,25,0)+$C$10*-0.246534498671854+3.69107049712848*($B$28+$B$29)/2+$AC$11*-0.189968386659174+$H$21*0.376337780506523+IF($J$21="Wet",58.8818967363256,0) -> 29.45968699 | Y20: =VLOOKUP($H$24,Tracks!$A$3:$Y$889,25,0)+$C$10*-0.246534498671854+3.69107049712848*($B$28+$B$29)/2+$AD$11*-0.189968386659174+#REF!*0.376337780506523+IF(#REF!="Wet",58.8818967363256,0) ->  | AF20: Freins | AH20: Je pense que l'efficacité des freins pourrait être plus élevé si l'on déplace l'équilibre à l'avant | AO20: 1.5 | AQ20: =AO20*$AP$17 -> 129.3
A21: Car | N21: =($N$17/$P$17)*P21 -> 0 | O21: =($O$17/$P$17)*P21 -> 0 | S21: Brake | T21: =ROUND($C$12*-0.051+$C$13*-0.153+67.594,0)*2 -> 86 | U21: =MAX(2,ROUND($C$12*-0.051+$C$13*-0.153+69.592+$J$11*-0.031+$J$8*-0.12+$J$9*-0.075,0)*2) -> 90 | AF21: Boite de vitesse | AH21: Je suis très souvent dans le rouge. Mettez le rapport de boite un peu plus élevé | AO21: 0.5 | AP21: =IMPORTS!F41 -> 86.2 | AQ21: =AO21*$AP$21 -> 43.1
A22: Power | C22: =A51 -> 90 | D22: =I51 -> 90 | E22: =D226 -> 0 | N22: =($N$17/$P$17)*P22 -> 0 | O22: =($O$17/$P$17)*P22 -> 0 | S22: Gears | T22: =ROUND($C$12*-0.051+$C$13*-0.153+67.594,0)*2 -> 86 | U22: =MAX(2,ROUND($C$12*-0.051+$C$13*-0.153+69.594+$J$11*-0.031+$J$8*-0.0418+$J$9*-0.157,0)*2) -> 90 | AF22: Boite de vitesse | AH22: Le rapport de boite est trop élevé | AO22: -1 | AQ22: =AO22*$AP$21 -> -86.2
A23: Handling | C23: =B51 -> 95 | D23: =J51 -> 95 | E23: =D227 -> 0 | G23: Stint Details | S23: Suspension | T23: =ROUND($C$12*-0.051+$C$13*-0.153+67.594,0)*2 -> 86 | U23: =MAX(2,ROUND($C$12*-0.051+$C$13*-0.153+69.594+$J$11*-0.031+$J$8*-0.134+$J$10*-0.061,0)*2) -> 90 | AF23: Boite de vitesse | AH23: Je ne peux pas profiter de la puissance du moteur. Raccourcissez les rapports de boite | AO23: -0.5 | AQ23: =AO23*$AP$21 -> -43.1
A24: Acceleration | C24: =C51 -> 92 | D24: =K51 -> 92 | E24: =D228 -> 0 | G24: Track | H24: A1-Ring | L24: Type de Point | M24: P | N24: M | O24: A | AF24: Boite de vitesse | AH24: On dirait que le moteur va exploser. Mettez un espace beaucoup plus élevé entre les vitesses | AO24: 1.5 | AQ24: =AO24*$AP$21 -> 129.3
B25: Level | C25: Avant | D25: Apres | E25: Usure | H25: Temp | I25: Hum | J25: Weather | L25: Point de Test | M25: 25 | N25: 25.6 | O25: 25.6 | P25: . | AF25: Suspension | AH25: Je pense qu'avec une suspension un peu plus rigide, je serai plus rapide | AO25: 1 | AP25: =IMPORTS!F42 -> 86.2 | AQ25: =AO25*$AP$25 -> 86.2
A26: Chassis | B26: =B55 -> 7 | C26: =D55 -> 0.38 | D26: =L55 -> 0.48 | E26: =D26-C26 -> 0.1 | G26: Q1 | H26: 47 | I26: 99 | J26: Wet | L26: Point R&D | M26: 0 | N26: 0 | O26: 0 | AF26: Suspension | AH26: La voiture est trop rigide. Baissez un peu la rigidité | AO26: -0.5 | AQ26: =AO26*$AP$25 -> -43.1
A27: Engine | B27: =B56 -> 6 | C27: =D56 -> 0.44 | D27: =L56 -> 0.6 | E27: =D27-C27 -> 0.16 | L27: Point Inge, | M27: 0 | N27: 0 | O27: 0 | AF27: Suspension | AH27: La rigidité de suspension est trop élevé | AO27: -1 | AQ27: =AO27*$AP$25 -> -86.2
A28: Front wing | B28: 7 | C28: 0 | D28: 0.07 | E28: 0.07 | G28: Determine track Base Values | L28: Pts Car. Caisse | M28: 5 | N28: 5 | O28: 5 | AF28: Suspension | AH28: La rigidité de suspension est trop faible | AO28: 1.5 | AQ28: =AO28*$AP$25 -> 129.3
A29: Rear wing | B29: 7 | C29: 0 | D29: 0.08 | E29: 0.08 | G29: Balance | H29: =W20 -> 99.6304522 | I29: Q1 Setup | J29: Track Base
A30: Underbody | B30: 7 | C30: 0.58 | D30: 0.65 | E30: 0.07 | G30: (FW+RW)/2 | I30: =AVERAGE(N9:N10) -> 486.5 | J30: =((2*I30-AA11-U11*(1-IF($H$24<>"Indianapolis Oval",1,0.39)*C10*0.001349079032746))/(1-IF($H$24<>"Indianapolis Oval",1,0.39)*C10*0.001349079032746))/2 -> 248.9768208
A31: Sidepods | B31: 7 | C31: 0 | D31: 0.1 | E31: 0.1 | G31: Engine | I31: 941 | J31: =(I31-U12-AA12-IF($H$24<>"Indianapolis Oval",1,0.39)*C11*0.29521804804429-IF($H$24<>"Indianapolis Oval",1,0.39)*C12*U12*0.001655723-IF($H$24<>"Indianapolis Oval",1,0.39)*C12*0.0469416263186552)/(1+IF($H$24<>"Indianapolis Oval",1,0.39)*C12*0.001655723) -> 787.1360159
A32: Cooling | B32: 7 | C32: 0 | D32: 0.07 | E32: 0.07 | G32: Brake | I32: =+N12 -> 736 | J32: =I32-U13-X13-AA13 -> 676.4637618
A33: Gearbox | B33: 6 | C33: 0 | D33: 0.13 | E33: 0.13 | G33: Gears | I33: =+N13 -> 363 | J33: =I33-U14-X14-AA14 -> 789.2110282
A34: Brakes | B34: 6 | C34: 0.52 | D34: 0.66 | E34: 0.14 | G34: Suspension | I34: 755 | J34: =I34-U15-X15-AA15 -> 778.69
A35: Suspension | B35: 7 | C35: 0 | D35: 0.1 | E35: 0.1
A36: Electronics | B36: 7 | C36: 0.68 | D36: 0.76 | E36: 0.08
A46: AVANT | I46: APRES
A49: Caractéristiques actuelles de la voiture | I49: Caractéristiques actuelles de la voiture
A50: Puissance | B50: Maniabilité | C50: Accélération | I50: Puissance | J50: Maniabilité | K50: Accélération
A51: 90 | B51: 95 | C51: 92 | I51: 90 | J51: 95 | K51: 92
A52: Historique des caractéristiques de la voiture | I52: Historique des caractéristiques de la voiture
A54: Pièces | B54: Niveau | C54: Action | D54: Usure | F54: Nouveau niveau | G54: Nouvelle usure | I54: Pièces | J54: Niveau | K54: Action | L54: Usure | N54: Nouveau niveau | O54: Nouvelle usure
A55: Châssis: | B55: 7 | D55: 0.38 | F55: 7 | G55: 0.38 | I55: Châssis: | J55: 7 | L55: 0.48 | N55: 7 | O55: 0.48
A56: Moteur: | B56: 6 | D56: 0.44 | F56: 6 | G56: 0.44 | I56: Moteur: | J56: 6 | L56: 0.6 | N56: 6 | O56: 0.6
A57: Aileron avant: | B57: 7 | D57: 0 | F57: 7 | G57: 0 | I57: Aileron avant: | J57: 7 | L57: 0.07 | N57: 7 | O57: 0.07
A58: Aileron arrière: | B58: 7 | D58: 0 | F58: 7 | G58: 0 | I58: Aileron arrière: | J58: 7 | L58: 0.08 | N58: 7 | O58: 0.08
A59: Fond plat: | B59: 7 | D59: 0.58 | F59: 7 | G59: 0.58 | I59: Fond plat: | J59: 7 | L59: 0.65 | N59: 7 | O59: 0.65
A60: Pontons latéraux: | B60: 7 | D60: 0 | F60: 7 | G60: 0 | I60: Pontons latéraux: | J60: 7 | L60: 0.1 | N60: 7 | O60: 0.1
A61: Refroidissement: | B61: 7 | D61: 0 | F61: 7 | G61: 0 | I61: Refroidissement: | J61: 7 | L61: 0.07 | N61: 7 | O61: 0.07
A62: Boîte de vitesse: | B62: 6 | D62: 0 | F62: 6 | G62: 0 | I62: Boîte de vitesse: | J62: 6 | L62: 0.13 | N62: 6 | O62: 0.13
A63: Freins: | B63: 6 | D63: 0.52 | F63: 6 | G63: 0.52 | I63: Freins: | J63: 6 | L63: 0.66 | N63: 6 | O63: 0.66
A64: Suspension: | B64: 7 | D64: 0 | F64: 7 | G64: 0 | I64: Suspension: | J64: 7 | L64: 0.1 | N64: 7 | O64: 0.1
A65: Électronique: | B65: 7 | D65: 0.68 | F65: 7 | G65: 0.68 | I65: Électronique: | J65: 7 | L65: 0.76 | N65: 7 | O65: 0.76

Sheet Tables (hidden)
A1: Setup Calculation - Weather Influence Table | Q1: Voiture | AA1: Entrainement Staff | AF1: Essais
B2: Wet | D2: Dry | R2: Coût | AA2: Non | AB2: 0 | AF2: Oui | AG2: 1000000
B3: Temp | C3: Offset | Q3: Pièce | R3: 1 | S3: 2 | T3: 3 | U3: 4 | V3: 5 | W3: 6 | X3: 7 | Y3: 8 | Z3: 9 | AA3: Gestion du Stress | AB3: 1500000 | AF3: Non | AG3: 0
A4: Wings | B4: 1 | C4: 263 | D4: 6 | Q4: Chassis | R4: 1292539 | S4: 1600810 | T4: 1982603 | U4: 2455453 | V4: 3041079 | W4: 3766376 | X4: 4664657 | Y4: 5777180 | Z4: 7155035 | AA4: Concentration | AB4: 1000000
A5: Engine | B5: 0.7 | C5: -190 | D5: -3 | Q5: Moteur | R5: 3311737 | S5: 4101586 | T5: 5079815 | U5: 6291350 | V5: 7791837 | W5: 9650191 | X5: 11951761 | Y5: 14802255 | Z5: 18332594 | AA5: Efficacité | AB5: 1250000 | AF5: Offre Pilote
A6: Brakes | B6: 3.988375441 | C6: 105.5325924 | D6: 6 | Q6: A.Avant | R6: 1551354 | S6: 1921352 | T6: 2379594 | U6: 2947128 | V6: 3650018 | W6: 4520547 | X6: 5598697 | Y6: 6933985 | Z6: 8587742 | AF6: Non | AG6: 0
A7: Gear | B7: -8.019964182 | C7: -4.742711704 | D7: -4 | Q7: A.Arrière | R7: 1504126 | S7: 1862860 | T7: 2307152 | U7: 2857408 | V7: 3538900 | W7: 4382927 | X7: 5428256 | Y7: 6722895 | Z7: 8326305 | AA7: Entrainement Pilote | AF7: Publique | AG7: 500000
A8: Suspsensions | B8: -1 | C8: -257 | D8: -6 | Q8: Fond Plat | R8: 510128 | S8: 631794 | T8: 782476 | U8: 969097 | V8: 1200226 | W8: 1486481 | X8: 1841006 | Y8: 2280088 | Z8: 2823887 | AA8: Non | AB8: 0 | AF8: Semi-privée | AG8: 1000000
Q9: Pontons | R9: 459831 | S9: 569501 | T9: 705327 | U9: 873547 | V9: 1081888 | W9: 1339918 | X9: 1659489 | Y9: 2055276 | Z9: 2545460 | AA9: Fitness | AB9: 700000 | AF9: privée | AG9: 1500000
A10: Setup Calculation – Car Influence Table | Q10: Refroidissement | R10: 454545 | S10: 562954 | T10: 697219 | U10: 863505 | V10: 1069451 | W10: 1324515 | X10: 1640412 | Y10: 2031650 | Z10: 2516199 | AA10: Yoga | AB10: 700000
B11: Cha | C11: Eng | D11: F Wing | E11: R Wing | F11: Und | G11: Side | H11: Cool | I11: Gear | J11: Brake | K11: Susp | L11: Elec | Q11: Boite de vitesse | R11: 3098104 | S11: 3837002 | T11: 4752127 | U11: 5885509 | V11: 7289203 | W11: 9027678 | X11: 11180779 | Y11: 13847395 | Z11: 17149998 | AA11: Relations Publiques | AB11: 500000 | AF11: Offre TD
B12: Level | Q12: Freins | R12: 697674 | S12: 864069 | T12: 1070150 | U12: 1325380 | V12: 1641484 | W12: 2032978 | X12: 2517843 | Y12: 3118348 | Z12: 3862074 | AA12: Technique | AB12: 600000 | AF12: Non | AG12: 0
A13: Wings | B13: -19.74 | D13: 30.03 | E13: 30.03 | F13: -15.07 | M13: ='Setup&WS'!$B$26*B13+'Setup&WS'!$B$27*C13+'Setup&WS'!$B$28*D13+'Setup&WS'!$B$29*E13+'Setup&WS'!$B$30*F13+'Setup&WS'!$B$31*G13+'Setup&WS'!$B$32*H13+'Setup&WS'!$B$33*I13+'Setup&WS'!$B$34*J13+'Setup&WS'!$B$35*K13+'Setup&WS'!$B$36*L13 -> 176.75 | Q13: Suspensions | R13: 1181545 | S13: 1463343 | T13: 1812351 | U13: 2244597 | V13: 2779933 | W13: 3442947 | X13: 4264090 | Y13: 5281072 | Z13: 6540612 | AA13: Psychologie du Sport | AB13: 400000 | AF13: Publique | AG13: 500000
A14: Engine | C14: 16.04 | H14: 4.9 | L14: 3.34 | M14: ='Setup&WS'!$B$26*B14+'Setup&WS'!$B$27*C14+'Setup&WS'!$B$28*D14+'Setup&WS'!$B$29*E14+'Setup&WS'!$B$30*F14+'Setup&WS'!$B$31*G14+'Setup&WS'!$B$32*H14+'Setup&WS'!$B$33*I14+'Setup&WS'!$B$34*J14+'Setup&WS'!$B$35*K14+'Setup&WS'!$B$36*L14 -> 169.96 | Q14: Electronique | R14: 938416 | S14: 1162228 | T14: 1439420 | U14: 1782721 | V14: 2207900 | W14: 2734484 | X14: 3386659 | Y14: 4194377 | Z14: 5194736 | AA14: Ninja | AB14: 550000 | AF14: Semi-privée | AG14: 1000000
A15: Brakes | B15: 6.04 | J15: -29.14 | L15: 6.11 | M15: ='Setup&WS'!$B$26*B15+'Setup&WS'!$B$27*C15+'Setup&WS'!$B$28*D15+'Setup&WS'!$B$29*E15+'Setup&WS'!$B$30*F15+'Setup&WS'!$B$31*G15+'Setup&WS'!$B$32*H15+'Setup&WS'!$B$33*I15+'Setup&WS'!$B$34*J15+'Setup&WS'!$B$35*K15+'Setup&WS'!$B$36*L15 -> -118.93 | Q15: Total | R15: =SUM(R4:R14) -> 14999999 | S15: 18577499 | T15: 23008234 | U15: 28495695 | V15: 35291919 | W15: 43709042 | X15: 54133649 | Y15: 67044521 | Z15: 83034642 | AA15: Spa resort | AB15: 500000 | AF15: privée | AG15: 1500000
A16: Gearbox | I16: -41 | L16: 9 | M16: ='Setup&WS'!$B$26*B16+'Setup&WS'!$B$27*C16+'Setup&WS'!$B$28*D16+'Setup&WS'!$B$29*E16+'Setup&WS'!$B$30*F16+'Setup&WS'!$B$31*G16+'Setup&WS'!$B$32*H16+'Setup&WS'!$B$33*I16+'Setup&WS'!$B$34*J16+'Setup&WS'!$B$35*K16+'Setup&WS'!$B$36*L16 -> -183
A17: Suspension | B17: -15.27 | F17: -10.72 | G17: 6.03 | K17: 31 | M17: ='Setup&WS'!$B$26*B17+'Setup&WS'!$B$27*C17+'Setup&WS'!$B$28*D17+'Setup&WS'!$B$29*E17+'Setup&WS'!$B$30*F17+'Setup&WS'!$B$31*G17+'Setup&WS'!$B$32*H17+'Setup&WS'!$B$33*I17+'Setup&WS'!$B$34*J17+'Setup&WS'!$B$35*K17+'Setup&WS'!$B$36*L17 -> 77.28 | Q17: Revenus de Qualification | W17: Gpr | X17: Revenus de Course | AD17: Gpr | AF17: Revenus Cup
B18: Wear | Q18: Position | R18: Amateur | S18: Elite | T18: Master | U18: Pro | V18: Rookie | W18: ='Recap Saison'!G31 -> Amateur | X18: Position | Y18: Amateur | Z18: Elite | AA18: Master | AB18: Pro | AC18: Rookie | AD18: =W18 -> Amateur | AE18: 5 | AF18: Rookie | AG18: 600000
A19: Wings | B19: 0.47 | D19: -0.59 | E19: -0.59 | F19: 0.32 | M19: ='Setup&WS'!$C$26*B19+'Setup&WS'!$C$27*C19+'Setup&WS'!$C$28*D19+'Setup&WS'!$C$29*E19+'Setup&WS'!$C$30*F19+'Setup&WS'!$C$31*G19+'Setup&WS'!$C$32*H19+'Setup&WS'!$C$33*I19+'Setup&WS'!$C$34*J19+'Setup&WS'!$C$35*K19+'Setup&WS'!$C$36*L19 -> -4.98 | Q19: 1 | R19: 1000000 | S19: 2500000 | T19: 2000000 | U19: 1500000 | V19: 500000 | W19: =LOOKUP($W$18,GROUPE,R19:V19) -> 1000000 | X19: 1 | Y19: 12000000 | Z19: 22000000 | AA19: 18000000 | AB19: 15000000 | AC19: 8000000 | AD19: =LOOKUP($AD$18,$Y$18:$AC$18,Y19:AC19) -> 12000000 | AE19: 10 | AF19: Amateur | AG19: 700000
A20: Engine | C20: -0.51 | H20: -0.09 | L20: -0.04 | M20: ='Setup&WS'!$C$26*B20+'Setup&WS'!$C$27*C20+'Setup&WS'!$C$28*D20+'Setup&WS'!$C$29*E20+'Setup&WS'!$C$30*F20+'Setup&WS'!$C$31*G20+'Setup&WS'!$C$32*H20+'Setup&WS'!$C$33*I20+'Setup&WS'!$C$34*J20+'Setup&WS'!$C$35*K20+'Setup&WS'!$C$36*L20 -> -1.8 | Q20: 2 | R20: 900000 | S20: 2250000 | T20: 1800000 | U20: 1350000 | V20: 450000 | W20: 900000 | X20: 2 | Y20: 11748717.95 | Z20: 21620512.82 | AA20: 17671794.87 | AB20: 14710256.41 | AC20: 7800000 | AD20: =LOOKUP($AD$18,$Y$18:$AC$18,Y20:AC20) -> 11748717.95 | AE20: 15 | AF20: Pro | AG20: 800000
A21: Brakes | B21: -0.14 | J21: 0.71 | L21: -0.09 | M21: ='Setup&WS'!$C$26*B21+'Setup&WS'!$C$27*C21+'Setup&WS'!$C$28*D21+'Setup&WS'!$C$29*E21+'Setup&WS'!$C$30*F21+'Setup&WS'!$C$31*G21+'Setup&WS'!$C$32*H21+'Setup&WS'!$C$33*I21+'Setup&WS'!$C$34*J21+'Setup&WS'!$C$35*K21+'Setup&WS'!$C$36*L21 -> -9.94 | Q21: 3 | R21: 800000 | S21: 2000000 | T21: 1600000 | U21: 1200000 | V21: 400000 | W21: 800000 | X21: 3 | Y21: 11597435.9 | Z21: 21341025.64 | AA21: 17443589.74 | AB21: 14520512.82 | AC21: 7700000 | AD21: 11597435.9 | AE21: 20 | AF21: Master | AG21: 900000
A22: Gearbox | I22: 1.09 | L22: -0.14 | M22: ='Setup&WS'!$C$26*B22+'Setup&WS'!$C$27*C22+'Setup&WS'!$C$28*D22+'Setup&WS'!$C$29*E22+'Setup&WS'!$C$30*F22+'Setup&WS'!$C$31*G22+'Setup&WS'!$C$32*H22+'Setup&WS'!$C$33*I22+'Setup&WS'!$C$34*J22+'Setup&WS'!$C$35*K22+'Setup&WS'!$C$36*L22 -> 35.97 | Q22: 4 | R22: 740000 | S22: 1850000 | T22: 1480000 | U22: 1110000 | V22: 370000 | W22: 740000 | X22: 4 | Y22: 11446153.85 | Z22: 21061538.46 | AA22: 17215384.62 | AB22: 14330769.23 | AC22: 7600000 | AD22: 11446153.85 | AE22: 25 | AF22: Elite | AG22: 1000000
A23: Suspension | B23: 0.34 | F23: 0.23 | G23: -0.12 | K23: -0.7 | M23: ='Setup&WS'!$C$26*B23+'Setup&WS'!$C$27*C23+'Setup&WS'!$C$28*D23+'Setup&WS'!$C$29*E23+'Setup&WS'!$C$30*F23+'Setup&WS'!$C$31*G23+'Setup&WS'!$C$32*H23+'Setup&WS'!$C$33*I23+'Setup&WS'!$C$34*J23+'Setup&WS'!$C$35*K23+'Setup&WS'!$C$36*L23 -> -7.22 | Q23: 5 | R23: 720000 | S23: 1800000 | T23: 1440000 | U23: 1080000 | V23: 360000 | W23: 720000 | X23: 5 | Y23: 11294871.79 | Z23: 20782051.28 | AA23: 16987179.49 | AB23: 14141025.64 | AC23: 7500000 | AD23: 11294871.79 | AE23: =AVERAGE(AD19:AD23) -> 11617435.9
Q24: 6 | R24: 700000 | S24: 1750000 | T24: 1400000 | U24: 1050000 | V24: 350000 | W24: 700000 | X24: 6 | Y24: 11143589.74 | Z24: 20502564.1 | AA24: 16758974.36 | AB24: 13951282.05 | AC24: 7400000 | AD24: 11143589.74 | AF24: RISK
A25: Setup Calculation – Driver Influence Table | Q25: 7 | R25: 680000 | S25: 1700000 | T25: 1360000 | U25: 1020000 | V25: 340000 | W25: 680000 | X25: 7 | Y25: 10992307.69 | Z25: 20223076.92 | AA25: 16530769.23 | AB25: 13761538.46 | AC25: 7300000 | AD25: 10992307.69 | AF25: 0 | AG25: 0
B26: Conc | C26: Tal | D26: Aggr | E26: Exp | F26: Weight | Q26: 8 | R26: 660000 | S26: 1650000 | T26: 1320000 | U26: 990000 | V26: 330000 | W26: 660000 | X26: 8 | Y26: 10841025.64 | Z26: 19943589.74 | AA26: 16302564.1 | AB26: 13571794.87 | AC26: 7200000 | AD26: 10841025.64 | AF26: 5 | AG26: 1
A27: Wings | Q27: 9 | R27: 640000 | S27: 1600000 | T27: 1280000 | U27: 960000 | V27: 320000 | W27: 640000 | X27: 9 | Y27: 10689743.59 | Z27: 19664102.56 | AA27: 16074358.97 | AB27: 13382051.28 | AC27: 7100000 | AD27: 10689743.59 | AF27: 10 | AG27: 2
A28: Engine | D28: 0.295218048 | G28: ='Setup&WS'!C11*D28*IF('Setup&WS'!F18<>"Indianapolis Oval",1,0.39) -> 0 | Q28: 10 | R28: 620000 | S28: 1550000 | T28: 1240000 | U28: 930000 | V28: 310000 | W28: 620000 | X28: 10 | Y28: 10538461.54 | Z28: 19384615.38 | AA28: 15846153.85 | AB28: 13192307.69 | AC28: 7000000 | AD28: 10538461.54 | AE28: =AVERAGE(AD24:AD28) -> 10841025.64 | AF28: 15 | AG28: 3
A29: Brakes | C29: -0.498 | G29: ='Setup&WS'!C10*C29*IF('Setup&WS'!F18<>"Indianapolis Oval",1,0.39) -> -104.58 | Q29: 11 | R29: 600000 | S29: 1500000 | T29: 1200000 | U29: 900000 | V29: 300000 | W29: 600000 | X29: 11 | Y29: 10387179.49 | Z29: 19105128.21 | AA29: 15617948.72 | AB29: 13002564.1 | AC29: 6900000 | AD29: 10387179.49 | AF29: 20 | AG29: 4
A30: Gearbox | B30: 0.5 | G30: ='Setup&WS'!C9*B30*IF('Setup&WS'!F18<>"Indianapolis Oval",1,0.39) -> 102.5 | Q30: 12 | R30: 580000 | S30: 1450000 | T30: 1160000 | U30: 870000 | V30: 290000 | W30: 580000 | X30: 12 | Y30: 10235897.44 | Z30: 18825641.03 | AA30: 15389743.59 | AB30: 12812820.51 | AC30: 6800000 | AD30: 10235897.44 | AF30: 25 | AG30: 5
A31: Suspension | E31: 0.75 | F31: 2 | G31: ='Setup&WS'!C12*E31*IF('Setup&WS'!F18<>"Indianapolis Oval",1,0.39)+'Setup&WS'!C18*F31+IF('Setup&WS'!H20<>"Dry",'Setup&WS'!C13*0.11,0) -> 210.25 | Q31: 13 | R31: 560000 | S31: 1400000 | T31: 1120000 | U31: 840000 | V31: 280000 | W31: 560000 | X31: 13 | Y31: 10084615.38 | Z31: 18546153.85 | AA31: 15161538.46 | AB31: 12623076.92 | AC31: 6700000 | AD31: 10084615.38 | AF31: 30 | AG31: 6
Q32: 14 | R32: 540000 | S32: 1350000 | T32: 1080000 | U32: 810000 | V32: 270000 | W32: 540000 | X32: 14 | Y32: 9933333.333 | Z32: 18266666.67 | AA32: 14933333.33 | AB32: 12433333.33 | AC32: 6600000 | AD32: 9933333.333 | AF32: 35 | AG32: 7
A33: Driver Overall Calculation | Q33: 15 | R33: 520000 | S33: 1300000 | T33: 1040000 | U33: 780000 | V33: 260000 | W33: 520000 | X33: 15 | Y33: 9782051.282 | Z33: 17987179.49 | AA33: 14705128.21 | AB33: 12243589.74 | AC33: 6500000 | AD33: 9782051.282 | AE33: =AVERAGE(AD29:AD33) -> 10084615.38 | AF33: 40 | AG33: 8
B34: Factor | C34: F*Att | Q34: 16 | R34: 500000 | S34: 1250000 | T34: 1000000 | U34: 750000 | V34: 250000 | W34: 500000 | X34: 16 | Y34: 9630769.231 | Z34: 17707692.31 | AA34: 14476923.08 | AB34: 12053846.15 | AC34: 6400000 | AD34: 9630769.231 | AF34: 45 | AG34: 9
A35: Concentration | B35: 0.1665 | C35: =B35*'Setup&WS'!C9 -> 34.1325 | G35: 0.167 | Q35: 17 | R35: 480000 | S35: 1200000 | T35: 960000 | U35: 720000 | V35: 240000 | W35: 480000 | X35: 17 | Y35: 9479487.179 | Z35: 17428205.13 | AA35: 14248717.95 | AB35: 11864102.56 | AC35: 6300000 | AD35: 9479487.179 | AF35: 50 | AG35: 10
A36: Talent | B36: 0.249 | C36: =B36*'Setup&WS'!C10 -> 52.29 | G36: 0.249 | Q36: 18 | R36: 460000 | S36: 1150000 | T36: 920000 | U36: 690000 | V36: 230000 | W36: 460000 | X36: 18 | Y36: 9328205.128 | Z36: 17148717.95 | AA36: 14020512.82 | AB36: 11674358.97 | AC36: 6200000 | AD36: 9328205.128 | AF36: 55 | AG36: 11
A37: Agressiveness | B37: 0.1455 | C37: =B37*'Setup&WS'!C11 -> 0 | G37: 0.145 | Q37: 19 | R37: 440000 | S37: 1100000 | T37: 880000 | U37: 660000 | V37: 220000 | W37: 440000 | X37: 19 | Y37: 9176923.077 | Z37: 16869230.77 | AA37: 13792307.69 | AB37: 11484615.38 | AC37: 6100000 | AD37: 9176923.077 | AF37: 60 | AG37: 12
A38: Experience | B38: 0.0847 | C38: =B38*'Setup&WS'!C12 -> 11.0957 | G38: 0.087 | Q38: 20 | R38: 420000 | S38: 1050000 | T38: 840000 | U38: 630000 | V38: 210000 | W38: 420000 | X38: 20 | Y38: 9025641.026 | Z38: 16589743.59 | AA38: 13564102.56 | AB38: 11294871.79 | AC38: 6000000 | AD38: 9025641.026 | AE38: =AVERAGE(AD34:AD38) -> 9328205.128 | AF38: 65 | AG38: 13
A39: Technical insight | B39: 0.1245 | C39: =B39*'Setup&WS'!C13 -> 14.8155 | G39: 0.125 | Q39: 21 | R39: 400000 | S39: 1000000 | T39: 800000 | U39: 600000 | V39: 200000 | W39: 400000 | X39: 21 | Y39: 8874358.974 | Z39: 16310256.41 | AA39: 13335897.44 | AB39: 11105128.21 | AC39: 5900000 | AD39: 8874358.974 | AF39: 70 | AG39: 14
A40: Stamina | B40: 0.144 | C40: =B40*'Setup&WS'!C14 -> 13.824 | G40: 0.145 | Q40: 22 | R40: 380000 | S40: 950000 | T40: 760000 | U40: 570000 | V40: 190000 | W40: 380000 | X40: 22 | Y40: 8723076.923 | Z40: 16030769.23 | AA40: 13107692.31 | AB40: 10915384.62 | AC40: 5800000 | AD40: 8723076.923 | AF40: 75 | AG40: 15
A41: Charisma | B41: 0.0829 | C41: =B41*'Setup&WS'!C15 -> 5.2227 | G41: 0.0829 | Q41: 23 | R41: 360000 | S41: 900000 | T41: 720000 | U41: 540000 | V41: 180000 | W41: 360000 | X41: 23 | Y41: 8571794.872 | Z41: 15751282.05 | AA41: 12879487.18 | AB41: 10725641.03 | AC41: 5700000 | AD41: 8571794.872 | AF41: 80 | AG41: 16
A42: Motivation | B42: 0.0835 | C42: =B42*'Setup&WS'!C16 -> 20.374 | D42: OA | G42: 0.084 | Q42: 24 | R42: 340000 | S42: 850000 | T42: 680000 | U42: 510000 | V42: 170000 | W42: 340000 | X42: 24 | Y42: 8420512.821 | Z42: 15471794.87 | AA42: 12651282.05 | AB42: 10535897.44 | AC42: 5600000 | AD42: 8420512.821 | AF42: 85 | AG42: 17
A43: Weight | B43: -0.0827 | C43: =B43*'Setup&WS'!C18 -> -4.6312 | D43: =SUM(C35:C43) -> 147.1232 | G43: -0.0827 | Q43: 25 | R43: 320000 | S43: 800000 | T43: 640000 | U43: 480000 | V43: 160000 | W43: 320000 | X43: 25 | Y43: 8269230.769 | Z43: 15192307.69 | AA43: 12423076.92 | AB43: 10346153.85 | AC43: 5500000 | AD43: 8269230.769 | AE43: =AVERAGE(AD39:AD43) -> 8571794.872 | AF43: 90 | AG43: 18
Q44: 26 | R44: 300000 | S44: 750000 | T44: 600000 | U44: 450000 | V44: 150000 | W44: 300000 | X44: 26 | Y44: 8117948.718 | Z44: 14912820.51 | AA44: 12194871.79 | AB44: 10156410.26 | AC44: 5400000 | AD44: 8117948.718 | AF44: 95 | AG44: 19
A45: Fuel Calculation – Using method 2 | Q45: 27 | R45: 280000 | S45: 700000 | T45: 560000 | U45: 420000 | V45: 140000 | W45: 280000 | X45: 27 | Y45: 7966666.667 | Z45: 14633333.33 | AA45: 11966666.67 | AB45: 9966666.667 | AC45: 5300000 | AD45: 7966666.667 | AF45: 100 | AG45: 20
B46: Conc | C46: Agg | D46: Exp | E46: TI | F46: Eng lvl | G46: Elec lvl | Q46: 28 | R46: 260000 | S46: 650000 | T46: 520000 | U46: 390000 | V46: 130000 | W46: 260000 | X46: 28 | Y46: 7815384.615 | Z46: 14353846.15 | AA46: 11738461.54 | AB46: 9776923.077 | AC46: 5200000 | AD46: 7815384.615
A47: Factors | B47: -0.0001011654572 | C47: 7.060806138e-05 | D47: -8.664550215e-05 | E47: -0.0001639154528 | F47: -0.01269126809 | G47: -0.008355797707 | H47: =B47*'Setup&WS'!C9+C47*'Setup&WS'!C11+D47*'Setup&WS'!C12+E47*'Setup&WS'!C13+F47*'Setup&WS'!B27+G47*'Setup&WS'!B36 -> -0.1989248789 | Q47: 29 | R47: 240000 | S47: 600000 | T47: 480000 | U47: 360000 | V47: 120000 | W47: 240000 | X47: 29 | Y47: 7664102.564 | Z47: 14074358.97 | AA47: 11510256.41 | AB47: 9587179.487 | AC47: 5100000 | AD47: 7664102.564 | AF47: Vide
Q48: 30 | R48: 220000 | S48: 550000 | T48: 440000 | U48: 330000 | V48: 110000 | W48: 220000 | X48: 30 | Y48: 7512820.513 | Z48: 13794871.79 | AA48: 11282051.28 | AB48: 9397435.897 | AC48: 5000000 | AD48: 7512820.513 | AF48: Chicanes
B49: Nbre | C49: Total | D49: Coef | E49: Conso | F49: Tour | G49: CR | H49: Impacte | Q49: 31 | R49: 200000 | S49: 500000 | T49: 400000 | U49: 300000 | V49: 100000 | W49: 200000 | X49: 31 | Y49: 7361538.462 | Z49: 13515384.62 | AA49: 11053846.15 | AB49: 9207692.308 | AC49: 4900000 | AD49: 7361538.462 | AF49: Depassement
A50: Boost | B50: =3*'Tyre&Fuel'!H29 -> 9 | C50: ='Tyre&Fuel'!D22 -> 79 | D50: =B50/C50 -> 0.1139240506 | E50: =VLOOKUP('Setup&WS'!F18,Tracks!$A$3:$AA$889,9,0)*'Tyre&Fuel'!C15 -> 181.5682452 | F50: =E50/C50 -> 2.298332217 | G50: =+B50*3/100 -> 0.27 | H50: =ROUNDUP(F50*B50*D50*(1+G50),0.1) -> 3 | Q50: 32 | R50: 180000 | S50: 450000 | T50: 360000 | U50: 270000 | V50: 90000 | W50: 180000 | X50: 32 | Y50: 7210256.41 | Z50: 13235897.44 | AA50: 10825641.03 | AB50: 9017948.718 | AC50: 4800000 | AD50: 7210256.41 | AF50: Epingle a cheveux
Q51: 33 | R51: 160000 | S51: 400000 | T51: 320000 | U51: 240000 | V51: 80000 | W51: 160000 | X51: 33 | Y51: 7058974.359 | Z51: 12956410.26 | AA51: 10597435.9 | AB51: 8828205.128 | AC51: 4700000 | AD51: 7058974.359 | AF51: freinage
Q52: 34 | R52: 140000 | S52: 350000 | T52: 280000 | U52: 210000 | V52: 70000 | W52: 140000 | X52: 34 | Y52: 6907692.308 | Z52: 12676923.08 | AA52: 10369230.77 | AB52: 8638461.538 | AC52: 4600000 | AD52: 6907692.308 | AF52: Reglages
A53: Tyre Wear Calculation | Q53: 35 | R53: 120000 | S53: 300000 | T53: 240000 | U53: 180000 | V53: 60000 | W53: 120000 | X53: 35 | Y53: 6756410.256 | Z53: 12397435.9 | AA53: 10141025.64 | AB53: 8448717.949 | AC53: 4500000 | AD53: 6756410.256 | AF53: Tester les Limites
B54: Type | C54: Factor | F54: max km | Q54: 36 | R54: 100000 | S54: 250000 | T54: 200000 | U54: 150000 | V54: 50000 | W54: 100000 | X54: 36 | Y54: 6605128.205 | Z54: 12117948.72 | AA54: 9912820.513 | AB54: 8258974.359 | AC54: 4400000 | AD54: 6605128.205 | AF54: Virage
A55: Extra Soft | B55: 0 | C55: 0.9981637502 | E55: =$B$82*$C$82*$D$82*$F$82*$G$82*$H$82*$I$82*($E$81^B55)*(C55^$J$80) -> 0.5980282685 | F55: =E55*$B$77*VLOOKUP('Setup&WS'!$F$18,Tracks!$A$3:$AD$889,30,0) -> 78.60707676 | G55: =+E55*$B$77/#REF! ->  | I55: =E55*B77*G55 ->  | Q55: 37 | R55: 80000 | S55: 200000 | T55: 160000 | U55: 120000 | V55: 40000 | W55: 80000 | X55: 37 | Y55: 6453846.154 | Z55: 11838461.54 | AA55: 9684615.385 | AB55: 8069230.769 | AC55: 4300000 | AD55: 6453846.154 | AF55: Vitesse de pointe
A56: Hard | B56: 3 | C56: 0.995862526 | E56: =$B$82*$C$82*$D$82*$F$82*$G$82*$H$82*$I$82*($E$81^B56)*(C56^$J$80) -> 1.389152366 | F56: =E56*$B$77*VLOOKUP('Setup&WS'!$F$18,Tracks!$A$3:$AD$889,30,0) -> 182.5953929 | G56: =+E56*$B$77/#REF! ->  | Q56: 38 | R56: 60000 | S56: 150000 | T56: 120000 | U56: 90000 | V56: 30000 | W56: 60000 | X56: 38 | Y56: 6302564.103 | Z56: 11558974.36 | AA56: 9456410.256 | AB56: 7879487.179 | AC56: 4200000 | AD56: 6302564.103
A57: Medium | B57: 2 | C57: 0.9963803466 | E57: =$B$82*$C$82*$D$82*$F$82*$G$82*$H$82*$I$82*($E$81^B57)*(C57^$J$80) -> 1.041092518 | F57: =E57*$B$77*VLOOKUP('Setup&WS'!$F$18,Tracks!$A$3:$AD$889,30,0) -> 136.8451021 | G57: =+E57*$B$77/#REF! ->  | Q57: 39 | R57: 40000 | S57: 100000 | T57: 80000 | U57: 60000 | V57: 20000 | W57: 40000 | X57: 39 | Y57: 6151282.051 | Z57: 11279487.18 | AA57: 9228205.128 | AB57: 7689743.59 | AC57: 4100000 | AD57: 6151282.051 | AF57: OUI
A58: Rain | B58: 3.05 | C58: 0.9960878544 | E58: =$B$82*$C$82*$D$82*$F$82*$G$82*$H$82*$I$82*($E$81^B58)*(C58^$J$80) -> 1.420035441 | F58: =E58*$B$77*VLOOKUP('Setup&WS'!$F$18,Tracks!$A$3:$AD$889,30,0)*1.25 -> 233.318475 | G58: =+E58*$B$77/#REF! ->  | Q58: 40 | R58: 20000 | S58: 50000 | T58: 40000 | U58: 30000 | V58: 10000 | W58: 20000 | X58: 40 | Y58: 6000000 | Z58: 11000000 | AA58: 9000000 | AB58: 7500000 | AC58: 4000000 | AD58: 6000000 | AF58: NON
A59: Soft | B59: 1 | C59: 0.9970648448 | E59: =$B$82*$C$82*$D$82*$F$82*$G$82*$H$82*$I$82*($E$81^B59)*(C59^$J$80) -> 0.7841577529 | F59: =E59*$B$77*VLOOKUP('Setup&WS'!$F$18,Tracks!$A$3:$AD$889,30,0) -> 103.0726337 | G59: =+E59*$B$77/#REF! ->  | Q59: 41 | R59: 0 | S59: 0 | T59: 0 | U59: 0 | V59: 0 | W59: 0 | X59: 41 | Y59: 0 | Z59: 0 | AA59: 0 | AB59: 0 | AC59: 0 | AD59: 0
X60: NON | AD60: =LOOKUP($AD$18,$Y$18:$AC$18,Y60:AC60) -> 0
A61: Avonn | B61: ='Setup&WS'!$L31 -> 8 | X61: OUI | Y61: 700000 | Z61: 1000000 | AA61: 900000 | AB61: 800000 | AC61: 600000 | AD61: =LOOKUP($AD$18,$Y$18:$AC$18,Y61:AC61) -> 700000
A62: Badyear | B62: ='Setup&WS'!$L32 -> 7
A63: Bridgerock | B63: ='Setup&WS'!$L33 -> 7 | G63: Coef | H63: =VLOOKUP('Setup&WS'!$F$18,Tracks!$A$3:$AD$889,30,0) -> 1.012847395 | I63: =+H63+(1-#REF!) -> 
A64: Contimental | B64: ='Setup&WS'!$L34 -> 8 | H64: =E59*B77 -> 101.7652158
A65: Dunnolop | B65: ='Setup&WS'!$L35 -> 4 | H65: =H63*H64 -> 103.0726337 | Q65: Energy Calculation
A66: Hancock | B66: ='Setup&WS'!$L36 -> 1
A67: Michelini | B67: ='Setup&WS'!$L37 -> 5 | R67: Base | S67: Coef | T67: Resultat | U67: cr | V67: Coef
A68: Pipirelli | B68: ='Setup&WS'!$L38 -> 1 | Q68: Con. | R68: =+'Setup&WS'!C9 -> 205 | S68: -0.000598972728 | T68: =1+(R68*S68) -> 0.8772105908 | U68: 0 | V68: 2.2
A69: Yokomama | B69: ='Setup&WS'!$L39 -> 3 | Q69: Poids | R69: =+'Setup&WS'!C18 -> 56 | S69: 0.001145883754 | T69: =1-(R69*S69) -> 0.9358305098 | U69: 0.1 | V69: 2
Q70: Tal. | R70: =+'Setup&WS'!C10 -> 210 | S70: -0.001197550141 | T70: =1+(R70*S70) -> 0.7485144704 | U70: 0.2 | V70: 1.8
A71: Very high | B71: 4 | D71: Selected Track | Q71: Agr. | R71: =+'Setup&WS'!C11 -> 0 | S71: -0.0001923447225 | T71: =1-(R71*S71) -> 1 | U71: 0.3 | V71: 1.6
A72: High | B72: 3 | D72: Track Wear | F72: =VLOOKUP('Setup&WS'!F18,Tracks!A3:F889,6,0) -> Medium | Q72: Exp. | R72: =+'Setup&WS'!C12 -> 131 | S72: -0.001709660195 | T72: =1-(R72*S72) -> 1.223965486 | U72: 0.4 | V72: 1.4
A73: Medium | B73: 2 | Q73: AGE | R73: =+'Setup&WS'!C19 -> 25 | S73: 0.003031036181 | T73: 1.075775905 | U73: 0.5 | V73: 1.2
A74: Low | B74: 1 | Q74: End. | R74: =+'Setup&WS'!C14 -> 96 | S74: -0.001373247872 | T74: =1-(R74*S74) -> 1.131831796 | U74: 0.6 | V74: 1
A75: Very low | B75: 0 | Q75: Mot. | R75: =+'Setup&WS'!C16 -> 244 | S75: -8.363048233e-05 | T75: 0.9795941623 | U75: 0.7 | V75: 0.8
Q76: Boost | R76: =+'Tyre&Fuel'!H29 -> 3 | S76: =+'Tyre&Fuel'!D22 -> 79 | T76: =1+(R76/S76) -> 1.037974684 | U76: 0.8 | V76: 0.6
A77: Base Wear | B77: 129.7764582 | Q77: TEMP | S77: 0.006309584663 | T77: 1 | U77: 0.9 | V77: 0.4
Q78: Coef | R78: ='Setup&WS'!F18 -> Adelaide | S78: =LOOKUP(R78,Tracks!A3:A62,Tracks!AR3:AR62) -> 2.898484819 | T78: =+S78 -> 2.898484819 | U78: 1 | V78: 0.2
B79: Trk Wear | C79: AvgT | D79: T Fourn | E79: T Type | F79: Susp | G79: Agg | H79: Exp | I79: Weig | J79: CT
A80: Values | B80: =VLOOKUP(F72,A71:B75,2,0) -> 2 | C80: ='Setup&WS'!F22 -> 32.33333333 | D80: =VLOOKUP('Tyre&Fuel'!C10,A61:B69,2,0) -> 1 | E80: =VLOOKUP('Tyre&Fuel'!C11,A55:C59,2,0) -> 3 | F80: ='Setup&WS'!B35 -> 7 | G80: ='Setup&WS'!C11 -> 0 | H80: ='Setup&WS'!C12 -> 131 | I80: ='Setup&WS'!C18 -> 56 | J80: ='Tyre&Fuel'!J22 -> 30 | S80: Coef | T80: =T68^T69^T70^T71^T72^T73^T74^T75^T76^T77^T78 -> 0.6682701429
A81: Factors | B81: 0.8964161762 | C81: 0.988463622 | D81: 1.048876356 | E81: 1.355293715 | F81: 1.009339294 | G81: 0.999670155 | H81: 1.00022936 | I81: 0.999858329 | J81: =VLOOKUP('Tyre&Fuel'!C11,A55:C59,3,0) -> 0.995862526 | S81: cr | T81: =IF('Setup&WS'!H22="Wet",(100-'Tyre&Fuel'!J23)/100,(100-'Tyre&Fuel'!J22)/100) -> 0.7
A82: Factors^Val | B82: =B81^B80 -> 0.803561961 | C82: 0.6871670641 | D82: 1.048876356 | E82: 2.48943203 | F82: 1.067235507 | G82: 1 | H82: 1.030498551 | I82: 0.9920972542 | J82: 0.8830427108 | K82: =PRODUCT(B82:J82) -> 1.389152366 | S82: Energy | T82: =(T80^T81)*LOOKUP(T81,U68:U78,V68:V78)*IF('Setup&WS'!H22="Wet",0.75,1) -> 0.6033320935
A84: Race Pit Stop Calculation
A86: Lap Calcs | B86: =ROUNDDOWN(VLOOKUP('Setup&WS'!F18,Tracks!$A$3:$H$889,8,0)/('Tyre&Fuel'!$H$22+1),0) -> 39 | C86: =IF('Tyre&Fuel'!$H$22>=1,ROUNDDOWN(VLOOKUP('Setup&WS'!F18,Tracks!$A$3:$H$889,8,0)/('Tyre&Fuel'!$H$22+1),0),"-") -> 39 | D86: =IF('Tyre&Fuel'!$H$22>=2,ROUNDDOWN(VLOOKUP('Setup&WS'!F18,Tracks!$A$3:$H$889,8,0)/('Tyre&Fuel'!$H$22+1),0),"-") -> - | E86: =IF('Tyre&Fuel'!$H$22>=3,ROUNDDOWN(VLOOKUP('Setup&WS'!F18,Tracks!$A$3:$H$889,8,0)/('Tyre&Fuel'!$H$22+1),0),"-") -> - | F86: =IF('Tyre&Fuel'!$H$22>=4,ROUNDDOWN(VLOOKUP('Setup&WS'!F18,Tracks!$A$3:$H$889,8,0)/('Tyre&Fuel'!$H$22+1),0),"-") -> -
B87: =IF(VLOOKUP('Setup&WS'!F18,Tracks!$A$3:$H$889,8,0)-SUM($B$86:$F$86)>0,1,0) -> 1 | C87: =IF(VLOOKUP('Setup&WS'!F18,Tracks!$A$3:$H$889,8,0)-SUM($B$86:$F$86)>1,1,0) -> 0 | D87: =IF(VLOOKUP('Setup&WS'!F18,Tracks!$A$3:$H$889,8,0)-SUM($B$86:$F$86)>2,1,0) -> 0 | E87: =IF(VLOOKUP('Setup&WS'!F18,Tracks!$A$3:$H$889,8,0)-SUM($B$86:$F$86)>3,1,0) -> 0 | F87: =IF(VLOOKUP('Setup&WS'!F18,Tracks!$A$3:$H$889,8,0)-SUM($B$86:$F$86)>4,1,0) -> 0
A89: Parts Wear Calculation
A91: Common Factor | B91: =(0.998789138^'Setup&WS'!C9)*(0.998751839^'Setup&WS'!C10)*(0.998707677^'Setup&WS'!C12)*(1.0009^'Setup&WS'!C11) -> 0.5065873862
B93: Lvl | C93: Factor
A94: CT Risk Factors / Lvl | B94: 1 | C94: 1.019326794
B95: 2 | C95: 1.009955816
B96: 3 | C96: 1.007326162
B97: 4 | C97: 1.005314145
B98: 5 | C98: 1.004326864
B99: 6 | C99: 1.003666914
B100: 7 | C100: 1.004304825
B101: 8 | C101: 1.009690012
B102: 9 | C102: 1.005151955
A104: Pit Stop Estimated Refuel Time
C106: TD | D106: No TD | H106: Using TD?
A107: Fuel Tanked | C107: 0.0314707991 | D107: 0.036 | F107: =IF($H$107="Yes",C107,D107) -> 0.036 | H107: =IF(SUM('Setup&WS'!H8:H12)>0,"Yes","No") -> No
A108: Staff Concentration | C108: -0.09454561846 | D108: -0.08 | F108: =IF($H$107="Yes",C108,D108) -> -0.08
A109: Staff Stress Handling | C109: -0.03553834203 | D109: -0.184 | F109: =IF($H$107="Yes",C109,D109) -> -0.184
A110: TD Experience | C110: -0.009446951288 | D110: 0 | F110: =IF($H$107="Yes",C110,D110) -> 0
A111: TD Pit Coordination | C111: -0.025 | D111: 0 | F111: =IF($H$107="Yes",C111,D111) -> 0
A113: Base Pitstop | C113: 26.26 | E113: 24.26
A115: Tyre Compound Difference
A117: Pipirelli | B117: 0
A118: Avonn | B118: 0.021
A119: Yokomama | B119: 0.05
A120: Dunnolop | B120: 0.07
A121: Contimental | B121: 0.028
A122: Badyear | B122: 0.09
A123: Bridgerock | B123: 0.04
A124: Hancock | B124: 0.1
A125: Michelini | B125: 0.11

Sheet CR DE COURSE (hidden)
A1: COPIER COLLER DE CR DE COURSE
A2: Temps au tour
A3: Qualification 1 | B3: Qualification 2 | N3: Analyse financière de la course précédente
A4: 1:25.334s (#2) | B4: 1:27.341s (#3) | N4: Gains
N5: Position en course (3): | O5: $11.597.436
A6: Réglages utilisés | N6: Position en qualifs (2): | O6: $900.000
A7: Session | B7: A.Av. | C7: A.Ar. | D7: Mot. | E7: Fre. | F7: B.V. | G7: Susp. | H7: Pneus | N7: Gains par sponsor: | O7: $596.052
A8: Q1 | B8: 677 | C8: 691 | D8: 810 | E8: 556 | F8: 564 | G8: 543 | H8: Tendres | N8: Coûts
A9: Q2 | B9: 666 | C9: 677 | D9: 821 | E9: 538 | F9: 576 | G9: 561 | H9: Tendres | N9: Bonus de podium: | O9: $-1.000
A10: Course | B10: 669 | C10: 681 | D10: 818 | E10: 543 | F10: 573 | G10: 556 | H10: Tendres | N10: Salaire du pilote: | O10: $-1.454.522
N11: Salaire du personnel: | O11: $-665.000
A12: Risques utilisés | N12: Coût des installations: | O12: $-775.000
A13: Risque en Q1 | C13: Risque en Q2 | N13: Contrat pneus (Pipirelli): | O13: $-250.000
A14: Pousser la voiture à la limite | B14: Pousser la voiture à la limite
A15: Risques au départ | N15: Total: | O15: $9.947.966
A16: Forcer son chemin vers l'avant
A17: Dépassement | B17: Défense | C17: Sec et dégagé | D17: Mouillé | E17: Disfonctionnement | N17: Balance actuelle: | O17: $35.906.206
A18: 30 | B18: 60 | C18: 30 | D18: 0 | E18: 0
A20: Caractéristiques pilote
A21: Pilotes | B21: NG | C21: Con. | D21: Tal. | E21: Agr. | F21: Exp. | G21: Tech. | H21: End. | I21: Cha. | J21: Mot. | K21: Rép. | L21: Poids | O21: Bonus de podium: | S21: =RIGHT(T21,6) -> -1.000 | T21: =IFERROR(VLOOKUP(O21,$N$6:$O$15,2,0),0) -> $-1.000
A22: Elio Gabbiani | B22: 146 | C22: 205 | D22: 210 | E22: 0 | F22: 130 | G22: 117 | H22: 90 | I22: 62 | J22: 244 | K22: 0 | L22: 57 | O22: Bonus points pour le DT: | S22: =RIGHT(T22,7)*-1000 -> 0 | T22: 0
A23: (+1) | B23: 0 | C23: 0 | D23: 0 | E23: (+1) | F23: (+2) | G23: (+4) | H23: (+1) | I23: (+6) | J23: 0 | K23: 0 | O23: Coût des installations: | S23: =RIGHT(T23,7)*-1000 -> -775000 | T23: $-775.000
O24: Gains par sponsor: | S24: =RIGHT(T24,7)*1000 -> 596052 | T24: $596.052
A25: Energie du pilote | O25: Salaire du DT : | S25: =RIGHT(T25,7)*-1000 -> 0 | T25: 0
A26: Q1 | O26: Salaire du personnel: | S26: -665000 | T26: $-665.000
A27: 0.8 | C27: 0.75 | O27: Salaire du pilote: | S27: -1454522 | T27: $-1.454.522
A28: Q2 | O28: Tour du pilote le plus rapide: | S28: 1000000 | T28: 0
A29: 0.75 | C29: 0.71
A30: Course
A31: 0.88 | C31: 0.26
A33: Positions | P33: Hum | R33: ='Tyre&Fuel'!C11 -> Hard | Z33: Relais 1 | AB33: 109.654 | AD33: Race
A34: Départ | B34: Arrivée | P34: 9.71 | Z34: Relais 2 | AB34: 111.025
A35: 2 | B35: 3 | O35: Trk Wear | P35: AvgT | Q35: T Fourn | R35: T Type | S35: Susp | T35: Agg | U35: Exp | V35: Weig | W35: CT | Z35: Relais 3 | AB35: 114.389 | AD35: Km
A36: Caractéristiques générales de la voiture | N36: Values | O36: =Tables!B80 -> 2 | P36: 11.2 | Q36: =Tables!D80 -> 1 | R36: =Tables!E80 -> 3 | S36: =Tables!F80 -> 7 | T36: =Tables!G80 -> 0 | U36: =Tables!H80 -> 131 | V36: =Tables!I80 -> 56 | W36: =Tables!J80 -> 30 | Z36: Relais 4 | AB36: 119.565 | AD36: =VLOOKUP('Setup&WS'!$F$18,Tracks!A3:AD889,8,0) -> 79
A37: Puissance | B37: Maniabilité | C37: Accélération | N37: Factors | O37: 0.8964161762 | P37: 0.988463622 | Q37: 1.048876356 | R37: 1.355293715 | S37: 1.009339294 | T37: 0.999670155 | U37: 1.00022936 | V37: 0.999858329 | W37: =Tables!J81 -> 0.995862526 | Z37: Relais 5 | AD37: Laps
A38: 90 | B38: 95 | C38: 92 | N38: Factors^Val | O38: =O37^O36 -> 0.803561961 | P38: =P37^P36 -> 0.8781318651 | Q38: 1.048876356 | R38: 2.48943203 | S38: 1.067235507 | T38: 1 | U38: 1.030498551 | V38: 0.9920972542 | W38: 0.8830427108 | X38: =PRODUCT(O38:W38) -> 1.77519998 | Z38: Moyenne | AB38: =AVERAGE(AB33:AC37) -> 113.65825 | AD38: =VLOOKUP('Setup&WS'!$F$18,Tracks!A3:AD889,9,0) -> 298.6
Z39: Nbre Pit | AC39: =COUNT(AB33:AC37)-1 -> 3
A40: Niveau des pièces de la voiture
A41: Cha. | B41: Mot. | C41: A.Av. | D41: A.Ar. | E41: F.P. | F41: P.L. | G41: Refr. | H41: B.V. | I41: Fre. | J41: Susp. | K41: Elec. | O41: Fuel | Q41: Race | S41: Delta | U41: Piece Caisse | W41: Depart | Y41: =A35 -> 2 | AD41: =+(AD38/AD36)*1.5 -> 5.669620253
A42: 7 | B42: 6 | C42: 7 | D42: 7 | E42: 7 | F42: 7 | G42: 7 | H42: 6 | I42: 6 | J42: 7 | K42: 7 | O42: =+'Tyre&Fuel'!M27 -> 186 | Q42: 217.4 | S42: =IF((O42/AD36)*1.6>ABS(O42-Q42),"OK",O42-Q42) -> -31.4
A43: Usure des pièces de la voiture (au départ) | AD43: =+O45-Q45 -> 119.680688
A44: 0.48 | B44: 0.6 | C44: 0.07 | D44: 0.08 | E44: 0.65 | F44: 0.1 | G44: 0.07 | H44: 0.13 | I44: 0.66 | J44: 0.1 | K44: 0.76 | O44: Pneus | Q44: Race | S44: delta | U44: =M50 -> FALSE | W44: Arrivée | Y44: =B35 -> 3
A45: Usure des pièces de la voiture (à l'arrivée) | O45: =X38*VLOOKUP('Setup&WS'!$F$18,Tracks!A3:AD889,30,0)*Tables!B77*IF('Tyre&Fuel'!C7="Wet",1.25,1) -> 233.338938 | Q45: =+AB38 -> 113.65825 | S45: =IF((AD38/AD36)*1.5>ABS(O45-Q45),"OK",O45-Q45) -> 119.680688
A46: 0.71 | B46: 1 | C46: 0.31 | D46: 0.34 | E46: 0.86 | F46: 0.28 | G46: 0.2 | H46: 0.33 | I46: 0.97 | J46: 0.4 | K46: 0.9
O47: Boost | Q47: =Qualif!F34 -> 1 | R47: =Qualif!H34 -> 35 | S47: =Qualif!J34 -> 55 | T47: DM | U47: forcer vers l'avant | W47: Risk
A48: =+A46-A44 -> 0.23 | B48: =+B46-B44 -> 0.4 | C48: 0.24 | D48: 0.26 | E48: 0.21 | F48: 0.18 | G48: 0.13 | H48: 0.2 | I48: 0.31 | J48: 0.3 | K48: 0.14 | L48: Usure | W48: =A18 -> 30 | X48: =B18 -> 60 | Y48: =C18 -> 30
A49: ='Tyre&Fuel'!S25/100 -> 0.2172569677 | B49: ='Tyre&Fuel'!$S$26/100 -> 0.1279246552 | C49: ='Tyre&Fuel'!$S$27/100 -> 0.2297618779 | D49: ='Tyre&Fuel'!$S$28/100 -> 0.2705036821 | E49: ='Tyre&Fuel'!$S$29/100 -> 0.2452460685 | F49: ='Tyre&Fuel'!$S$30/100 -> 0.1480708147 | G49: ='Tyre&Fuel'!$S$31/100 -> 0.1728558925 | H49: ='Tyre&Fuel'!$S$32/100 -> 0.1644698603 | I49: ='Tyre&Fuel'!$S$33/100 -> 0.1364821629 | J49: ='Tyre&Fuel'!$S$34/100 -> 0.0860360873 | K49: ='Tyre&Fuel'!$S$35/100 -> 0.1236314948 | L49: Est
A50: =+A48-A49 -> 0.01274303233 | B50: =+B48-B49 -> 0.2720753448 | C50: 0.01023812212 | D50: -0.01050368211 | E50: -0.03524606854 | F50: 0.03192918532 | G50: -0.04285589247 | H50: 0.03553013971 | I50: 0.1735178371 | J50: 0.2139639127 | K50: 0.01636850523 | L50: =AVERAGE(A50:K50) -> 0.06161458511 | M50: =IF(L50<0.02,"OK",FALSE) -> FALSE | U50: Energy | W50: Q1 | X50: Q2 | Y50: Race
O51: PMA | Q51: =A38 -> 90 | R51: =B38 -> 95 | S51: =C38 -> 92 | T51: 1
W52: =A27-C27 -> 0.05 | X52: =A29-C29 -> 0.04 | Y52: =A31-C31 -> 0.62
O57: ='Setup&WS'!F18 -> Adelaide

Sheet Tracks (hidden)
A1: Track List | B1: Track Details Table | S1: Track Base Setup | Y1: WS Base | AA1: Fuel 2 Base | AD1: Tyre Base | AF1: Parts Wear Base | AR1: Coef | AU1: Fuel 2 Base | AW1: Tyre Base | AY1: WS Base
A2: Name | B2: Downforce | C2: Overtaking | D2: Suspension | E2: Fuel (5) | F2: Tyre Wear | G2: Lap Length | H2: Laps | I2: Distance | J2: P (10) | K2: H | L2: A | M2: Avg. Speed | N2: Note | O2: Corners (15) | P2: Pit I/O | Q2: Grip | S2: Wings (19) | T2: Engine | U2: Brakes | V2: Gear | W2: Suspension | Y2: WS (25) | AA2: L/km (27) | AB2: L/km (wet) | AD2: Wear (30) | AF2: Cha (32) | AG2: Eng | AH2: FW | AI2: RW | AJ2: UndB | AK2: SidP | AL2: Coo | AM2: GeaB | AN2: Bra | AO2: Sus | AP2: Ele | AR2: Energy | AU2: L/km (27) | AV2: L/km (wet) | AW2: Wear (30) | AY2: WS (25)
A3: A1-Ring | B3: Low | C3: Easy | D3: Medium | E3: High | F3: Medium | G3: 4.325 | H3: 71 | I3: 307.1 | J3: 13 | K3: 8 | L3: 9 | M3: 226.29 | O3: 9 | P3: 21 | Q3: Low | S3: 249.22 | T3: 714.42 | U3: 676.29 | V3: 789.1 | W3: 511.89 | Y3: 141.46 | AA3: 0.875 | AB3: 0.7829 | AD3: 0.962 | AF3: 28.364 | AG3: 53.049 | AH3: 20.163 | AI3: 21.196 | AJ3: 20.947 | AK3: 24.105 | AL3: 18.278 | AM3: 35.533 | AN3: 41.422 | AO3: 26.859 | AP3: 21.234 | AR3: 3.117434458 | AU3: 0.875 | AV3: 0.914375 | AW3: 0.89211 | AY3: 141.46
A4: Adelaide | B4: Medium | C4: Hard | D4: Medium | E4: Low | F4: Medium | G4: 3.78 | H4: 79 | I4: 298.6 | J4: 8 | K4: 9 | L4: 10 | M4: 190.87 | O4: 12 | P4: 19.5 | Q4: Low | S4: 631.9 | T4: 496.9 | U4: 358.33 | V4: 549.99 | W4: 652.05 | Y4: 79.46 | AA4: 0.80699 | AB4: 0.69998 | AD4: 1.012847395 | AF4: 37.701 | AG4: 22.199 | AH4: 39.871 | AI4: 46.941 | AJ4: 42.558 | AK4: 25.695 | AL4: 29.996 | AM4: 29.09 | AN4: 23.684 | AO4: 14.93 | AP4: 21.454 | AR4: 2.898484819 | AU4: 0.80699 | AV4: 0.84330455 | AW4: 0.94557 | AY4: 79.46
A5: Ahvenisto | B5: High | C5: Normal | D5: Soft | E5: Medium | F5: High | G5: 3.04 | H5: 80 | I5: 243.2 | J5: 5 | K5: 10 | L5: 7 | M5: 148.42 | O5: 10 | P5: 11.5 | Q5: Normal | S5: 993.04 | T5: 466.54 | U5: 699.74 | V5: 766.1 | W5: 252.44 | Y5: 228.29049 | AA5: 0.84548 | AB5: 0.796 | AD5: 1.0345 | AF5: 19.005 | AG5: 27.242 | AH5: 26.228 | AI5: 25.398 | AJ5: 21.434 | AK5: 19.066 | AL5: 15.144 | AM5: 23.54 | AN5: 30.804 | AO5: 21.994 | AP5: 11.295 | AR5: 3.762917387 | AU5: 0.84548 | AV5: 0.8835266 | AW5: 0.9336 | AY5: 228.29049
A6: Anderstorp | B6: Low | C6: Very Hard | D6: Soft | E6: High | F6: Medium | G6: 4.026 | H6: 70 | I6: 281.8 | J6: 9 | K6: 11 | L6: 9 | M6: 203.49 | O6: 10 | P6: 13.5 | Q6: Low | S6: 250.72 | T6: 699.88 | U6: 769.29 | V6: 611.18 | W6: 107.05 | Y6: 75.3197 | AA6: 0.90418 | AB6: 0.785 | AD6: 0.9966537581 | AF6: 24.057 | AG6: 52.52 | AH6: 19.009 | AI6: 17.682 | AJ6: 41.683 | AK6: 26.54 | AL6: 14.497 | AM6: 40.326 | AN6: 51.839 | AO6: 20.752 | AP6: 12.062 | AR6: 3.051265739 | AU6: 0.90418 | AV6: 0.9448681 | AW6: 0.971 | AY6: 75.3197
A7: Austin | B7: Medium | C7: Easy | D7: Hard | E7: Medium | F7: Medium | G7: 5.516 | H7: 56 | I7: 308.9 | J7: 11 | K7: 18 | L7: 10 | M7: 190.53 | O7: 20 | P7: 17.5 | Q7: High | S7: 521.56 | T7: 605.59 | U7: 608.9 | V7: 640.62 | W7: 786.9 | Y7: 173.6 | AA7: 0.86169 | AB7: 0.752 | AD7: 1.0502 | AF7: 17.437 | AG7: 39.613 | AH7: 28.306 | AI7: 28.365 | AJ7: 19.711 | AK7: 18.619 | AL7: 19.176 | AM7: 29.87 | AN7: 35.687 | AO7: 15.265 | AP7: 15.166 | AR7: 3.097710655 | AU7: 0.86169 | AV7: 0.90046605 | AW7: 1.00374 | AY7: 173.6
A8: Avus | B8: Low | C8: Easy | D8: Hard | E8: Very High | F8: Low | G8: 4.88 | H8: 64 | I8: 312.3 | J8: 22 | K8: 3 | L8: 9 | M8: 285.89 | O8: 4 | P8: 13 | Q8: Normal | S8: 302.564785 | T8: 636.2622803 | U8: 412.398 | V8: 387.41 | W8: 821.34 | Y8: 103.2451 | AA8: 0.90563 | AB8: =+AA8/1.283 -> 0.7058690569 | AD8: 1.18641 | AF8: 29.641 | AG8: 85.948 | AH8: 16.89 | AI8: 18.291 | AJ8: 35.857 | AK8: 17.695 | AL8: 19.192 | AM8: 26.277 | AN8: 23.155 | AO8: 58.773 | AP8: 21.23 | AR8: 1.925266761 | AU8: 0.90563 | AV8: 0.94638335 | AW8: 1.18641 | AY8: 103.2451
A9: Baku City | B9: Medium | C9: Easy | D9: Hard | E9: High | F9: Very High | G9: 6.006 | H9: 51 | I9: 306.3 | J9: 18 | K9: 8 | L9: 16 | M9: 211.45 | O9: 20 | P9: 17 | Q9: High | S9: 362.0814021 | T9: 615.5639744 | U9: 611.02 | V9: 706 | W9: 791.79 | Y9: 96.7099 | AA9: 0.89345 | AB9: =+AA9/1.283 -> 0.696375682 | AD9: 1.15596 | AF9: 20.6 | AG9: 60.51 | AH9: 19.98 | AI9: 21.81 | AJ9: 18.45 | AK9: 23.86 | AL9: 17.28 | AM9: 26.63 | AN9: 46.2 | AO9: 18.92 | AP9: 14.28 | AR9: 3.591263665 | AU9: 0.89345 | AV9: 0.93365525 | AW9: 1.00055 | AY9: 96.7099
A10: Barcelona | B10: Medium | C10: Hard | D10: Soft | E10: High | F10: Medium | G10: 4.728 | H10: 65 | I10: 307.3 | J10: 11 | K10: 13 | L10: 8 | M10: 217.02 | O10: 16 | P10: 21 | Q10: Low | S10: 457.87 | T10: 673.95 | U10: 503.46 | V10: 676.11 | W10: 315.93 | Y10: 140.56392 | AA10: 0.874 | AB10: 0 | AD10: 1.1175 | AF10: 26.337 | AG10: 59.326 | AH10: 42.815 | AI10: 50.242 | AJ10: 32.36 | AK10: 23.23 | AL10: 22.654 | AM10: 34.648 | AN10: 51.347 | AO10: 40.249 | AP10: 19.984 | AR10: 2.931401272 | AU10: 0.874 | AV10: 0.91333 | AW10: 1.0933 | AY10: 140.56392
A11: Brands Hatch | B11: Medium | C11: Normal | D11: Medium | E11: Low | F11: Low | G11: 4.207 | H11: 75 | I11: 315.5 | J11: 10 | K11: 12 | L11: 8 | M11: 211.02 | O11: 12 | P11: 25.5 | Q11: Normal | S11: 475.32 | T11: 647.54495 | U11: 386.69197 | V11: 709.39821 | W11: 641.46833 | Y11: 121.09563 | AA11: 0.83052 | AB11: 0.63566 | AD11: 1.039471623 | AF11: 11.226 | AG11: 34.312 | AH11: 19.867 | AI11: 24.586 | AJ11: 27.84 | AK11: 15.258 | AL11: 12.634 | AM11: 21.206 | AN11: 38.032 | AO11: 38.167 | AP11: 19.267 | AR11: 3.170161376 | AU11: 0.83052 | AV11: 0.8678934 | AW11: 1.04047 | AY11: 121.09563
A12: Brasilia | B12: Medium | C12: Hard | D12: Hard | E12: High | F12: Medium | G12: 5.475 | H12: 55 | I12: 301.1 | J12: 16 | K12: 15 | L12: 7 | M12: 206.08 | O12: 12 | P12: 13.5 | Q12: Normal | S12: 577.88029 | T12: 409.23081 | U12: 697.755 | V12: 849.605 | W12: 784.06 | Y12: 46.68976 | AA12: 0.89108 | AB12: 0.62207 | AD12: 1.051124238 | AF12: 19.535 | AG12: 41.858 | AH12: 25.23 | AI12: 30.878 | AJ12: 20.553 | AK12: 18.98 | AL12: 21.956 | AM12: 32.389 | AN12: 44.362 | AO12: 20.66 | AP12: 17.342 | AR12: 3.754319558 | AU12: 0.89108 | AV12: 0.9311786 | AW12: 1.04035 | AY12: 46.68976
A13: Bremgarten | B13: Medium | C13: Normal | D13: Medium | E13: Medium | F13: Medium | G13: 7.281 | H13: 42 | I13: 305.8 | J13: 8 | K13: 26 | L13: 17 | M13: 257.04 | O13: 16 | P13: 17 | Q13: Low | S13: 713.7 | T13: 594.03 | U13: 589.41 | V13: 697.91 | W13: 539.29 | Y13: 138.55358 | AA13: 0.855 | AB13: =+AA13/1.283 -> 0.6664068589 | AD13: 1.226694431 | AF13: 38.557 | AG13: 24.319 | AH13: 19.579 | AI13: 18.667 | AJ13: 43.388 | AK13: 31.769 | AL13: 13.817 | AM13: 35.362 | AN13: 30.61 | AO13: 42.353 | AP13: 11.939 | AR13: 3.171001161 | AU13: 0.858 | AV13: 0.89661 | AW13: 1.0813 | AY13: 138.55358
A14: Brno | B14: Medium | C14: Easy | D14: Medium | E14: Medium | F14: High | G14: 5.404 | H14: 57 | I14: 308 | J14: 12 | K14: 12 | L14: 14 | M14: 207.14 | O14: 15 | P14: 14 | Q14: Normal | S14: 489.73 | T14: 515.49 | U14: 378.53 | V14: 555.53 | W14: 490.25 | Y14: 73.58322 | AA14: 0.83238 | AB14: 0.70154 | AD14: 0.9911183695 | AF14: 26.354 | AG14: 47.572 | AH14: 28.761 | AI14: 23.715 | AJ14: 28.541 | AK14: 27.064 | AL14: 25.519 | AM14: 31.263 | AN14: 35.515 | AO14: 28.316 | AP14: 20.386 | AR14: 3.343406976 | AU14: 0.83238 | AV14: 0.8698371 | AW14: 0.98793 | AY14: 73.58322
A15: Bucharest Ring | B15: Low | C15: Easy | D15: Hard | E15: Very High | F15: Low | G15: 3.071 | H15: 80 | I15: 245.7 | J15: 8 | K15: 6 | L15: 8 | M15: 146.34 | O15: 14 | P15: 24 | Q15: Normal | S15: 269.73 | T15: 654.11 | U15: 711.39 | V15: 593.83 | W15: 744.57 | Y15: 77.48096 | AA15: 0.9218 | AB15: 0.77063 | AD15: 1.0793 | AF15: 27.736 | AG15: 63.353 | AH15: 27.626 | AI15: 30.114 | AJ15: 36.688 | AK15: 25.61 | AL15: 21.076 | AM15: 43.326 | AN15: 54.418 | AO15: 31.362 | AP15: 25.188 | AR15: 2.992521726 | AU15: 0.9118 | AV15: 0.952831 | AW15: 0.9947 | AY15: 77.48096
A16: Buenos Aires | B16: High | C16: Very Hard | D16: Hard | E16: Very Low | F16: High | G16: 4.258 | H16: 72 | I16: 306.6 | J16: 12 | K16: 11 | L16: 9 | M16: 185.31 | O16: 16 | P16: 19.5 | Q16: Normal | S16: 901.29277 | T16: 516.57393 | U16: 272.05175 | V16: 654.41483 | W16: 706.34042 | Y16: 190.07916 | AA16: 0.78529 | AB16: 0.57204 | AD16: 1.068856357 | AF16: 30.501 | AG16: 56.566 | AH16: 23.704 | AI16: 29.801 | AJ16: 21.514 | AK16: 18.41 | AL16: 25.458 | AM16: 56.631 | AN16: 71.4 | AO16: 50.261 | AP16: 20.256 | AR16: 3.139245682 | AU16: 0.78529 | AV16: 0.82062805 | AW16: 0.9795 | AY16: 190.07916
A17: Estoril | B17: Medium | C17: Normal | D17: Medium | E17: Medium | F17: Medium | G17: 4.36 | H17: 70 | I17: 305.2 | J17: 11 | K17: 8 | L17: 14 | M17: 221.29 | O17: 13 | P17: 22.5 | Q17: Low | S17: 438.52 | T17: 652.28 | U17: 302.24 | V17: 705 | W17: 575.42 | Y17: 79.46 | AA17: 0.83787 | AB17: 0.71482 | AD17: 1.0845 | AF17: 22.176 | AG17: 53.824 | AH17: 29.567 | AI17: 24.938 | AJ17: 28.032 | AK17: 19.577 | AL17: 14.875 | AM17: 37.582 | AN17: 43.713 | AO17: 33.955 | AP17: 13.844 | AR17: 2.790729264 | AU17: 0.83787 | AV17: 0.87557415 | AW17: 1.05901 | AY17: 79.46
A18: Fiorano | B18: Medium | C18: Normal | D18: Hard | E18: Very High | F18: High | G18: 3.02 | H18: 79 | I18: 238.6 | J18: 8 | K18: 6 | L18: 7 | M18: 183.62 | O18: 14 | P18: 16.5 | Q18: Low | S18: 449.29 | T18: 619.66 | U18: 301.15 | V18: 374.52 | W18: 895.1 | Y18: 99.31144 | AA18: 0.9327 | AB18: 0.83 | AD18: 1.0391 | AF18: 28.042 | AG18: 47.724 | AH18: 28.028 | AI18: 31.005 | AJ18: 23.742 | AK18: 19.573 | AL18: 22.703 | AM18: 36.521 | AN18: 46.853 | AO18: 32.295 | AP18: 22.805 | AR18: 3.368234234 | AU18: 0.9327 | AV18: 0.9746715 | AW18: 0.95633 | AY18: 99.31144
A19: Fuji | B19: Low | C19: Easy | D19: Medium | E19: Medium | F19: Medium | G19: 4.558 | H19: 67 | I19: 305.4 | J19: 13 | K19: 11 | L19: 8 | M19: 191.99 | O19: 16 | P19: 18.5 | Q19: Normal | S19: 271.38 | T19: 590.54 | U19: 628.39 | V19: 689.16 | W19: 507.61 | Y19: 117.72 | AA19: 0.84907 | AB19: 0.62276 | AD19: 1.047 | AF19: 31.615 | AG19: 39.674 | AH19: 20.213 | AI19: 23.61 | AJ19: 23.731 | AK19: 22.876 | AL19: 31.198 | AM19: 27.717 | AN19: 52.084 | AO19: 21.954 | AP19: 20.201 | AR19: 2.960137948 | AU19: 0.84907 | AV19: 0.88727815 | AW19: 0.976 | AY19: 117.72
A20: Grobnik | B20: Medium | C20: Hard | D20: Medium | E20: Low | F20: Medium | G20: 4.168 | H20: 74 | I20: 308.4 | J20: 8 | K20: 15 | L20: 7 | M20: 0 | O20: 15 | P20: 13 | Q20: Normal | S20: 646.1931602 | T20: 384.3699617 | U20: 524.55 | V20: 768.66 | W20: 500.29 | Y20: 128.81999 | AA20: 0.82236 | AB20: 0.633 | AD20: 0.8575 | AF20: 30.62269795 | AG20: 35.49005487 | AH20: 21.91067359 | AI20: 20.53934077 | AJ20: 22.98184974 | AK20: 29.01271333 | AL20: 26.16574641 | AM20: 36.00947436 | AN20: 20.85119333 | AO20: 41.45772026 | AP20: 17.97685923 | AR20: 3.792778352 | AU20: 0.82236 | AV20: 0.8593662 | AW20: 1.03798 | AY20: 128.81999
A21: Hockenheim | B21: Medium | C21: Normal | D21: Soft | E21: High | F21: Medium | G21: 4.573 | H21: 67 | I21: 306.4 | J21: 12 | K21: 9 | L21: 11 | M21: 238.22 | O21: 12 | P21: 16.5 | Q21: High | S21: 444.92 | T21: 647.63 | U21: 329.61 | V21: 789.21 | W21: 291.96 | Y21: -98.19578 | AA21: 0.8693 | AB21: 0.899 | AD21: 1.015470261 | AF21: 29.559 | AG21: 64.446 | AH21: 21.081 | AI21: 23.004 | AJ21: 23.906 | AK21: 19.979 | AL21: 20.596 | AM21: 36.726 | AN21: 50.179 | AO21: 26.147 | AP21: 17.552 | AR21: 3.130992088 | AU21: 0.8693 | AV21: 0.9084185 | AW21: 0.96074 | AY21: -98.19578
A22: Hungaroring | B22: High | C22: Very Hard | D22: Medium | E22: Very Low | F22: Very Low | G22: 3.968 | H22: 77 | I22: 305.5 | J22: 7 | K22: 10 | L22: 13 | M22: 190.61 | O22: 14 | P22: 16.5 | Q22: Very High | S22: 853.49 | T22: 439.1 | U22: 571.56 | V22: 434.45 | W22: 416.73 | Y22: 62.5325 | AA22: 0.76568 | AB22: 0.649 | AD22: 1.1019 | AF22: 25.364 | AG22: 38.665 | AH22: 76.042 | AI22: 69.27 | AJ22: 35.476 | AK22: 18.675 | AL22: 15.206 | AM22: 48.394 | AN22: 31.478 | AO22: 52.329 | AP22: 12.683 | AR22: 3.288144014 | AU22: 0.76568 | AV22: 0.8001356 | AW22: 1.06388 | AY22: 62.5325
A23: Imola | B23: Medium | C23: Hard | D23: Medium | E23: Medium | F23: Medium | G23: 4.929 | H23: 62 | I23: 305.6 | J23: 12 | K23: 13 | L23: 9 | M23: 215.41 | O23: 16 | P23: 12 | Q23: Low | S23: 459.77 | T23: 599.72 | U23: 672.31 | V23: 615.44 | W23: 455.84 | Y23: 19.18066 | AA23: 0.86572 | AB23: 0.6079 | AD23: 1.1842 | AF23: 23.243 | AG23: 43.444 | AH23: 39.13 | AI23: 42.268 | AJ23: 32.053 | AK23: 18.018 | AL23: 20.619 | AM23: 38.267 | AN23: 47.407 | AO23: 38.536 | AP23: 19.735 | AR23: 0 | AU23: 0.85572 | AV23: 0.8942274 | AW23: 1.0555 | AY23: 19.18066
A24: Indianapolis | B24: Low | C24: Easy | D24: Medium | E24: High | F24: Medium | G24: 4.2 | H24: 73 | I24: 306.6 | J24: 10 | K24: 9 | L24: 11 | M24: 208.47 | O24: 13 | P24: 25.5 | Q24: High | S24: 207.55 | T24: 706.52 | U24: 465.52 | V24: 648.5 | W24: 518.59 | Y24: -35 | AA24: 0.893 | AB24: =+AA24/1.283 -> 0.6960249415 | AD24: 1.0576 | AF24: 46.166 | AG24: 62.601 | AH24: 27.554 | AI24: 33.988 | AJ24: 40.731 | AK24: 37.433 | AL24: 18.05 | AM24: 46.732 | AN24: 53.591 | AO24: 52.024 | AP24: 15.316 | AR24: 2.47023451 | AU24: 0.893 | AV24: 0.933185 | AW24: 1.01319 | AY24: -35
A25: Indianapolis Oval | B25: Low | C25: Very Easy | D25: Soft | E25: Very High | F25: Low | G25: 4.022 | H25: 200 | I25: =+G25*H25 -> 804.4 | J25: 17 | K25: 9 | L25: 2 | M25: 408.42 | O25: 4 | P25: 45 | Q25: Low | S25: -58.62 | T25: 730.49 | U25: 21.69 | V25: 901.36 | W25: 304.75 | Y25: 67.6 | AA25: 0.9042 | AB25: 0.749 | AD25: 1.0696 | AF25: 28.953 | AG25: 107.06 | AH25: 17.516 | AI25: 20.808 | AJ25: 34.491 | AK25: 22.377 | AL25: 26.346 | AM25: 16.671 | AN25: 11.849 | AO25: 31.394 | AP25: 18.808 | AR25: 2.133486068 | AU25: 0.9042 | AV25: 0.944889 | AW25: 0.9953 | AY25: 67.6
A26: Interlagos | B26: Medium | C26: Normal | D26: Soft | E26: Medium | F26: Medium | G26: 4.308 | H26: 71 | I26: 305.9 | J26: 12 | K26: 9 | L26: 10 | M26: 217.49 | O26: 14 | P26: 18 | Q26: High | S26: 460.91 | T26: 578.03 | U26: 555.34 | V26: 568.26 | W26: 318.88 | Y26: -26.26585 | AA26: 0.84916 | AB26: 0.68533 | AD26: 1.0578 | AF26: 39.753 | AG26: 57.075 | AH26: 31.631 | AI26: 23.777 | AJ26: 45.928 | AK26: 23.305 | AL26: 21.238 | AM26: 32.317 | AN26: 57.65 | AO26: 40.907 | AP26: 19.765 | AR26: 2.681866293 | AU26: 0.84916 | AV26: 0.8873722 | AW26: 1.04207 | AY26: -26.26585
A27: Irungattukottai | B27: Medium | C27: Easy | D27: Medium | E27: Medium | F27: High | G27: 3.716 | H27: 79 | I27: 293.6 | J27: 8 | K27: 12 | L27: 7 | M27: 168.61 | O27: 12 | P27: 14 | Q27: High | S27: 680.12 | T27: 470.29 | U27: 626.79 | V27: 620.22 | W27: 536.55 | Y27: 13.94601 | AA27: 0.84115 | AB27: =+AA27/1.283 -> 0.6556118472 | AD27: 0.9889227941 | AF27: 27.621 | AG27: 52.493 | AH27: 43.476 | AI27: 41.082 | AJ27: 36.095 | AK27: 32.405 | AL27: 35.083 | AM27: 44.109 | AN27: 52.299 | AO27: 34.093 | AP27: 20.332 | AR27: 3.274957411 | AU27: 0.84115 | AV27: 0.87900175 | AW27: 0.97159 | AY27: 13.94601
A28: Istanbul | B28: Medium | C28: Normal | D28: Medium | E28: Medium | F28: Medium | G28: 5.334 | H28: 58 | I28: 309.4 | J28: 13 | K28: 10 | L28: 14 | M28: 227.29 | O28: 14 | P28: 16 | Q28: High | S28: 387.85 | T28: 544.46 | U28: 700.97 | V28: 543.97 | W28: 659.85 | Y28: 118.92 | AA28: 0.85599 | AB28: 0.694 | AD28: 1.1652 | AF28: 27.298 | AG28: 32.743 | AH28: 17.294 | AI28: 19.402 | AJ28: 20.073 | AK28: 20.844 | AL28: 26.819 | AM28: 21.299 | AN28: 44.756 | AO28: 19.764 | AP28: 17.078 | AR28: 2.910837683 | AU28: 0.85599 | AV28: 0.89450955 | AW28: 1.11647 | AY28: 118.92
A29: Jerez | B29: Medium | C29: Hard | D29: Soft | E29: High | F29: Very High | G29: 4.441 | H29: 69 | I29: 306.4 | J29: 8 | K29: 16 | L29: 8 | M29: 199.89 | O29: 14 | P29: 18 | Q29: Low | S29: 717.6 | T29: 608.07 | U29: 626.86 | V29: 701.3 | W29: 321.26 | Y29: 143.32667 | AA29: 0.889 | AB29: 0.6178 | AD29: 1.023 | AF29: 36.689 | AG29: 60.136 | AH29: 38.05 | AI29: 41.693 | AJ29: 34.457 | AK29: 29.924 | AL29: 20.889 | AM29: 32.791 | AN29: 50.799 | AO29: 47.78 | AP29: 23.664 | AR29: 3.355724435 | AU29: 0.889 | AV29: 0.929005 | AW29: 0.9 | AY29: 143.32667
A30: Jyllands-Ringen | B30: High | C30: Normal | D30: Medium | E30: Low | F30: High | G30: 2.3 | H30: 136 | I30: 312.8 | J30: 5 | K30: 9 | L30: 4 | M30: 0 | O30: 20 | P30: 19.5 | Q30: Normal | S30: 769.6553582 | T30: 414.1254178 | U30: 556.76 | V30: 743.56 | W30: 524.72 | Y30: 106.92562 | AA30: 0.82602 | AB30: =+AA30/1.283 -> 0.6438191738 | AD30: 1.0423 | AF30: 13.52 | AG30: 24.75 | AH30: 28.74 | AI30: 27.26 | AJ30: 12.18 | AK30: 10.82 | AL30: 9.4 | AM30: 23.12 | AN30: 33 | AO30: 14.91 | AP30: 13.35 | AR30: 3.463857719 | AU30: 0.82602 | AV30: 0.8631909 | AW30: 0.98582 | AY30: 106.92562
A31: Kaunas | B31: Medium | C31: Normal | D31: Medium | E31: Medium | F31: High | G31: 3.301 | H31: 80 | I31: 264.1 | J31: 9 | K31: 10 | L31: 5 | M31: 181.6 | O31: 10 | P31: 11 | Q31: Low | S31: 387.37 | T31: 635.17 | U31: 515.42 | V31: 689.48 | W31: 362.96 | Y31: 91.1 | AA31: 0.8461 | AB31: 0.76485 | AD31: 1.031607056 | AF31: 24.485 | AG31: 44.33 | AH31: 29.171 | AI31: 25.863 | AJ31: 30.548 | AK31: 20.883 | AL31: 14.687 | AM31: 21.75 | AN31: 13.329 | AO31: 44.143 | AP31: 13.049 | AR31: 3.329024435 | AU31: 0.8461 | AV31: 0.8841745 | AW31: 1.0395 | AY31: 91.1
A32: Kyalami | B32: High | C32: Hard | D32: Hard | E32: Very Low | F32: Medium | G32: 4.261 | H32: 72 | I32: 306.8 | J32: 9 | K32: 12 | L32: 9 | M32: 231.38 | O32: 14 | P32: 15 | Q32: Very Low | S32: 777.15 | T32: 534.3 | U32: 557.47 | V32: 528.95 | W32: 749.84 | Y32: 206.85 | AA32: 0.80158 | AB32: =+AA32/1.283 -> 0.6247700701 | AD32: 1.087757853 | AF32: 23.079 | AG32: 36 | AH32: 35.7 | AI32: 39.813 | AJ32: 20.624 | AK32: 18.513 | AL32: 32.57 | AM32: 46.158 | AN32: 28.459 | AO32: 24.411 | AP32: 21.705 | AR32: 3.215677989 | AU32: 0.80158 | AV32: 0.8376511 | AW32: 1.02227 | AY32: 206.85
A33: Laguna Seca | B33: Medium | C33: Easy | D33: Soft | E33: Very High | F33: High | G33: 3.601 | H33: 79 | I33: 284.5 | J33: 11 | K33: 8 | L33: 7 | M33: 180.7 | O33: 11 | P33: 16.7 | Q33: Very Low | S33: 481.06 | T33: 401.03 | U33: 585.51 | V33: 619.45 | W33: 59 | Y33: 54.38 | AA33: 0.902 | AB33: 0.751 | AD33: 1.06829288 | AF33: 30.149 | AG33: 40.567 | AH33: 26.36 | AI33: 17.552 | AJ33: 17.188 | AK33: 15.804 | AL33: 24.429 | AM33: 39.461 | AN33: 43.062 | AO33: 34.92 | AP33: 9.33 | AR33: 2.933806605 | AU33: 0.902 | AV33: 0.94259 | AW33: 1.015 | AY33: 54.38
A34: Magny Cours | B34: Medium | C34: Hard | D34: Medium | E34: Medium | F34: Medium | G34: 4.247 | H34: 72 | I34: 305.8 | J34: 12 | K34: 8 | L34: 11 | M34: 208.84 | O34: 14 | P34: 18 | Q34: High | S34: 453.62 | T34: 564.81 | U34: 294.88 | V34: 588.24 | W34: 560.43 | Y34: 147.77 | AA34: 0.855 | AB34: =+AA34/1.283 -> 0.6664068589 | AD34: 0.9875 | AF34: 23.462 | AG34: 50.803 | AH34: 29.122 | AI34: 25.744 | AJ34: 27.428 | AK34: 20.764 | AL34: 21.248 | AM34: 34.838 | AN34: 52.363 | AO34: 39.867 | AP34: 13.492 | AR34: 0 | AU34: 0.865 | AV34: 0.903925 | AW34: 0.94099 | AY34: 147.77
A35: Melbourne | B35: Medium | C35: Hard | D35: Soft | E35: Medium | F35: Medium | G35: 5.303 | H35: 58 | I35: 307.6 | J35: 12 | K35: 15 | L35: 10 | M35: 220.25 | O35: 17 | P35: 16.5 | Q35: Low | S35: 403.36 | T35: 619 | U35: 614.44 | V35: 757.14333 | W35: 294.52333 | Y35: 8.04333 | AA35: 0.8553 | AB35: =+AA35/1.283 -> 0.6666406859 | AD35: 1.0289 | AF35: 23.024 | AG35: 50.597 | AH35: 27.278 | AI35: 29.868 | AJ35: 22.383 | AK35: 21.97 | AL35: 20.655 | AM35: 32.353 | AN35: 39.018 | AO35: 22.364 | AP35: 18.012 | AR35: 3.355195325 | AU35: 0.87510391 | AV35: 0.914483586 | AW35: 0.8934027251 | AY35: 8.04333
A36: Mexico City | B36: Medium | C36: Hard | D36: Soft | E36: Low | F36: Medium | G36: 4.42 | H36: 69 | I36: 305 | J36: 13 | K36: 12 | L36: 7 | M36: 224.8 | O36: 9 | P36: 24 | Q36: Normal | S36: 632.08 | T36: 700.96 | U36: 470.54 | V36: 671.13 | W36: 323.13 | Y36: 48.61914 | AA36: 0.83532 | AB36: 0.68926 | AD36: 1.074131655 | AF36: 12.708 | AG36: 27.4 | AH36: 16.455 | AI36: 14.552 | AJ36: 20.387 | AK36: 14.083 | AL36: 19.797 | AM36: 31.901 | AN36: 13.536 | AO36: 38.081 | AP36: 17.139 | AR36: 2.781582914 | AU36: 0.83532 | AV36: 0.8729094 | AW36: 0.99074 | AY36: 48.61914
A37: Monte Carlo | B37: High | C37: Very Hard | D37: Medium | E37: Low | F37: Medium | G37: 3.369 | H37: 78 | I37: 262.8 | J37: 7 | K37: 7 | L37: 12 | M37: 154.54 | O37: 19 | P37: 18 | Q37: Normal | S37: 1024.73 | T37: 373.43 | U37: 471.04 | V37: 374.23 | W37: 494.38 | Y37: 100.89447 | AA37: 0.82411 | AB37: 0.621 | AD37: 1.1997 | AF37: 15.535 | AG37: 21.386 | AH37: 56.169 | AI37: 56.535 | AJ37: 29.146 | AK37: 10.91 | AL37: 15.672 | AM37: 30.237 | AN37: 49.778 | AO37: 39.445 | AP37: 13.509 | AR37: 3.865038474 | AU37: 0.81411 | AV37: 0.85074495 | AW37: 1.05986 | AY37: 100.89447
A38: Montreal | B38: Medium | C38: Normal | D38: Soft | E38: Medium | F38: Medium | G38: 4.42 | H38: 69 | I38: 305 | J38: 12 | K38: 7 | L38: 13 | M38: 209.95 | O38: 12 | P38: 16.5 | Q38: Very Low | S38: 335.19099 | T38: 677.81879 | U38: 566.84333 | V38: 718.10333 | W38: 237.85 | Y38: -98.12526 | AA38: 0.8553 | AB38: 0.7349 | AD38: 1.135721543 | AF38: 27.567 | AG38: 51.184 | AH38: 28.371 | AI38: 18.38 | AJ38: 26.637 | AK38: 19.905 | AL38: 14.689 | AM38: 38.855 | AN38: 51.207 | AO38: 45.236 | AP38: 14.348 | AR38: 2.71416512 | AU38: 0.8553 | AV38: 0.8937885 | AW38: 1.0831 | AY38: -98.12526
A39: Monza | B39: Low | C39: Easy | D39: Medium | E39: Very High | F39: Medium | G39: 5.787 | H39: 53 | I39: 306.7 | J39: 17 | K39: 12 | L39: 9 | M39: 258.83 | O39: 13 | P39: 25.5 | Q39: Very Low | S39: 124.0662616 | T39: 737.5528033 | U39: 495.65 | V39: 870.39 | W39: 611.13 | Y39: 24.63581 | AA39: 0.913 | AB39: =+AA39/1.283 -> 0.7116134061 | AD39: 1.0723 | AF39: 28.948 | AG39: 58.714 | AH39: 19.443 | AI39: 14.827 | AJ39: 26.672 | AK39: 23.467 | AL39: 18.019 | AM39: 42.241 | AN39: 51.805 | AO39: 28.46 | AP39: 19.818 | AR39: 3 | AU39: 0.913 | AV39: 0.954085 | AW39: 0.9175840959 | AY39: 24.63581
A40: Mugello | B40: Medium | C40: Hard | D40: Medium | E40: Medium | F40: Medium | G40: 5.247 | H40: 58 | I40: 304.3 | J40: 11 | K40: 13 | L40: 12 | M40: 246.56 | O40: 14 | P40: 13.5 | Q40: High | S40: 517.8840739 | T40: 805.5440621 | U40: 893.45 | V40: 901.3416371 | W40: 601.04 | Y40: -69.4 | AA40: 0.8474 | AB40: 0.6958 | AD40: 0.99905 | AF40: 25.47 | AG40: 28.701 | AH40: 26.497 | AI40: 19.144 | AJ40: 27.382 | AK40: 30.361 | AL40: 32.437 | AM40: 36.707 | AN40: 33.222 | AO40: 28.028 | AP40: 17.895 | AR40: 3.009844606 | AU40: 0.8474 | AV40: 0.885533 | AW40: 1.0235 | AY40: -69.4
A41: New Delhi | B41: Medium | C41: Normal | D41: Soft | E41: Medium | F41: Very High | G41: 5.137 | H41: 60 | I41: 308.2 | J41: 11 | K41: 15 | L41: 10 | M41: 227.27 | O41: 16 | P41: 19 | Q41: Very Low | S41: 649.99 | T41: 556.92 | U41: 556.38 | V41: 720.3 | W41: 150.9 | Y41: -85 | AA41: 0.83632 | AB41: 0.768 | AD41: 1.135692378 | AF41: 26.943 | AG41: 48.639 | AH41: 37.833 | AI41: 32.683 | AJ41: 24.351 | AK41: 16.206 | AL41: 20.758 | AM41: 33.693 | AN41: 45.596 | AO41: 41.58 | AP41: 13.046 | AR41: 2.812256472 | AU41: 0.83632 | AV41: 0.8739544 | AW41: 1.03303 | AY41: -97.64247
A42: Nurburgring | B42: Medium | C42: Normal | D42: Soft | E42: Very Low | F42: Low | G42: 5.145 | H42: 60 | I42: 308.7 | J42: 12 | K42: 12 | L42: 13 | M42: 224.22 | O42: 16 | P42: 15 | Q42: Normal | S42: 650.81 | T42: 451.94 | U42: 626.71 | V42: 598 | W42: 149.86 | Y42: 244.16605 | AA42: 0.799 | AB42: =+AA42/1.283 -> 0.6227591582 | AD42: 1.147492505 | AF42: 31.199 | AG42: 49.888 | AH42: 26.366 | AI42: 34.613 | AJ42: 29.26 | AK42: 16.349 | AL42: 16.627 | AM42: 31.119 | AN42: 50.161 | AO42: 46.497 | AP42: 11.736 | AR42: 3.442581501 | AU42: 0.799 | AV42: 0.834955 | AW42: 1.0645 | AY42: 244.16605
A43: Oesterreichring | B43: Medium | C43: Easy | D43: Medium | E43: High | F43: Medium | G43: 5.94 | H43: 52 | I43: 308.9 | J43: 19 | K43: 14 | L43: 9 | M43: 269.24 | O43: 11 | P43: 21 | Q43: Low | S43: 442.09 | T43: 675.58 | U43: 496.59 | V43: 729.98 | W43: 508.34 | Y43: 85.42 | AA43: 0.86855 | AB43: 0.65293 | AD43: 1.08011 | AF43: 22.07 | AG43: 52.045 | AH43: 28.264 | AI43: 32.384 | AJ43: 23.711 | AK43: 20.455 | AL43: 23.161 | AM43: 27.148 | AN43: 39.235 | AO43: 22.562 | AP43: 13.545 | AR43: 2.485590127 | AU43: 0.86855 | AV43: 0.90763475 | AW43: 1.08664 | AY43: 85.42
A44: Paul Ricard | B44: Medium | C44: Easy | D44: Medium | E44: High | F44: Very High | G44: 3.861 | H44: 79 | I44: 305 | J44: 9 | K44: 11 | L44: 8 | M44: 225.75 | O44: 11 | P44: 19.5 | Q44: Very High | S44: 362.79 | T44: 732.67 | U44: 301.68 | V44: 784.37 | W44: 575.27 | Y44: 182.33333 | AA44: 0.91651 | AB44: 0.771 | AD44: 1.101 | AF44: 29.268 | AG44: 62.916 | AH44: 28.35 | AI44: 36.553 | AJ44: 32.316 | AK44: 16.347 | AL44: 19.744 | AM44: 30.907 | AN44: 50.353 | AO44: 25.541 | AP44: 12.8 | AR44: 2.86145107 | AU44: 0.89651 | AV44: 0.93685295 | AW44: 1.09121 | AY44: 182.33333
A45: Portimao | B45: High | C45: Easy | D45: Soft | E45: Medium | F45: High | G45: 4.692 | H45: 66 | I45: 309.7 | J45: 9 | K45: 14 | L45: 11 | M45: 198.24 | O45: 18 | P45: 15.5 | Q45: Low | S45: 784.36 | T45: 392.27 | U45: 486.5 | V45: 490 | W45: 295.42 | Y45: 180.52475 | AA45: 0.8361 | AB45: 0.7061 | AD45: 1.1084 | AF45: 24.205 | AG45: 24.994 | AH45: 24.174 | AI45: 26.233 | AJ45: 45.303 | AK45: 22.012 | AL45: 21.427 | AM45: 23.003 | AN45: 33.1 | AO45: 48.734 | AP45: 18.417 | AR45: 2.155884871 | AU45: 0.8361 | AV45: 0.8737245 | AW45: 1.0578 | AY45: 180.52475
A46: Poznan | B46: Medium | C46: Hard | D46: Medium | E46: Low | F46: Medium | G46: 4.083 | H46: 75 | I46: 306.2 | J46: 7 | K46: 14 | L46: 8 | M46: 214.42 | O46: 14 | P46: 14 | Q46: Normal | S46: 742 | T46: 546.01667 | U46: 379.02333 | V46: 718.46 | W46: 529.96333 | Y46: 182.04045 | AA46: 0.8172866576 | AB46: =+AA46/1.283 -> 0.6370122039 | AD46: 1.1337 | AF46: 29.635 | AG46: 44.165 | AH46: 34.024 | AI46: 40.394 | AJ46: 36.138 | AK46: 29.957 | AL46: 25.524 | AM46: 31.239 | AN46: 33.66 | AO46: 26.075 | AP46: 21.884 | AR46: 3.278860308 | AU46: 0.82387 | AV46: 0.86094415 | AW46: 1.08634 | AY46: 182.04045
A47: Rafaela Oval | B47: Low | C47: Very Easy | D47: Medium | E47: Very High | F47: High | G47: 4.736 | H47: 67 | I47: 317.3 | J47: 18 | K47: 10 | L47: 6 | M47: 299.89 | O47: 8 | P47: 10 | Q47: Normal | S47: 128.8602061 | T47: 577.9266313 | U47: 194.66 | V47: 730.77 | W47: 309.64 | Y47: 67.6 | AA47: 0.90584 | AB47: 0.76945 | AD47: 1.0505 | AF47: 25.051 | AG47: 95.29 | AH47: 14.663 | AI47: 17.145 | AJ47: 30.097 | AK47: 17.852 | AL47: 23.092 | AM47: 26.836 | AN47: 25.516 | AO47: 35.829 | AP47: 17.322 | AR47: 2.263500763 | AU47: 0.90584 | AV47: 0.9466028 | AW47: 1.06418 | AY47: 67.6
A48: Sakhir | B48: Low | C48: Normal | D48: Soft | E48: Very High | F48: Medium | G48: 5.412 | H48: 57 | I48: 308.5 | J48: 16 | K48: 11 | L48: 9 | M48: 237.09 | O48: 14 | P48: 25.5 | Q48: Very High | S48: 126.91 | T48: 406.55 | U48: 716.34 | V48: 609.56 | W48: 240.96 | Y48: -21.44472 | AA48: 0.91198 | AB48: 0.7124 | AD48: 1.180237251 | AF48: 27.168 | AG48: 62.892 | AH48: 33.037 | AI48: 25.882 | AJ48: 26.282 | AK48: 30.852 | AL48: 36.212 | AM48: 30.798 | AN48: 36.118 | AO48: 35.283 | AP48: 17.693 | AR48: 3.200061179 | AU48: 0.91198 | AV48: 0.9530191 | AW48: 1.17623 | AY48: -21.44472
A49: Sepang | B49: Medium | C49: Normal | D49: Medium | E49: Medium | F49: Medium | G49: 5.644 | H49: 55 | I49: 310.4 | J49: 14 | K49: 11 | L49: 14 | M49: 217.17 | O49: 17 | P49: 24 | Q49: Very High | S49: 554 | T49: 590.12333 | U49: 653.687 | V49: 746.34333 | W49: 466.41 | Y49: 24.6 | AA49: 0.8422 | AB49: 0.6565 | AD49: 1.0164 | AF49: 25.275 | AG49: 47.985 | AH49: 32.811 | AI49: 26.302 | AJ49: 32.939 | AK49: 18.283 | AL49: 31.829 | AM49: 36.602 | AN49: 43.17 | AO49: 26.006 | AP49: 18.791 | AR49: 3.069581624 | AU49: 0.8630305499 | AV49: 0.9018669247 | AW49: 1.044356125 | AY49: 24.6
A50: Serres | B50: High | C50: Hard | D50: Medium | E50: Medium | F50: Medium | G50: 3.186 | H50: 80 | I50: 254.9 | J50: 5 | K50: 10 | L50: 9 | M50: 197.95 | O50: 16 | P50: 12 | Q50: Normal | S50: 927.25 | T50: 414.83 | U50: 503.01 | V50: 477.94 | W50: 522.69 | Y50: 177 | AA50: 0.86325 | AB50: =+AA50/1.283 -> 0.6728371005 | AD50: 0.9388 | AF50: 24.934 | AG50: 33.625 | AH50: 25.175 | AI50: 27.54 | AJ50: 24.224 | AK50: 20.047 | AL50: 23.065 | AM50: 34.234 | AN50: 28.933 | AO50: 29.658 | AP50: 20.6 | AR50: 3.223014046 | AU50: 0.86325 | AV50: 0.90209625 | AW50: 0.92879 | AY50: 177
A51: Shanghai | B51: Medium | C51: Normal | D51: Soft | E51: Very High | F51: Medium | G51: 5.45 | H51: 56 | I51: 305.2 | J51: 9 | K51: 16 | L51: 15 | M51: 217.18 | O51: 10 | P51: 24 | Q51: High | S51: 429.1515237 | T51: 529.77 | U51: 641.35 | V51: 354.61 | W51: 114.21 | Y51: 114.90394 | AA51: 0.90522 | AB51: 0.67435 | AD51: 1.057777851 | AF51: 20.675 | AG51: 60.895 | AH51: 34.115 | AI51: 39.605 | AJ51: 35.047 | AK51: 28.213 | AL51: 26.74 | AM51: 38.844 | AN51: 43.939 | AO51: 48.878 | AP51: 18.482 | AR51: 2.586573053 | AU51: 0.90522 | AV51: 0.9459549 | AW51: 1.05878 | AY51: 114.90394
A52: Silverstone | B52: Low | C52: Normal | D52: Medium | E52: High | F52: Low | G52: 5.138 | H52: 60 | I52: 308.3 | J52: 11 | K52: 11 | L52: 16 | M52: 225.46 | O52: 14 | P52: 22.5 | Q52: Normal | S52: 283.41 | T52: 699.48 | U52: 590.85 | V52: 823.25 | W52: 415.1 | Y52: 18.87335 | AA52: 0.8693 | AB52: 0.681 | AD52: 1.1558 | AF52: 25.016 | AG52: 56.239 | AH52: 22.378 | AI52: 26.878 | AJ52: 28.286 | AK52: 17.124 | AL52: 16.405 | AM52: 37.583 | AN52: 27.511 | AO52: 22.261 | AP52: 12.316 | AR52: 3.05188299 | AU52: 0.8693 | AV52: 0.9084185 | AW52: 1.1123 | AY52: 18.87335
A53: Singapore | B53: High | C53: Hard | D53: Hard | E53: Medium | F53: High | G53: 5.067 | H53: 61 | I53: 309.1 | J53: 7 | K53: 11 | L53: 17 | M53: 214.84 | O53: 23 | P53: 17 | Q53: Low | S53: 865.61 | T53: 438.19 | U53: 578.15 | V53: 598.96 | W53: 801.2 | Y53: 202.04229 | AA53: 0.854 | AB53: 0.55214 | AD53: 1.1091 | AF53: 29.444 | AG53: 25.243 | AH53: 34.674 | AI53: 30.374 | AJ53: 34.035 | AK53: 23.699 | AL53: 29.268 | AM53: 29.455 | AN53: 45.579 | AO53: 26.95 | AP53: 25.68 | AR53: 3.965017265 | AU53: 0.854 | AV53: 0.89243 | AW53: 1.04688 | AY53: 202.04229
A54: Slovakiaring | B54: Medium | C54: Hard | D54: Medium | E54: High | F54: High | G54: 5.923 | H54: 53 | I54: 313.9 | J54: 17 | K54: 10 | L54: 15 | M54: 219.95 | O54: 14 | P54: 19.5 | Q54: High | S54: 735.82 | T54: 439.66 | U54: 609.73 | V54: 491.45 | W54: 431.92 | Y54: 184.08431 | AA54: 0.885662236 | AB54: 0.79 | AD54: 1.0341 | AF54: 21.45 | AG54: 49.632 | AH54: 25.382 | AI54: 28.822 | AJ54: 37.887 | AK54: 18.696 | AL54: 16.206 | AM54: 45.566 | AN54: 31.475 | AO54: 39.401 | AP54: 15.185 | AR54: 3.249847984 | AU54: 0.90685 | AV54: 0.94765825 | AW54: 1.0652 | AY54: 184.08431
A55: Sochi | B55: Medium | C55: Hard | D55: Medium | E55: Low | F55: High | G55: 5.851 | H55: 53 | I55: 310.1 | J55: 8 | K55: 15 | L55: 18 | M55: 203.07 | O55: 19 | P55: 23 | Q55: Normal | S55: 675.39 | T55: 588.26 | U55: 587.66 | V55: 696.24 | W55: 456.11 | Y55: 137.97 | AA55: 0.8271071938 | AB55: =+AA55/1.283 -> 0.6446665579 | AD55: 1.085680758 | AF55: 20.781 | AG55: 47.415 | AH55: 26.856 | AI55: 25.933 | AJ55: 24.362 | AK55: 15.799 | AL55: 19.083 | AM55: 30.559 | AN55: 41.041 | AO55: 21.771 | AP55: 16.77 | AR55: 3.43704433 | AU55: 0.8404 | AV55: 0.878218 | AW55: 1.04166 | AY55: 137.97
A56: Spa | B56: Medium | C56: Normal | D56: Medium | E56: High | F56: Medium | G56: 6.968 | H56: 44 | I56: 306.6 | J56: 18 | K56: 16 | L56: 13 | M56: 239 | O56: 22 | P56: 13.5 | Q56: Normal | S56: 585.63902 | T56: 716.49414 | U56: 446.824 | V56: 609.47063 | W56: 372.54417 | Y56: 50.39783 | AA56: 0.88354 | AB56: 0.45191 | AD56: 1.04702733 | AF56: 28.516 | AG56: 51.909 | AH56: 28.049 | AI56: 32.094 | AJ56: 31.559 | AK56: 21.309 | AL56: 18.467 | AM56: 38.361 | AN56: 43.342 | AO56: 46.583 | AP56: 17.766 | AR56: 3.354281416 | AU56: 0.88354 | AV56: 0.9232993 | AW56: 1.04803 | AY56: 50.39783
A57: Suzuka | B57: Medium | C57: Hard | D57: Medium | E57: Medium | F57: Medium | G57: 5.86 | H57: 53 | I57: 310.6 | J57: 11 | K57: 18 | L57: 13 | M57: 233.28 | O57: 14 | P57: 15 | Q57: Very High | S57: 413.56 | T57: 639.98 | U57: 515.88 | V57: 550.25 | W57: 531.13 | Y57: 47.11989 | AA57: 0.857 | AB57: 0.5508 | AD57: 1.0845 | AF57: 17.353 | AG57: 36.579 | AH57: 22.037 | AI57: 28.97 | AJ57: 23.435 | AK57: 15.56 | AL57: 14.46 | AM57: 37.835 | AN57: 29.293 | AO57: 31.751 | AP57: 15.141 | AR57: 3.552383306 | AU57: 0.857 | AV57: 0.895565 | AW57: 1.0326 | AY57: 47.11989
A58: Valencia | B58: High | C58: Hard | D58: Medium | E58: Medium | F58: Medium | G58: 5.44 | H58: 57 | I58: 310.1 | J58: 11 | K58: 12 | L58: 16 | M58: 214.86 | O58: 25 | P58: 14.5 | Q58: Low | S58: 837.83 | T58: 445.95 | U58: 657.26 | V58: 652.58 | W58: 335.82 | Y58: 209.76 | AA58: 0.84587 | AB58: 0.56 | AD58: 0.9875 | AF58: 26.294 | AG58: 29.261 | AH58: 45.893 | AI58: 45.888 | AJ58: 21.529 | AK58: 31.125 | AL58: 16.203 | AM58: 26.08 | AN58: 31.921 | AO58: 36.84 | AP58: 21.256 | AR58: 3.442834969 | AU58: 0.84587 | AV58: 0.88393415 | AW58: 0.95518 | AY58: 209.76
A59: Yas Marina | B59: Medium | C59: Hard | D59: Medium | E59: Low | F59: Medium | G59: 5.555 | H59: 55 | I59: 305.5 | J59: 12 | K59: 10 | L59: 17 | M59: 214.71 | O59: 21 | P59: 18.5 | Q59: High | S59: 730.05 | T59: 459.7 | U59: 557.69 | V59: 476.1 | W59: 419.98 | Y59: 175.25105 | AA59: 0.81167 | AB59: 0.70142 | AD59: 0.9884992705 | AF59: 22.651 | AG59: 18.013 | AH59: 34.763 | AI59: 39.489 | AJ59: 28.349 | AK59: 21.121 | AL59: 28.907 | AM59: 35.284 | AN59: 41.026 | AO59: 30.026 | AP59: 20.787 | AR59: 3.3838644 | AU59: 0.81167 | AV59: 0.84819515 | AW59: 1.038806427 | AY59: 175.25105
A60: Yeongam | B60: High | C60: Normal | D60: Medium | E60: Medium | F60: High | G60: 5.622 | H60: 55 | I60: 309.2 | J60: 11 | K60: 15 | L60: 13 | M60: 213.67 | O60: 18 | P60: 23.5 | Q60: Normal | S60: 781.67 | T60: 480.86 | U60: 719.53 | V60: 689.5 | W60: 420.63 | Y60: 207.40934 | AA60: 0.8365 | AB60: 0.7399 | AD60: 1.0326 | AF60: 28.45 | AG60: 46.179 | AH60: 30.23 | AI60: 33.696 | AJ60: 20.648 | AK60: 22.435 | AL60: 23.28 | AM60: 25.362 | AN60: 33.09 | AO60: 27.452 | AP60: 19.007 | AR60: 3.568634593 | AU60: 0.8365 | AV60: 0.8741425 | AW60: 1.0452 | AY60: 207.40934
A61: Zandvoort | B61: Medium | C61: Normal | D61: Hard | E61: Low | F61: Medium | G61: 4.251 | H61: 71 | I61: 301.8 | J61: 9 | K61: 13 | L61: 9 | M61: 230.5 | O61: 14 | P61: 22.5 | Q61: High | S61: 551.15 | T61: 655.2692117 | U61: 415.91 | V61: 779.13 | W61: 709.95 | Y61: 5.56542 | AA61: 0.8304001569 | AB61: 0.583 | AD61: 1.0571 | AF61: 39.466 | AG61: 80.409 | AH61: 48.258 | AI61: 38.215 | AJ61: 33.243 | AK61: 28.262 | AL61: 26.168 | AM61: 36.99 | AN61: 73.522 | AO61: 54.036 | AP61: 22.416 | AR61: 3.442611894 | AU61: 0.8402 | AV61: 0.878009 | AW61: 1.01818 | AY61: 5.56542
A62: Zolder | B62: Medium | C62: Hard | D62: Medium | E62: Low | F62: Medium | G62: 4.261 | H62: 70 | I62: 298.3 | J62: 11 | K62: 9 | L62: 10 | M62: 223.26 | O62: 17 | P62: 19.5 | Q62: Low | S62: 669.4223695 | T62: 616.6370253 | U62: 466.4912706 | V62: 628.4617446 | W62: 539.9 | Y62: 193.3 | AA62: 0.82861 | AB62: 0.63653 | AD62: 1.07874 | AF62: 17.442 | AG62: 22.855 | AH62: 25.241 | AI62: 22.78 | AJ62: 20.505 | AK62: 22.809 | AL62: 21.448 | AM62: 40.969 | AN62: 29.021 | AO62: 31.953 | AP62: 18.457 | AR62: 3.305190114 | AU62: 0.82861 | AV62: 0.86589745 | AW62: 0.99094 | AY62: 193.3
AD66: 0.95905

Sheet Tyre&Fuel (hidden)
B5: Race Options
B6: Weather | G6: Determines Lost time due to pitting, fuel load and Tyre choice
B7: Race | C7: =+'Setup&WS'!H22 -> Dry
G8: Tyre Wear | H8: 10 | I8: (at which point the tyres should be replaced)
B9: Tyres | K9: Lost Time (s) | X9: 0 | Y9: Garder la voiture sur la piste
B10: Brand | C10: Pipirelli | H10: Req. Stops | I10: Fuel Load | J10: Estm. Pit Time | K10: Pits | L10: Fuel Load | M10: TCD | N10: Total | O10: Delta Gomme | X10: 99 | Y10: Pousser à la limite
B11: Type | C11: =+K18 -> Hard | X11: 66 | Y11: Pousser fortement la voiture
G12: Extra Soft | H12: =(ROUNDUP(VLOOKUP('Setup&WS'!$F$18,Tracks!$A$3:$I$889,9,0)/(Tables!F55*(100-$H$8)/100),0))-1 -> 4 | I12: =ROUNDUP(VLOOKUP('Setup&WS'!F18,Tracks!$A$3:$AA$889,9,0)*(VLOOKUP('Setup&WS'!F18,Tracks!$A$3:$AB$889,27,0)+Tables!H47)/(H12+1),0) -> 37 | J12: =I12*Tables!F107+Tables!C113+Tables!F108*'Setup&WS'!H15+Tables!F109*'Setup&WS'!H14+Tables!F110*'Setup&WS'!H11+Tables!F111*'Setup&WS'!H12 -> 22.576 | K12: =H12*(J12+$D$23) -> 168.304 | L12: =0.005*((VLOOKUP('Setup&WS'!F18,Tracks!$A$3:$AA$889,9,0)*(VLOOKUP('Setup&WS'!F18,Tracks!$A$3:$AB$889,27,0)+Tables!H47))*VLOOKUP('Setup&WS'!$F$18,Tracks!$A$3:$I$889,9,0)/(H12+1))/2 -> 27.108139 | M12: 0 | N12: =SUM(K12:M12) -> 195.412139 | O12: 0 | X12: 33 | Y12: Pousser un peu la voiture
B13: Tyre & Fuel Calculations | G13: Soft | H13: =(ROUNDUP(VLOOKUP('Setup&WS'!$F$18,Tracks!$A$3:$I$889,9,0)/(Tables!F59*(100-$H$8)/100),0))-1 -> 3 | I13: =ROUNDUP(VLOOKUP('Setup&WS'!F18,Tracks!$A$3:$AA$889,9,0)*(VLOOKUP('Setup&WS'!F18,Tracks!$A$3:$AB$889,27,0)+Tables!H47)/(H13+1),0) -> 46 | J13: =I13*Tables!F107+Tables!C113+Tables!F108*'Setup&WS'!H15+Tables!F109*'Setup&WS'!H14+Tables!F110*'Setup&WS'!H11+Tables!F111*'Setup&WS'!H12 -> 22.9 | K13: =H13*(J13+$D$23) -> 127.2 | L13: =0.005*((VLOOKUP('Setup&WS'!F18,Tracks!$A$3:$AA$889,9,0)*(VLOOKUP('Setup&WS'!F18,Tracks!$A$3:$AB$889,27,0)+Tables!H47))*VLOOKUP('Setup&WS'!$F$18,Tracks!$A$3:$I$889,9,0)/(H13+1))/2 -> 33.88517375 | M13: =VLOOKUP('Setup&WS'!$F$18,Tracks!$A$3:$O$889,8,0)*(VLOOKUP('Setup&WS'!$F$18,Tracks!$A$3:$O$889,15,0)*VLOOKUP('Setup&WS'!$F$18,Tracks!$A$3:$O$889,7,0)*0.00018*(50-'Setup&WS'!$F$22)+VLOOKUP($C$10,Tables!$A$117:$B$125,2,0)) -> 11.3953392 | N13: =SUM(K13:M13) -> 172.480513 | O13: =+M13/$D$22 -> 0.1442448
C14: L/km | D14: Total L | G14: Medium | H14: =(ROUNDUP(VLOOKUP('Setup&WS'!$F$18,Tracks!$A$3:$I$889,9,0)/(Tables!F57*(100-$H$8)/100),0))-1 -> 2 | I14: =ROUNDUP(VLOOKUP('Setup&WS'!F18,Tracks!$A$3:$AA$889,9,0)*(VLOOKUP('Setup&WS'!F18,Tracks!$A$3:$AB$889,27,0)+Tables!H47)/(H14+1),0) -> 61 | J14: =I14*Tables!F107+Tables!C113+Tables!F108*'Setup&WS'!H15+Tables!F109*'Setup&WS'!H14+Tables!F110*'Setup&WS'!H11+Tables!F111*'Setup&WS'!H12 -> 23.44 | K14: =H14*(J14+$D$23) -> 85.88 | L14: =0.005*((VLOOKUP('Setup&WS'!F18,Tracks!$A$3:$AA$889,9,0)*(VLOOKUP('Setup&WS'!F18,Tracks!$A$3:$AB$889,27,0)+Tables!H47))*VLOOKUP('Setup&WS'!$F$18,Tracks!$A$3:$I$889,9,0)/(H14+1))/2 -> 45.18023167 | M14: =M13*2 -> 22.7906784 | N14: =SUM(K14:M14) -> 153.8509101 | O14: =+M14/$D$22 -> 0.2884896
B15: Fuel | C15: =IF(C7="Dry",VLOOKUP('Setup&WS'!F18,Tracks!$A$3:$AB$889,27,0),VLOOKUP('Setup&WS'!F18,Tracks!$A$3:$AB$889,28,0))+Tables!H47 -> 0.6080651211 | D15: =VLOOKUP('Setup&WS'!F18,Tracks!$A$3:$AA$889,9,0)*C15+IF(C11="rain",0,IF(H29>0,Tables!H50,0)) -> 184.5682452 | G15: Hard | H15: =(ROUNDUP(VLOOKUP('Setup&WS'!$F$18,Tracks!$A$3:$I$889,9,0)/(Tables!F56*(100-$H$8)/100),0))-1 -> 1 | I15: =ROUNDUP(VLOOKUP('Setup&WS'!F18,Tracks!$A$3:$AA$889,9,0)*(VLOOKUP('Setup&WS'!F18,Tracks!$A$3:$AB$889,27,0)+Tables!H47)/(H15+1),0) -> 91 | J15: =I15*Tables!F107+Tables!C113+Tables!F108*'Setup&WS'!H15+Tables!F109*'Setup&WS'!H14+Tables!F110*'Setup&WS'!H11+Tables!F111*'Setup&WS'!H12 -> 24.52 | K15: =H15*(J15+$D$23) -> 44.02 | L15: =0.005*((VLOOKUP('Setup&WS'!F18,Tracks!$A$3:$AA$889,9,0)*(VLOOKUP('Setup&WS'!F18,Tracks!$A$3:$AB$889,27,0)+Tables!H47))*VLOOKUP('Setup&WS'!$F$18,Tracks!$A$3:$I$889,9,0)/(H15+1))/2 -> 67.7703475 | M15: =M13*3 -> 34.1860176 | N15: =SUM(K15:M15) -> 145.9763651 | O15: =+M15/$D$22 -> 0.4327344
G16: Rain | H16: =(ROUNDUP(VLOOKUP('Setup&WS'!$F$18,Tracks!$A$3:$I$889,9,0)/(Tables!F58*(100-$H$8)/100),0))-1 -> 1 | I16: =ROUNDUP(VLOOKUP('Setup&WS'!F18,Tracks!$A$3:$AA$889,9,0)*(VLOOKUP('Setup&WS'!F18,Tracks!$A$3:$AB$889,28,0)+Tables!H47)/(H16+1),0) -> 75 | J16: =I16*Tables!F107+Tables!C113+Tables!F108*'Setup&WS'!H15+Tables!F109*'Setup&WS'!H14+Tables!F110*'Setup&WS'!H11+Tables!F111*'Setup&WS'!H12 -> 23.944 | K16: =H16*(J16+$D$23) -> 43.444 | L16: =0.005*((VLOOKUP('Setup&WS'!F18,Tracks!$A$3:$AA$889,9,0)*(VLOOKUP('Setup&WS'!F18,Tracks!$A$3:$AB$889,28,0)+Tables!H47))*VLOOKUP('Setup&WS'!$F$18,Tracks!$A$3:$I$889,9,0)/(H16+1))/2 -> 55.84382083 | M16: 0 | N16: =SUM(K16:M16) -> 99.28782083 | O16: =+M16/$D$22 -> 0
C17: Máx. Km | D17: Laps | N17: =MIN(N12:N15) -> 145.9763651
B18: Tyres | C18: =Tables!K82*VLOOKUP('Setup&WS'!$F$18,Tracks!A3:AD889,30,0)*Tables!B77*IF(C11="Rain",1.25,1) -> 182.5953929 | D18: =C18/VLOOKUP('Setup&WS'!F18,Tracks!$A$3:$G$889,7,0) -> 48.30565951 | K18: =IF(N17=N12,G12,IF(N17=N13,G13,IF(N17=N14,G14,G15))) -> Hard | M18: =IF(K18=G12,J12,IF(K18=G13,J13,IF(K18=G14,J14,J15))) -> 24.52
B20: Race Details | G20: Chosen pit strategy details | Q20: Estimated Parts Wear
B21: Overtaking | D21: =VLOOKUP('Setup&WS'!$F$18,Tracks!$A$3:$P$889,3,0) -> Hard
B22: Laps | D22: =VLOOKUP('Setup&WS'!$F$18,Tracks!$A$3:$P$889,8,0) -> 79 | G22: Pitstops | H22: =VLOOKUP(C11,G12:H16,2,0) -> 1 | I22: CT Risk | J22: 30 | K22: à | M22: =+Tables!T82 -> 0.6033320935
B23: Pit I/O | D23: =VLOOKUP('Setup&WS'!$F$18,Tracks!$A$3:$P$889,16,0) -> 19.5 | I23: Risk Pluie | J23: 0
H24: Stint1 | I24: Stint2 | J24: Stint3 | K24: Stint4 | L24: Stint5 | R24: Start | S24: Est.Wear | T24: End
B25: Q1 | C25: =+C29-D29 -> 5 | D25: Pousser à la limite | F25: =LOOKUP(D25,$Y$9:$Y$12,$X$9:$X$12) -> 99 | G25: Laps | H25: =IF(SUM(Tables!B86:B87)>0,SUM(Tables!B86:B87)+0.2,"0") -> 40.2 | I25: =IF(SUM(Tables!C86:C87)>0,SUM(Tables!C86:C87)+0.2,"0") -> 39.2 | J25: =IF(SUM(Tables!D86:D87)>0,SUM(Tables!D86:D87)+0.2,"0") -> 0 | K25: =IF(SUM(Tables!E86:E87)>0,SUM(Tables!E86:E87)+0.2,"0") -> 0 | L25: =IF(SUM(Tables!F86:F87)>0,SUM(Tables!F86:F87)+0.2,"0") -> 0 | Q25: Chassis | R25: =+'Setup&WS'!C26 -> 71 | S25: =VLOOKUP('Setup&WS'!$F$18,Tracks!$A$3:$AP$889,32,0)*VLOOKUP('Setup&WS'!B26,Tables!$B$94:$C$102,2,0)^$J$22*Tables!$B$91 -> 21.72569677 | T25: =S25+R25 -> 92.72569677 | U25: =IF(T25>=97,Q25,"NON OK ") -> NON OK
B26: Q2 | C26: =+C30-D30 -> 7 | D26: Pousser à la limite | F26: =LOOKUP(D26,$Y$9:$Y$12,$X$9:$X$12) -> 99 | G26: Tyre Final Wear | H26: =IF(H25<>"-",100-H25*100*VLOOKUP('Setup&WS'!$F$18,Tracks!$A$3:$G$889,7,0)/$C$18,"-") -> 16.77993756 | I26: =IF(I25<>"-",100-I25*100*VLOOKUP('Setup&WS'!$F$18,Tracks!$A$3:$G$889,7,0)/$C$18,"-") -> 18.85008837 | J26: =IF(J25<>"-",100-J25*100*VLOOKUP('Setup&WS'!$F$18,Tracks!$A$3:$G$889,7,0)/$C$18,"-") -> 100 | K26: =IF(K25<>"-",100-K25*100*VLOOKUP('Setup&WS'!$F$18,Tracks!$A$3:$G$889,7,0)/$C$18,"-") -> 100 | L26: =IF(L25<>"-",100-L25*100*VLOOKUP('Setup&WS'!$F$18,Tracks!$A$3:$G$889,7,0)/$C$18,"-") -> 100 | M26: Total | Q26: Engine | R26: =+'Setup&WS'!C27 -> 0 | S26: =VLOOKUP('Setup&WS'!$F$18,Tracks!$A$3:$AP$889,33,0)*VLOOKUP('Setup&WS'!B27,Tables!$B$94:$C$102,2,0)^$J$22*Tables!$B$91 -> 12.79246552 | T26: 12.79246552 | U26: =IF(T26>=97,Q26,"NON OK ") -> NON OK
G27: Fuel Needed | H27: =ROUNDUP(IF(H25<>"-",($D$15)/$D$22*H25),0.1) -> 94 | I27: =ROUNDUP(IF(I25<>"-",($D$15)/$D$22*I25),0.1) -> 92 | J27: 0 | K27: 0 | L27: 0 | M27: =SUM(H27:L27) -> 186 | Q27: Front wing | R27: =+'Setup&WS'!C28 -> 31 | S27: =VLOOKUP('Setup&WS'!$F$18,Tracks!$A$3:$AP$889,34,0)*VLOOKUP('Setup&WS'!B28,Tables!$B$94:$C$102,2,0)^$J$22*Tables!$B$91 -> 22.97618779 | T27: 53.97618779 | U27: NON OK
B28: energie | Q28: Rear wing | R28: =+'Setup&WS'!C29 -> 34 | S28: =VLOOKUP('Setup&WS'!$F$18,Tracks!$A$3:$AP$889,35,0)*VLOOKUP('Setup&WS'!B29,Tables!$B$94:$C$102,2,0)^$J$22*Tables!$B$91 -> 27.05036821 | T28: 61.05036821 | U28: NON OK
B29: Q1 | C29: =+IMPORTS!A4*100 -> 75 | D29: 70 | G29: Boost | H29: 3 | L29: Fuel | M29: Pitstop | Q29: Underbody | R29: =+'Setup&WS'!C30 -> 0 | S29: =VLOOKUP('Setup&WS'!$F$18,Tracks!$A$3:$AP$889,36,0)*VLOOKUP('Setup&WS'!B30,Tables!$B$94:$C$102,2,0)^$J$22*Tables!$B$91 -> 24.52460685 | T29: 24.52460685 | U29: NON OK
B30: Q2 | C30: =+D29 -> 70 | D30: 63 | K30: No stop | L30: =$M$27 -> 186 | M30: =L30*Tables!F107+Tables!C113+Tables!F108*'Setup&WS'!H15+Tables!F109*'Setup&WS'!H14+Tables!F110*'Setup&WS'!H11+Tables!F111*'Setup&WS'!H12 -> 27.94 | Q30: Sidepods | R30: =+'Setup&WS'!C31 -> 28 | S30: =VLOOKUP('Setup&WS'!$F$18,Tracks!$A$3:$AP$889,37,0)*VLOOKUP('Setup&WS'!B31,Tables!$B$94:$C$102,2,0)^$J$22*Tables!$B$91 -> 14.80708147 | T30: 42.80708147 | U30: NON OK
K31: 1 Stop | L31: =$M$27/2 -> 93 | M31: =L31*Tables!F107+Tables!C113+Tables!F108*'Setup&WS'!H15+Tables!F109*'Setup&WS'!H14+Tables!F110*'Setup&WS'!H11+Tables!F111*'Setup&WS'!H12 -> 24.592 | Q31: Cooling | R31: =+'Setup&WS'!C32 -> 20 | S31: =VLOOKUP('Setup&WS'!$F$18,Tracks!$A$3:$AP$889,38,0)*VLOOKUP('Setup&WS'!B32,Tables!$B$94:$C$102,2,0)^$J$22*Tables!$B$91 -> 17.28558925 | T31: 37.28558925 | U31: NON OK
G32: Custom Stint | H32: 1 | K32: 2 Stops | L32: =$M$27/3 -> 62 | M32: =L32*Tables!F107+Tables!C113+Tables!F108*'Setup&WS'!H15+Tables!F109*'Setup&WS'!H14+Tables!F110*'Setup&WS'!H11+Tables!F111*'Setup&WS'!H12 -> 23.476 | Q32: Gearbox | R32: =+'Setup&WS'!C33 -> 33 | S32: =VLOOKUP('Setup&WS'!$F$18,Tracks!$A$3:$AP$889,39,0)*VLOOKUP('Setup&WS'!B33,Tables!$B$94:$C$102,2,0)^$J$22*Tables!$B$91 -> 16.44698603 | T32: 49.44698603 | U32: NON OK
G33: Final Wear | H33: =IF(H25<>"-",100-H32*100*VLOOKUP('Setup&WS'!$F$18,Tracks!$A$3:$G$889,7,0)/$C$18,"-") -> 97.92984919 | K33: 3 Stops | L33: =$M$27/4 -> 46.5 | M33: =L33*Tables!F107+Tables!C113+Tables!F108*'Setup&WS'!H15+Tables!F109*'Setup&WS'!H14+Tables!F110*'Setup&WS'!H11+Tables!F111*'Setup&WS'!H12 -> 22.918 | Q33: Brakes | R33: =+'Setup&WS'!C34 -> 0 | S33: =VLOOKUP('Setup&WS'!$F$18,Tracks!$A$3:$AP$889,40,0)*VLOOKUP('Setup&WS'!B34,Tables!$B$94:$C$102,2,0)^$J$22*Tables!$B$91 -> 13.64821629 | T33: 13.64821629 | U33: NON OK
G34: Fuel Needed | H34: =IF(H25<>"-",ROUNDUP(H32*$C15*VLOOKUP('Setup&WS'!$F$18,Tracks!$A$3:$G$889,7,0),0),"-") -> 3 | K34: 4 Stops | L34: =$M$27/5 -> 37.2 | M34: =L34*Tables!F107+Tables!C113+Tables!F108*'Setup&WS'!H15+Tables!F109*'Setup&WS'!H14+Tables!F110*'Setup&WS'!H11+Tables!F111*'Setup&WS'!H12 -> 22.5832 | Q34: Suspension | R34: =+'Setup&WS'!C35 -> 40 | S34: =VLOOKUP('Setup&WS'!$F$18,Tracks!$A$3:$AP$889,41,0)*VLOOKUP('Setup&WS'!B35,Tables!$B$94:$C$102,2,0)^$J$22*Tables!$B$91 -> 8.60360873 | T34: 48.60360873 | U34: NON OK
G35: Est. Pit time | H35: =H34*Tables!F107+Tables!C113+Tables!F108*'Setup&WS'!H15+Tables!F109*'Setup&WS'!H14+Tables!F110*'Setup&WS'!H11+Tables!F111*'Setup&WS'!H12 -> 21.352 | K35: Avg. Pit time | M35: =AVERAGE(M30:M34) -> 24.30184 | Q35: Electronics | R35: =+'Setup&WS'!C36 -> 0 | S35: =VLOOKUP('Setup&WS'!$F$18,Tracks!$A$3:$AP$889,42,0)*VLOOKUP('Setup&WS'!B36,Tables!$B$94:$C$102,2,0)^$J$22*Tables!$B$91 -> 12.36314948 | T35: 12.36314948 | U35: NON OK

Sheet Qualif (hidden)
A1: Practices & Qualif de ……………
X4: Qualif 1
A5: Niveau G | B5: Concentrat° | C5: Talent | E5: Aggress | G5: Exp | I5: Con, Tech | K5: Endurance | M5: Charisme | O5: Motivation | Q5: Réputation | S5: Poids | U5: Age | X5: Pos. | Y5: Chrono | Z5: Écart
A6: =+'Setup&WS'!C8 -> 147.1232 | B6: =+'Setup&WS'!C9 -> 205 | C6: =+'Setup&WS'!C10 -> 210 | E6: =+'Setup&WS'!C11 -> 0 | G6: =+'Setup&WS'!C12 -> 131 | I6: =+'Setup&WS'!C13 -> 119 | K6: =+'Setup&WS'!C14 -> 96 | M6: =+'Setup&WS'!C15 -> 63 | O6: =+'Setup&WS'!C16 -> 244 | Q6: =+'Setup&WS'!C17 -> 0 | S6: =+'Setup&WS'!C18 -> 56 | U6: =+'Setup&WS'!C19 -> 25 | X6: 1 | Y6: 1:21.188s | Z6: + 0.000s
C7: Niveau | E7: Leader | G7: Meca | I7: Elec | K7: Aéro | M7: Exp | O7: Pit | Q7: Motiv | S7: Age | X7: Qualif 2
C8: =IMPORTS!I4 -> 0 | E8: =IMPORTS!I6 -> 0 | G8: =IMPORTS!I8 -> 0 | I8: =IMPORTS!I10 -> 0 | K8: =IMPORTS!I12 -> 0 | M8: =IMPORTS!I14 -> 0 | O8: =IMPORTS!I16 -> 0 | Q8: =IMPORTS!I18 -> 0 | S8: =IMPORTS!I22 -> 0 | X8: Pos. | Y8: Chrono | Z8: Écart
B9: Chassis | C9: Moteur | E9: Ail Av | G9: Ail Ar | I9: Fond Plat | K9: Pontons | M9: Refroid | O9: B V | Q9: Freins | S9: Susp | U9: Elect | X9: 1 | Y9: 1:22.881s | Z9: + 0.000s
A10: Level | B10: =+'Setup&WS'!B26 -> 7 | C10: =+'Setup&WS'!B27 -> 7 | E10: =+'Setup&WS'!B28 -> 7 | G10: =+'Setup&WS'!B29 -> 7 | I10: =+'Setup&WS'!B30 -> 7 | K10: =+'Setup&WS'!B31 -> 7 | M10: =+'Setup&WS'!B32 -> 7 | O10: =+'Setup&WS'!B33 -> 6 | Q10: =+'Setup&WS'!B34 -> 7 | S10: =+'Setup&WS'!B35 -> 7 | U10: =+'Setup&WS'!B36 -> 7 | X10: Grille de Départ
A11: % Usure | B11: =+'Setup&WS'!C26 -> 71 | C11: =+'Setup&WS'!C27 -> 0 | E11: =+'Setup&WS'!C28 -> 31 | G11: =+'Setup&WS'!C29 -> 34 | I11: =+'Setup&WS'!C30 -> 0 | K11: =+'Setup&WS'!C31 -> 28 | M11: =+'Setup&WS'!C32 -> 20 | O11: =+'Setup&WS'!C33 -> 33 | Q11: =+'Setup&WS'!C34 -> 0 | S11: =+'Setup&WS'!C35 -> 40 | U11: =+'Setup&WS'!C36 -> 0 | X11: Pos. | Y11: Chrono | Z11: Écart
A12: Est Usure | B12: ='Tyre&Fuel'!S25 -> 21.72569677 | C12: ='Tyre&Fuel'!S26 -> 12.79246552 | E12: ='Tyre&Fuel'!S27 -> 22.97618779 | G12: ='Tyre&Fuel'!S28 -> 27.05036821 | I12: ='Tyre&Fuel'!S29 -> 24.52460685 | K12: ='Tyre&Fuel'!S30 -> 14.80708147 | M12: ='Tyre&Fuel'!S31 -> 17.28558925 | O12: ='Tyre&Fuel'!S32 -> 16.44698603 | Q12: ='Tyre&Fuel'!S33 -> 13.64821629 | S12: ='Tyre&Fuel'!S34 -> 8.60360873 | U12: ='Tyre&Fuel'!S35 -> 12.36314948 | X12: 1 | Y12: 2:44.069s | Z12: + 0.000s | BA12: Fuel Dry | BC12: Fuel Wet
A13: Fin Race | B13: =B11+B12 -> 92.72569677 | C13: =C11+C12 -> 12.79246552 | E13: 53.97618779 | G13: =G11+G12 -> 61.05036821 | I13: =I11+I12 -> 24.52460685 | K13: =K11+K12 -> 42.80708147 | M13: =M11+M12 -> 37.28558925 | O13: =O11+O12 -> 49.44698603 | Q13: =Q11+Q12 -> 13.64821629 | S13: =S11+S12 -> 48.60360873 | U13: =U11+U12 -> 12.36314948 | AT13: Nbre de toiurs | AW13: ='Tyre&Fuel'!D22 -> 79 | BA13: =VLOOKUP('Setup&WS'!F18,Tracks!$A$3:$AB$889,27,0)+Tables!H47 -> 0.6080651211 | BC13: =VLOOKUP('Setup&WS'!F18,Tracks!$A$3:$AB$889,28,0)+Tables!H47 -> 0.5010551211
AF14: REDUIRE A 75%
AT15: Base Wear | AW15: KM Max | AY15: % Pneus | BA15: =VLOOKUP('Setup&WS'!F18,Tracks!$A$3:$AA$889,9,0)*BA13+Tables!H50 -> 184.5682452 | BC15: =VLOOKUP('Setup&WS'!F18,Tracks!$A$3:$AA$889,9,0)*BC13 -> 149.6150592
AT16: =+N26 -> Medium | AW16: =LOOKUP(AT16,Tables!$A$55:$A$59,Tables!$F$55:$F$59) -> 136.8451021 | AY16: =IF(Q26<>"-",100-Q26*100*VLOOKUP('Setup&WS'!$F$18,Tracks!$A$3:$G$889,7,0)/AW16,"-") -> 44.75505603 | BA16: =$BA$15/$AW$13*Q26 -> 46.72613801 | BC16: =$BC$15/$AW$13*Q26 -> 37.87723016
A17: Poste | E17: Circuit | H17: pma | K17: Caisse | N17: Delta | Q17: Adequation
A18: Puissance | E18: =VLOOKUP('Setup&WS'!$F$18,Tracks!$A$3:$P$889,10,0) -> 8 | H18: ='Setup&WS'!I19 -> 82.51217185 | K18: =+'Setup&WS'!D22 -> 93.58545 | N18: =+H18-K18 -> -11.07327815 | Q18: =IF(H18=N18,"OK attaque","Attente CR 0") -> Attente CR 0
A19: Maniabilite | E19: =VLOOKUP('Setup&WS'!$F$18,Tracks!$A$3:$P$889,11,0) -> 9 | H19: ='Setup&WS'!I20 -> 92.82619333 | K19: =+'Setup&WS'!D23 -> 94.03071 | N19: =+H19-K19 -> -1.204516667 | Q19: =IF(H19=N19,"OK attaque","Attente CR 0") -> Attente CR 0
A20: Acceleration | E20: =VLOOKUP('Setup&WS'!$F$18,Tracks!$A$3:$P$889,12,0) -> 10 | H20: ='Setup&WS'!I21 -> 103.1402148 | K20: =+'Setup&WS'!D24 -> 90.86242 | N20: 12.27779481 | Q20: =IF(H20=N20,"OK attaque","Attente CR 0") -> Attente CR 0
D24: Balance | F24: Q1 | H24: Q2 | J24: Race | L24: 71 | N24: Gomme | Q24: Tours | S24: Run Pneu | U24: Fuel | AT24: =+N27 -> Medium | AW24: =LOOKUP(AT24,Tables!$A$55:$A$59,Tables!$F$55:$F$59) -> 136.8451021 | AY24: =IF(Q27<>"-",100-Q27*100*VLOOKUP('Setup&WS'!$F$18,Tracks!$A$3:$G$889,7,0)/AW24,"-") -> 47.51730323 | BA24: =$BA$15/$AW$13*Q27 -> 44.38983111 | BC24: =$BC$15/$AW$13*Q27 -> 35.98336866
A25: Ailerons Avant | D25: =(J25-J26)/2 -> -63 | F25: =+'Setup&WS'!L9 -> 644 | H25: =+'Setup&WS'!L16 -> 625 | J25: =+'Setup&WS'!L23 -> 615 | L25: Normal | AT25: =+N28 -> Medium | AW25: =LOOKUP(AT25,Tables!$A$55:$A$59,Tables!$F$55:$F$59) -> 136.8451021 | AY25: =IF(Q28<>"-",100-Q28*100*VLOOKUP('Setup&WS'!$F$18,Tracks!$A$3:$G$889,7,0)/AW25,"-") -> 47.51730323 | BA25: =$BA$15/$AW$13*Q28 -> 44.38983111 | BC25: =$BC$15/$AW$13*Q28 -> 35.98336866
A26: Ailerons Arriere | F26: =+'Setup&WS'!L10 -> 777 | H26: =+'Setup&WS'!L17 -> 754 | J26: =+'Setup&WS'!L24 -> 741 | L26: Q2 | N26: Medium | Q26: 20 | S26: =AY16 -> 44.75505603 | U26: =ROUNDUP(IF(N26="Rain",BC16,BA16),0) -> 47 | X26: =+'Tyre&Fuel'!H25 -> 40.2 | AT26: =+N29 -> Medium | AW26: =LOOKUP(AT26,Tables!$A$55:$A$59,Tables!$F$55:$F$59) -> 136.8451021 | AY26: =IF(Q29<>"-",100-Q29*100*VLOOKUP('Setup&WS'!$F$18,Tracks!$A$3:$G$889,7,0)/AW26,"-") -> 55.80404483 | BA26: =$BA$15/$AW$13*Q29 -> 37.38091041 | BC26: =$BC$15/$AW$13*Q29 -> 30.30178413
A27: Moteur | D27: Risk | F27: =+'Setup&WS'!L11 -> 633 | H27: =+'Setup&WS'!L18 -> 651 | J27: =+'Setup&WS'!L25 -> 661 | L27: 1e arret | N27: =+N26 -> Medium | Q27: 19 | S27: =AY24 -> 47.51730323 | U27: =ROUNDUP(IF(N27="Rain",BC24,BA24),0) -> 45 | X27: =+'Tyre&Fuel'!I25 -> 39.2 | AT27: =+N30 -> Medium | AW27: =LOOKUP(AT27,Tables!$A$55:$A$59,Tables!$F$55:$F$59) -> 136.8451021 | AY27: =IF(Q30<>"-",100-Q30*100*VLOOKUP('Setup&WS'!$F$18,Tracks!$A$3:$G$889,7,0)/AW27,"-") -> 100 | BA27: =$BA$15/$AW$13*Q30 -> 0 | BC27: =$BC$15/$AW$13*Q30 -> 0
A28: Freins | F28: =+'Setup&WS'!L12 -> 365 | H28: =+'Setup&WS'!L19 -> 335 | J28: =+'Setup&WS'!L26 -> 319 | L28: 2e arret | N28: =+N27 -> Medium | Q28: 19 | S28: =AY25 -> 47.51730323 | U28: =ROUNDUP(IF(N28="Rain",BC25,BA25),0) -> 45 | X28: =+'Tyre&Fuel'!J25 -> 0
A29: Boite de Vitesse | D29: =+'Tyre&Fuel'!J22 -> 30 | F29: =+'Setup&WS'!L13 -> 345 | H29: =+'Setup&WS'!L20 -> 365 | J29: =+'Setup&WS'!L27 -> 376 | L29: 3e arret | N29: =+N28 -> Medium | Q29: 16 | S29: =AY26 -> 55.80404483 | U29: =ROUNDUP(IF(N29="Rain",BC26,BA26),0) -> 38 | X29: =+'Tyre&Fuel'!K25 -> 0
A30: Suspension | F30: =+'Setup&WS'!L14 -> 692 | H30: =+'Setup&WS'!L21 -> 722 | J30: =+'Setup&WS'!L28 -> 738 | L30: 4e arret | N30: =+N29 -> Medium | Q30: 0 | S30: =AY27 -> 100 | U30: =ROUNDUP(IF(N30="Rain",BC27,BA27),0) -> 0 | X30: =+'Tyre&Fuel'!L25 -> 0 | Z30: OK
A31: Chronos | F31: =+Y6 -> 1:21.188s | H31: =+Y9 -> 1:22.881s | J31: =+Y12 -> 2:44.069s | Q31: =IF('Tyre&Fuel'!D22=SUM(Qualif!Q26:R30),"ok",'Tyre&Fuel'!D22-SUM(Qualif!Q26:R30)) -> 5 | U31: =SUM(U26:V30) -> 175 | Z31: KO
A32: Meteo | F32: =+'Setup&WS'!$H$20 -> Dry | H32: =+'Setup&WS'!$H$21 -> Dry | J32: =+'Setup&WS'!$H$22 -> Dry | L32: ='Setup&WS'!F18 -> Adelaide
F33: ='Setup&WS'!F20 -> 40 | H33: ='Setup&WS'!F21 -> 35 | J33: ='Setup&WS'!F22 -> 32.33333333
F34: 1 | H34: 35 | J34: 55
A37: Energy utilisée en % | F37: Q1 | H37: =+'Tyre&Fuel'!C25 -> 5 | J37: =+'Tyre&Fuel'!D25 -> Pousser à la limite
F38: Q2 | H38: =+'Tyre&Fuel'!C26 -> 7 | J38: =+'Tyre&Fuel'!D26 -> Pousser à la limite
A39: Nbre de Pts | C39: =+Menu!L15 -> 0 | G39: OBJECTIF SAISON | M39: Promotion | T39: OK

Sheet ReverseCalc (hidden)
B2: Determine the best WS based on 3 laps with different WS
B4: FW+RW | C4: 1060 | E4: Formula | H4: Proposed Wings
E5: Denom | F5: =(B8-B9)*(B8-B10)*(B9-B10) -> -4320 | H5: FW | I5: =C4/2+F9/2 -> 542.75
B6: Study Laps | E6: A | F6: =(B10*(C9-C8)+B9*(C8-C10)+B8*(C10-C9))/F5 -> 1.111111111e-05 | H6: RW | I6: =C4-I5 -> 517.25
B7: FW – RW | C7: Time (Secs) | E7: B | F7: =(B10*B10*(C8-C9)+B9*B9*(C10-C8)+B8*B8*(C9-C10))/F5 -> -0.0005666666667 | H7: FW – RW | I7: =ROUND(I5-I6,0) -> 25
B8: 0 | C8: 28.441 | E8: C | F8: =(B9*B10*(B9-B10)*C8+B10*B8*(B10-B8)*C9+B8*B9*(B8-B9)*C10)/F5 -> 28.441
B9: 6 | C9: 28.438 | E9: XV | F9: =-F7/(2*F6) -> 25.5
B10: 30 | C10: 28.434 | E10: YV | F10: =F8-F7*F7/(4*F6) -> 28.433775
B12: Determine the Wing Split base value
B13: WS Base | C13: Tal | D13: FW lvl | E13: RW lvl | F13: FW | G13: RW | H13: Temp | I13: Weather
B14: =IF(C14<>"",(F14-G14)/2+0.246534498671854*C14-3.69107049712848*(D14+E14)/2+0.189968386659174*(F14+G14)/2-0.376337780506523*H14-IF(I14="Wet",58.8818967363256,0),0) -> 118.9203356 | C14: 181 | D14: 7 | E14: 7 | F14: 543 | G14: 517 | H14: 36 | I14: Dry
B15: =IF(C15<>"",(F15-G15)/2+0.246534498671854*C15-3.69107049712848*(D15+E15)/2+0.189968386659174*(F15+G15)/2-0.376337780506523*H15-IF(I15="Wet",58.8818967363256,0),0) -> 0 | I15: Dry
B16: 0 | I16: Dry
B17: 0 | I17: Dry
B18: 0 | I18: Dry
B19: 0 | I19: Dry
B20: 0 | I20: Dry
B21: 0 | I21: Dry
B22: 0 | I22: Dry
B23: 0 | I23: Dry
B24: =SUM(B14:B23)/COUNTIF(B14:B23,"<>0") -> 118.9203356 | C24: Average | E24: FW and RW represent the best WS
B26: Determine the Fuel base value ( dry / wet )
B27: Fuel Base | C27: Fuel Used | D27: Km Done | E27: Conc | F27: Agg | G27: Exp | H27: TI | I27: EngLvl | J27: EleLvl
B28: =IF(D28>0,(C28-((E28*-0.000101165457155397)+(F28*0.0000706080613787091)+(G28*-0.0000866455021527332)+(H28*-0.000163915452803369)+(I28*-0.0126912680856842)+(J28*-0.0083557977071091))*D28)/D28,0) -> 0.900977015 | C28: 217.6 | D28: 306.711 | E28: 212 | F28: 22 | G28: 179 | H28: 131 | I28: 6 | J28: 7
B29: =IF(D29>0,(C29-((E29*-0.000101165457155397)+(F29*0.0000706080613787091)+(G29*-0.0000866455021527332)+(H29*-0.000163915452803369)+(I29*-0.0126912680856842)+(J29*-0.0083557977071091))*D29)/D29,0) -> 0
B30: 0
B31: 0
B32: 0
B33: 0
B34: 0
B35: 0
B36: 0
B37: 0
B38: =SUM(B28:B37)/COUNTIF(B28:B37,"<>0") -> 0.900977015 | C38: Average | E38: If race is full wet or dry then race totals can be used instead of stint totals
B40: Determine the Tyre base value | O40: Type | P40: Factor | R40: Pipirelli | S40: 1 | U40: Very high | V40: 4
B41: Tyre Base | C41: Máx Km | D41: Track Wear | E41: Avg Temp | F41: T Brand | G41: T Type | H41: Susp lvl | I41: Agg | J41: Exp | K41: Weig | L41: CT | N41: Extra Soft | O41: 0 | P41: 0.9981637502 | R41: Yokomama | S41: 2 | U41: High | V41: 3
B42: =IF(C42<>"",C42/(0.896416176238624^VLOOKUP($D42,$U$40:$V$44,2,0)*0.988463622^E42*1.048876356^VLOOKUP($F42,$R$40:$S$45,2,0)*1.355293715^VLOOKUP($G42,$N$41:$P$45,2,0)*1.009339294^H42*0.999670155^I42*1.00022936^J42*0.999858329^K42*VLOOKUP($G42,$N$41:$P$45,3,0)^L42*129.776458172062*IF(G42="Rain",0.73,1)),0) -> 1.073425021 | C42: 82.671 | D42: Medium | E42: 26.38 | F42: Yokomama | G42: Extra Soft | H42: 7 | I42: 22 | J42: 179 | K42: 53 | L42: 100 | N42: Soft | O42: 1 | P42: 0.9970648448 | R42: Dunnolop | S42: 4 | U42: Medium | V42: 2
B43: =IF(C43<>"",C43/(0.896416176238624^VLOOKUP($D43,$U$40:$V$44,2,0)*0.988463622^E43*1.048876356^VLOOKUP($F43,$R$40:$S$45,2,0)*1.355293715^VLOOKUP($G43,$N$41:$P$45,2,0)*1.009339294^H43*0.999670155^I43*1.00022936^J43*0.999858329^K43*VLOOKUP($G43,$N$41:$P$45,3,0)^L43*129.776458172062*IF(G43="Rain",0.73,1)),0) -> 1.069431141 | C43: 81.773 | D43: Medium | E43: 27 | F43: Yokomama | G43: Extra Soft | H43: 7 | I43: 22 | J43: 179 | K43: 53 | L43: 100 | N43: Medium | O43: 2 | P43: 0.9963803466 | R43: Badyear | S43: 7 | U43: Low | V43: 1
B44: 1.074830122 | C44: 83.59 | D44: Medium | E44: 25.54 | F44: Yokomama | G44: Extra Soft | H44: 7 | I44: 22 | J44: 179 | K44: 53 | L44: 100 | N44: Hard | O44: 3 | P44: 0.995862526 | R44: Michelini | S44: 5 | U44: Very low | V44: 0
B45: 1.07541686 | C45: 85.282 | D45: Medium | E45: 23.86 | F45: Yokomama | G45: Extra Soft | H45: 7 | I45: 22 | J45: 179 | K45: 53 | L45: 100 | N45: Rain | O45: 5 | P45: 0.9960878544 | R45: Bridgerock | S45: 6
B46: 0 | D46: Medium | F46: Pipirelli | G46: Medium
B47: 0 | D47: Medium | F47: Pipirelli | G47: Medium
B48: 0 | D48: Medium | F48: Pipirelli | G48: Medium
B49: 0 | D49: Medium | F49: Pipirelli | G49: Medium
B50: 0 | D50: Medium | F50: Pipirelli | G50: Medium
B51: 0 | D51: Medium | F51: Pipirelli | G51: Medium
B52: =SUM(B42:B51)/COUNTIF(B42:B51,"<>0") -> 1.073275786 | C52: Average | E52: If race is full wet or dry then race totals can be used instead of stint totals
B54: Determine the Parts base value | P54: Lvl | Q54: Factor
B55: Race 1 | C55: Chassis | D55: Engine | E55: Front wing | F55: Rear wing | G55: Underbody | H55: Sidepods | I55: Cooling | J55: Gearbox | K55: Brakes | L55: Suspension | M55: Electronics | P55: 1 | Q55: 1.019326794
B56: Level | C56: 7 | D56: 6 | E56: 7 | F56: 7 | G56: 7 | H56: 7 | I56: 7 | J56: 7 | K56: 6 | L56: 7 | M56: 7 | P56: 2 | Q56: 1.009955816
B57: Wear | C57: 23 | D57: 43 | E57: 15 | F57: 11 | G57: 21 | H57: 18 | I57: 14 | J57: 34 | K57: 39 | L57: 23 | M57: 15 | P57: 3 | Q57: 1.007326162
B58: Driver | C58: Conc | D58: Tal | E58: Exp | F58: CT | P58: 4 | Q58: 1.005314145
C59: 212 | D59: 181 | E59: 179 | F59: 100 | P59: 5 | Q59: 1.004326864
P60: 6 | Q60: 1.003666914
B61: Race 2 | C61: Chassis | D61: Engine | E61: Front wing | F61: Rear wing | G61: Underbody | H61: Sidepods | I61: Cooling | J61: Gearbox | K61: Brakes | L61: Suspension | M61: Electronics | P61: 7 | Q61: 1.004304825
B62: Level | C62: 3 | D62: 3 | E62: 2 | F62: 3 | G62: 2 | H62: 3 | I62: 3 | J62: 3 | K62: 2 | L62: 3 | M62: 3 | P62: 8 | Q62: 1.009690012
B63: Wear | C63: 19 | D63: 36 | E63: 19 | F63: 21 | G63: 20 | H63: 13 | I63: 11 | J63: 25 | K63: 30 | L63: 33 | M63: 9 | P63: 9 | Q63: 1.005151955
B64: Driver | C64: Conc | D64: Tal | E64: Exp | F64: CT
C65: 199 | D65: 65 | E65: 78 | F65: 0
B67: Race 3 | C67: Chassis | D67: Engine | E67: Front wing | F67: Rear wing | G67: Underbody | H67: Sidepods | I67: Cooling | J67: Gearbox | K67: Brakes | L67: Suspension | M67: Electronics
B68: Level | C68: 3 | D68: 3 | E68: 2 | F68: 3 | G68: 2 | H68: 3 | I68: 3 | J68: 3 | K68: 2 | L68: 3 | M68: 3
B69: Wear | C69: 17 | D69: 33 | E69: 18 | F69: 20 | G69: 21 | H69: 12 | I69: 12 | J69: 26 | K69: 30 | L69: 31 | M69: 10
B70: Driver | C70: Conc | D70: Tal | E70: Exp | F70: CT
C71: 199 | D71: 65 | E71: 78 | F71: 0
B74: Base Values | C74: Chassis | D74: Engine | E74: Front wing | F74: Rear wing | G74: Underbody | H74: Sidepods | I74: Cooling | J74: Gearbox | K74: Brakes | L74: Suspension | M74: Electronics
B75: Race 1 | C75: 30.5794319 | D75: 60.92059986 | E75: 19.94310776 | F75: 14.62494569 | G75: 27.92035086 | H75: 23.93172931 | I75: 18.61356724 | J75: 45.20437758 | K75: 55.25356731 | L75: 30.5794319 | M75: 19.94310776
B76: Race 2 | C76: 29.00864949 | D76: 54.96375693 | E76: 29.00864949 | F76: 32.06219154 | G76: 30.53542051 | H76: 19.84802333 | I76: 16.79448128 | J76: 38.16927564 | K76: 45.80313077 | L76: 50.38344385 | M76: 13.74093923
B77: Race 3 | C77: 25.95510744 | D77: 50.38344385 | E77: 27.48187846 | F77: 30.53542051 | G77: 32.06219154 | H77: 18.32125231 | I77: 18.32125231 | J77: 39.69604667 | K77: 45.80313077 | L77: 47.3299018 | M77: 15.26771026
B78: Average | C78: =AVERAGE(C75:C77) -> 28.51439627 | D78: 55.42260021 | E78: 25.47787857 | F78: 25.74085258 | G78: 30.17265431 | H78: 20.70033498 | I78: 17.90976694 | J78: 41.0232333 | K78: 48.95327629 | L78: 42.76425918 | M78: 16.31725242
C79: 30.58 | D79: 60.92 | E79: 19.94 | F79: 14.62 | G79: 27.92 | H79: 23.93 | I79: 18.61 | J79: 45.2 | K79: 55.25 | L79: 30.58 | M79: 19.94

Sheet PMA (hidden)
O1: circuit | P1: Km/tour | Q1: Tours | R1: Distance | S1: P | T1: M | U1: A
E2: ='Setup&WS'!F18 -> Adelaide | O2: A1-Ring | P2: 4.325 | Q2: 71 | R2: =Q2*P2 -> 307.075 | S2: 13 | T2: 8 | U2: 9
O3: Adelaide | P3: 3.78 | Q3: 79 | R3: 298.62 | S3: 8 | T3: 9 | U3: 10 | V3: P | W3: H | X3: A
F4: P | G4: H | H4: A | O4: Ahvenisto | P4: 3.04 | Q4: 80 | R4: 243.2 | S4: 5 | T4: 10 | U4: 7 | V4: =F5/(F5+G5+H5) -> 0.2962962963 | W4: =G5/(F5+G5+H5) -> 0.3333333333 | X4: =H5/(F5+G5+H5) -> 0.3703703704
F5: =VLOOKUP(E2,O2:U61,5,0) -> 8 | G5: =VLOOKUP(E2,O2:U61,6,0) -> 9 | H5: =VLOOKUP(E2,O2:U61,7,0) -> 10 | O5: Anderstorp | P5: 4.026 | Q5: 70 | R5: 281.82 | S5: 9 | T5: 11 | U5: 9
O6: Austin | P6: 5.516 | Q6: 56 | R6: 308.896 | S6: 11 | T6: 18 | U6: 10
E7: km | F7: =VLOOKUP(E2,PMA!O2:P61,2,0) -> 3.78 | G7: P | H7: H | I7: A | O7: Avus | P7: 4.88 | Q7: 64 | R7: 312.32 | S7: 22 | T7: 3 | U7: 9 | V7: pma total | W7: =F15+F16+F17 -> 278.47858
G8: 1.316142857 | H8: 0.584952381 | I8: 1.169904762 | O8: Baku City | P8: 6.006 | Q8: 51 | R8: 306.306 | S8: 18 | T8: 8 | U8: 16
B9: Chassis | C9: Moteur | D9: Aileron Av | E9: Aileron Ar | F9: Fond Plat | G9: Pontons Lateraux | H9: Refroidissement | I9: Boite de Vitesse | J9: Freins | K9: Suspension | L9: Electronique | O9: Barcelona | P9: 4.728 | Q9: 65 | R9: 307.32 | S9: 11 | T9: 13 | U9: 8
A10: level | B10: ='Setup&WS'!B26 -> 7 | C10: =+'Setup&WS'!B27 -> 7 | D10: ='Setup&WS'!B28 -> 7 | E10: ='Setup&WS'!B29 -> 7 | F10: ='Setup&WS'!B30 -> 7 | G10: ='Setup&WS'!B31 -> 7 | H10: ='Setup&WS'!B32 -> 7 | I10: ='Setup&WS'!B33 -> 6 | J10: ='Setup&WS'!B34 -> 7 | K10: ='Setup&WS'!B35 -> 7 | L10: ='Setup&WS'!B36 -> 7 | O10: Brands Hatch | P10: 4.207 | Q10: 75 | R10: 315.525 | S10: 10 | T10: 12 | U10: 8
A11: usure | B11: ='Setup&WS'!C26 -> 71 | C11: ='Setup&WS'!C27 -> 0 | D11: ='Setup&WS'!C28 -> 31 | E11: ='Setup&WS'!C29 -> 34 | F11: ='Setup&WS'!C30 -> 0 | G11: ='Setup&WS'!C31 -> 28 | H11: ='Setup&WS'!C32 -> 20 | I11: ='Setup&WS'!C33 -> 33 | J11: ='Setup&WS'!C34 -> 0 | K11: ='Setup&WS'!C35 -> 40 | L11: ='Setup&WS'!C36 -> 0 | O11: Brasilia | P11: 5.475 | Q11: 55 | R11: 301.125 | S11: 16 | T11: 15 | U11: 7
A12: level réel | B12: =B10-B11/100 -> 6.29 | C12: =C10-C11/100 -> 7 | D12: =D10-D11/100 -> 6.69 | E12: 6.66 | F12: 7 | G12: 6.72 | H12: 6.8 | I12: 5.67 | J12: 7 | K12: 6.6 | L12: 7 | O12: Bremgarten | P12: 7.281 | Q12: 42 | R12: 305.802 | S12: 8 | T12: 26 | U12: 17
O13: Brno | P13: 5.404 | Q13: 57 | R13: 308.028 | S13: 12 | T13: 12 | U13: 14
B14: théorique avant testing | C14: réel avant testing | D14: Points testing | E14: PMA GPRO | F14: PMA réel | H14: PMA ideal | L14: DELTA TOTAL PMA | O14: Bucharest Ring | P14: 3.071 | Q14: 80 | R14: 245.68 | S14: 8 | T14: 6 | U14: 8
A15: PUISSANCE | B15: =SUMPRODUCT(PMA!P64:Z64,PMA!B10:L10) -> 90.686 | C15: =PMA!B12*PMA!P64+PMA!C12*PMA!Q64+PMA!D12*PMA!R64+PMA!E12*PMA!S64+PMA!F12*PMA!T64+PMA!G12*PMA!U64+PMA!H12*PMA!V64+PMA!I12*PMA!W64+PMA!J12*PMA!X64+PMA!K12*PMA!Y64+PMA!L12*PMA!Z64 -> 88.58545 | D15: 5 | E15: =B15+D15 -> 95.686 | F15: =C15+D15 -> 93.58545 | H15: P | I15: M | J15: A | L15: =H24+I24+J24 -> 24.55558963 | O15: Buenos Aires | P15: 4.258 | Q15: 72 | R15: 306.576 | S15: 12 | T15: 11 | U15: 9
A16: MANIABILITE | B16: =SUMPRODUCT(PMA!P65:Z65,PMA!B10:L10) -> 92.156 | C16: =PMA!B12*PMA!P65+PMA!C12*PMA!Q65+PMA!D12*PMA!R65+PMA!E12*PMA!S65+PMA!F12*PMA!T65+PMA!G12*PMA!U65+PMA!H12*PMA!V65+PMA!I12*PMA!W65+PMA!J12*PMA!X65+PMA!K12*PMA!Y65+PMA!L12*PMA!Z65 -> 88.03071 | D16: 6 | E16: =B16+D16 -> 98.156 | F16: =C16+D16 -> 94.03071 | H16: =W7*V4 -> 82.51217185 | I16: =W7*W4 -> 92.82619333 | J16: =W7*X4 -> 103.1402148 | O16: Estoril | P16: 4.36 | Q16: 70 | R16: 305.2 | S16: 11 | T16: 8 | U16: 14
A17: ACCELERATION | B17: =SUMPRODUCT(PMA!P66:Z66,PMA!B10:L10) -> 88.643 | C17: =PMA!B12*PMA!P66+PMA!C12*PMA!Q66+PMA!D12*PMA!R66+PMA!E12*PMA!S66+PMA!F12*PMA!T66+PMA!G12*PMA!U66+PMA!H12*PMA!V66+PMA!I12*PMA!W66+PMA!J12*PMA!X66+PMA!K12*PMA!Y66+PMA!L12*PMA!Z66 -> 84.86242 | D17: 6 | E17: =B17+D17 -> 94.643 | F17: =C17+D17 -> 90.86242 | O17: Fiorano | P17: 3.02 | Q17: 79 | R17: 238.58 | S17: 8 | T17: 6 | U17: 7
H18: Mon PMA | O18: Fuji | P18: 4.558 | Q18: 67 | R18: 305.386 | S18: 13 | T18: 11 | U18: 8
H19: P | I19: M | J19: A | O19: Grobnik | P19: 4.168 | Q19: 74 | R19: 308.432 | S19: 8 | T19: 15 | U19: 7
H20: =+F15 -> 93.58545 | I20: =+F16 -> 94.03071 | J20: =+F17 -> 90.86242 | O20: Hockenheim | P20: 4.573 | Q20: 67 | R20: 306.391 | S20: 12 | T20: 9 | U20: 11
O21: Hungaroring | P21: 3.968 | Q21: 77 | R21: 305.536 | S21: 7 | T21: 10 | U21: 13
H22: Delta PMA | O22: Imola | P22: 4.929 | Q22: 62 | R22: 305.598 | S22: 12 | T22: 13 | U22: 9
H23: P | I23: M | J23: A | O23: Indianapolis | P23: 4.2 | Q23: 73 | R23: 306.6 | S23: 10 | T23: 9 | U23: 11
H24: =ABS(H16-H20) -> 11.07327815 | I24: =ABS(I16-I20) -> 1.204516667 | J24: 12.27779481 | O24: Indianapolis Oval | P24: 4.022 | Q24: 200 | R24: 804.4 | S24: 17 | T24: 9 | U24: 2
O25: Interlagos | P25: 4.308 | Q25: 71 | R25: 305.868 | S25: 12 | T25: 9 | U25: 10
O26: Irungattukottai | P26: 3.716 | Q26: 79 | R26: 293.564 | S26: 8 | T26: 12 | U26: 7
O27: Istanbul | P27: 5.334 | Q27: 58 | R27: =Q27*P27 -> 309.372 | S27: 13 | T27: 10 | U27: 14
O28: Jerez | P28: 4.441 | Q28: 69 | R28: 306.429 | S28: 8 | T28: 16 | U28: 8
O29: Jyllands-Ringen | P29: 2.3 | Q29: 136 | R29: 312.8 | S29: 5 | T29: 9 | U29: 4
O30: Kaunas | P30: 3.301 | Q30: 80 | R30: 264.08 | S30: 9 | T30: 10 | U30: 5
O31: Kyalami | P31: 4.261 | Q31: 72 | R31: 306.792 | S31: 9 | T31: 12 | U31: 9
O32: Laguna Seca | P32: 3.601 | Q32: 79 | R32: 284.479 | S32: 11 | T32: 8 | U32: 7
O33: Magny Cours | P33: 4.247 | Q33: 72 | R33: 305.784 | S33: 12 | T33: 8 | U33: 11
O34: Melbourne | P34: 5.303 | Q34: 58 | R34: 307.574 | S34: 12 | T34: 15 | U34: 10
O35: Mexico City | P35: 4.42 | Q35: 69 | R35: 304.98 | S35: 13 | T35: 12 | U35: 7
O36: Monte Carlo | P36: 3.369 | Q36: 78 | R36: 262.782 | S36: 7 | T36: 7 | U36: 12
O37: Montreal | P37: 4.42 | Q37: 69 | R37: 304.98 | S37: 12 | T37: 7 | U37: 13
O38: Monza | P38: 5.787 | Q38: 53 | R38: 306.711 | S38: 17 | T38: 12 | U38: 9
O39: Mugello | P39: 5.247 | Q39: 58 | R39: 304.326 | S39: 11 | T39: 13 | U39: 12
O40: New Delhi | P40: 5.137 | Q40: 60 | R40: 308.22 | S40: 11 | T40: 15 | U40: 10
O41: Nurburgring | P41: 5.145 | Q41: 60 | R41: 308.7 | S41: 12 | T41: 12 | U41: 13
O42: Oesterreichring | P42: 5.94 | Q42: 52 | R42: 308.88 | S42: 19 | T42: 14 | U42: 9
O43: Paul Ricard | P43: 3.861 | Q43: 79 | R43: 305.019 | S43: 9 | T43: 11 | U43: 8
O44: Portimao | P44: 4.692 | Q44: 66 | R44: 309.672 | S44: 9 | T44: 14 | U44: 11
O45: Poznan | P45: 4.083 | Q45: 75 | R45: 306.225 | S45: 7 | T45: 14 | U45: 8
O46: Rafaela Oval | P46: 4.736 | Q46: 67 | R46: 317.312 | S46: 18 | T46: 10 | U46: 6
O47: Sakhir | P47: 5.412 | Q47: 57 | R47: 308.484 | S47: 16 | T47: 11 | U47: 9
O48: Sepang | P48: 5.644 | Q48: 55 | R48: 310.42 | S48: 14 | T48: 11 | U48: 14
O49: Serres | P49: 3.186 | Q49: 80 | R49: 254.88 | S49: 5 | T49: 10 | U49: 9
O50: Shanghai | P50: 5.45 | Q50: 56 | R50: 305.2 | S50: 9 | T50: 16 | U50: 15
O51: Silverstone | P51: 5.138 | Q51: 60 | R51: 308.28 | S51: 11 | T51: 11 | U51: 16
O52: Singapore | P52: 5.067 | Q52: 61 | R52: 309.087 | S52: 7 | T52: 11 | U52: 17
O53: Slovakiaring | P53: 5.923 | Q53: 53 | R53: 313.919 | S53: 17 | T53: 10 | U53: 15
O54: Sochi | P54: 5.851 | Q54: 53 | R54: 310.103 | S54: 8 | T54: 15 | U54: 18
O55: Spa | P55: 6.968 | Q55: 44 | R55: 306.592 | S55: 18 | T55: 16 | U55: 13
O56: Suzuka | P56: 5.86 | Q56: 53 | R56: 310.58 | S56: 11 | T56: 18 | U56: 13
O57: Valencia | P57: 5.44 | Q57: 57 | R57: 310.08 | S57: 11 | T57: 12 | U57: 16
O58: Yas Marina | P58: 5.555 | Q58: 55 | R58: 305.525 | S58: 12 | T58: 10 | U58: 17
O59: Yeongam | P59: 5.622 | Q59: 55 | R59: 309.21 | S59: 11 | T59: 15 | U59: 13
O60: Zandvoort | P60: 4.251 | Q60: 71 | R60: 301.821 | S60: 9 | T60: 13 | U60: 9
O61: Zolder | P61: 4.261 | Q61: 70 | R61: 298.27 | S61: 11 | T61: 9 | U61: 10
P63: chassis | Q63: engine | R63: frontWing | S63: rearWing | T63: underbody | U63: sidepods | V63: cooling | W63: gearbox | X63: brakes | Y63: suspension | Z63: electronics
O64: =SUM(P64:Z64) -> 13.392 | P64: 0.655 | Q64: 5.965 | R64: 0.656 | U64: 0.66 | V64: 1.191 | W64: 3.058 | Z64: 1.207
O65: =SUM(P65:Z65) -> 13.308 | P65: 1.502 | R65: 3.137 | S65: 2.168 | T65: 0.748 | U65: 0.766 | W65: 1 | X65: 1.975 | Y65: 2.012
O66: =SUM(P66:Z66) -> 13.277 | P66: 1.348 | Q66: 2.048 | S66: 2.523 | T66: 0.38 | W66: 4.296 | Y66: 1.37 | Z66: 1.312

Sheet Calc (hidden)
A1: x | B1: y | D1: t | E1: ÿ | F1: ÿ | G1: 500 | J1: ="ÿ = "&IF(a<>0,a&"x²"&IF(b<>0,IF(b<0,"","+")&b&"x",""),IF(b<>0,b&"x",""))&IF(g<>0,IF(g>0,"+","")&g,"") -> ÿ = -2.368475785867E-17x²-3.33333333395526E-05x+93.2015688937475
A2: ='Setup&WS'!A39 -> -132.9331876 | B2: ='Setup&WS'!B39:C39 -> 93.206 | D2: =MIN(x)-(MAX(x)-MIN(x)) -> -222.9331876 | E2: =IF(ISNA(D2),NA(),a*t^2+b*t+g) -> 93.209 | F2: =IF(ISNA(D2),NA(),u*(t-mx)^2+v*(t-mx)+w+my) -> 93.209 | G2: =IF(ISNA(D2),500,MIN(F1,G1)) -> 500 | H2: =IF(ISNA(D2),H1,IF(E2<G1,D2,H1)) -> -222.9331876 | J2: =AVERAGE(y) -> 93.206
A3: ='Setup&WS'!A40 -> -102.9331876 | B3: ='Setup&WS'!B40:C40 -> 93.205 | D3: =IF(D2<=MAX(x)+(MAX(x)-MIN(x))/50,D2+(MAX(x)-MIN(x))/100,NA()) -> -222.3331876 | E3: =IF(ISNA(D3),NA(),a*t^2+b*t+g) -> 93.20898 | F3: =IF(ISNA(D3),NA(),u*(t-mx)^2+v*(t-mx)+w+my) -> 93.20898 | G3: 93.209 | H3: -222.3331876 | J3: =AVERAGE(x) -> -132.9331876
A4: ='Setup&WS'!A41 -> -162.9331876 | B4: ='Setup&WS'!B41:C41 -> 93.207 | D4: =IF(D3<=MAX(x)+(MAX(x)-MIN(x))/50,D3+(MAX(x)-MIN(x))/100,NA()) -> -221.7331876 | E4: =IF(ISNA(D4),NA(),a*t^2+b*t+g) -> 93.20896 | F4: =IF(ISNA(D4),NA(),u*(t-mx)^2+v*(t-mx)+w+my) -> 93.20896 | G4: 93.20898 | H4: -221.7331876 | J4: =(AVERAGE((x-mx)^3)*AVERAGE((y-my)*(x-mx))-AVERAGE((x-mx)^2)*AVERAGE((y-my)*(x-mx)^2))/(AVERAGE((x-mx)^2)^3+AVERAGE((x-mx)^3)^2-AVERAGE((x-mx)^2)*AVERAGE((x-mx)^4)) -> -2.368475786e-17
D5: =IF(D4<=MAX(x)+(MAX(x)-MIN(x))/50,D4+(MAX(x)-MIN(x))/100,NA()) -> -221.1331876 | E5: =IF(ISNA(D5),NA(),a*t^2+b*t+g) -> 93.20894 | F5: =IF(ISNA(D5),NA(),u*(t-mx)^2+v*(t-mx)+w+my) -> 93.20894 | G5: 93.20896 | H5: -221.1331876 | J5: =((AVERAGE((x-mx)^2)^2-AVERAGE((x-mx)^4))*AVERAGE((y-my)*(x-mx))+AVERAGE((x-mx)^3)*AVERAGE((y-my)*(x-mx)^2))/(AVERAGE((x-mx)^2)^3+AVERAGE((x-mx)^3)^2-AVERAGE((x-mx)^2)*AVERAGE((x-mx)^4)) -> -3.333333333e-05
D6: =IF(D5<=MAX(x)+(MAX(x)-MIN(x))/50,D5+(MAX(x)-MIN(x))/100,NA()) -> -220.5331876 | E6: =IF(ISNA(D6),NA(),a*t^2+b*t+g) -> 93.20892 | F6: =IF(ISNA(D6),NA(),u*(t-mx)^2+v*(t-mx)+w+my) -> 93.20892 | G6: 93.20894 | H6: -220.5331876 | J6: =(-AVERAGE((x-mx)^2)*AVERAGE((x-mx)^3)*AVERAGE((y-my)*(x-mx))+AVERAGE((x-mx)^2)^2*AVERAGE((y-my)*(x-mx)^2))/(AVERAGE((x-mx)^2)^3+AVERAGE((x-mx)^3)^2-AVERAGE((x-mx)^2)*AVERAGE((x-mx)^4)) -> 1.421085472e-14
D7: =IF(D6<=MAX(x)+(MAX(x)-MIN(x))/50,D6+(MAX(x)-MIN(x))/100,NA()) -> -219.9331876 | E7: =IF(ISNA(D7),NA(),a*t^2+b*t+g) -> 93.2089 | F7: =IF(ISNA(D7),NA(),u*(t-mx)^2+v*(t-mx)+w+my) -> 93.2089 | G7: 93.20892 | H7: -219.9331876 | J7: =u -> -2.368475786e-17
D8: -219.3331876 | E8: 93.20888 | F8: 93.20888 | G8: 93.2089 | H8: -219.3331876 | J8: =v-2*u*mx -> -3.333333334e-05
D9: -218.7331876 | E9: 93.20886 | F9: 93.20886 | G9: 93.20888 | H9: -218.7331876 | J9: =w-v*mx+u*mx^2+my -> 93.20156889
D10: -218.1331876 | E10: 93.20884 | F10: 93.20884 | G10: 93.20886 | H10: -218.1331876
D11: -217.5331876 | E11: 93.20882 | F11: 93.20882 | G11: 93.20884 | H11: -217.5331876 | J11: =MIN(G1:G400) -> 93.203
D12: -216.9331876 | E12: 93.2088 | F12: 93.2088 | G12: 93.20882 | H12: -216.9331876
D13: -216.3331876 | E13: 93.20878 | F13: 93.20878 | G13: 93.2088 | H13: -216.3331876
D14: -215.7331876 | E14: 93.20876 | F14: 93.20876 | G14: 93.20878 | H14: -215.7331876 | J14: NE PAS TOUCHER CET ONGLET, MERCI ;-)
D15: -215.1331876 | E15: 93.20874 | F15: 93.20874 | G15: 93.20876 | H15: -215.1331876
D16: -214.5331876 | E16: 93.20872 | F16: 93.20872 | G16: 93.20874 | H16: -214.5331876
D17: -213.9331876 | E17: 93.2087 | F17: 93.2087 | G17: 93.20872 | H17: -213.9331876
D18: -213.3331876 | E18: 93.20868 | F18: 93.20868 | G18: 93.2087 | H18: -213.3331876
D19: -212.7331876 | E19: 93.20866 | F19: 93.20866 | G19: 93.20868 | H19: -212.7331876
D20: -212.1331876 | E20: 93.20864 | F20: 93.20864 | G20: 93.20866 | H20: -212.1331876
D21: -211.5331876 | E21: 93.20862 | F21: 93.20862 | G21: 93.20864 | H21: -211.5331876
D22: -210.9331876 | E22: 93.2086 | F22: 93.2086 | G22: 93.20862 | H22: -210.9331876
D23: -210.3331876 | E23: 93.20858 | F23: 93.20858 | G23: 93.2086 | H23: -210.3331876
D24: -209.7331876 | E24: 93.20856 | F24: 93.20856 | G24: 93.20858 | H24: -209.7331876
D25: -209.1331876 | E25: 93.20854 | F25: 93.20854 | G25: 93.20856 | H25: -209.1331876
D26: -208.5331876 | E26: 93.20852 | F26: 93.20852 | G26: 93.20854 | H26: -208.5331876
D27: -207.9331876 | E27: 93.2085 | F27: 93.2085 | G27: 93.20852 | H27: -207.9331876
D28: -207.3331876 | E28: 93.20848 | F28: 93.20848 | G28: 93.2085 | H28: -207.3331876
D29: -206.7331876 | E29: 93.20846 | F29: 93.20846 | G29: 93.20848 | H29: -206.7331876
D30: -206.1331876 | E30: 93.20844 | F30: 93.20844 | G30: 93.20846 | H30: -206.1331876
D31: -205.5331876 | E31: 93.20842 | F31: =IF(ISNA(D31),NA(),u*(t-mx)^2+v*(t-mx)+w+my) -> 93.20842 | G31: 93.20844 | H31: -205.5331876
D32: -204.9331876 | E32: 93.2084 | F32: 93.2084 | G32: 93.20842 | H32: -204.9331876
D33: -204.3331876 | E33: 93.20838 | F33: 93.20838 | G33: 93.2084 | H33: -204.3331876
D34: -203.7331876 | E34: 93.20836 | F34: 93.20836 | G34: 93.20838 | H34: -203.7331876
D35: =IF(D34<=MAX(x)+(MAX(x)-MIN(x))/50,D34+(MAX(x)-MIN(x))/100,NA()) -> -203.1331876 | E35: 93.20834 | F35: 93.20834 | G35: 93.20836 | H35: -203.1331876
D36: -202.5331876 | E36: 93.20832 | F36: 93.20832 | G36: 93.20834 | H36: -202.5331876
D37: -201.9331876 | E37: 93.2083 | F37: 93.2083 | G37: 93.20832 | H37: -201.9331876
D38: -201.3331876 | E38: 93.20828 | F38: 93.20828 | G38: 93.2083 | H38: -201.3331876
D39: -200.7331876 | E39: 93.20826 | F39: 93.20826 | G39: 93.20828 | H39: -200.7331876
D40: -200.1331876 | E40: 93.20824 | F40: 93.20824 | G40: 93.20826 | H40: -200.1331876
D41: -199.5331876 | E41: 93.20822 | F41: 93.20822 | G41: 93.20824 | H41: -199.5331876
D42: -198.9331876 | E42: 93.2082 | F42: 93.2082 | G42: 93.20822 | H42: -198.9331876
D43: -198.3331876 | E43: 93.20818 | F43: 93.20818 | G43: 93.2082 | H43: -198.3331876
D44: -197.7331876 | E44: 93.20816 | F44: 93.20816 | G44: 93.20818 | H44: -197.7331876
D45: -197.1331876 | E45: 93.20814 | F45: 93.20814 | G45: 93.20816 | H45: -197.1331876
D46: -196.5331876 | E46: 93.20812 | F46: 93.20812 | G46: 93.20814 | H46: -196.5331876
D47: -195.9331876 | E47: 93.2081 | F47: 93.2081 | G47: 93.20812 | H47: -195.9331876
D48: -195.3331876 | E48: 93.20808 | F48: 93.20808 | G48: 93.2081 | H48: -195.3331876
D49: -194.7331876 | E49: 93.20806 | F49: 93.20806 | G49: 93.20808 | H49: -194.7331876
D50: -194.1331876 | E50: 93.20804 | F50: 93.20804 | G50: 93.20806 | H50: -194.1331876
D51: -193.5331876 | E51: 93.20802 | F51: 93.20802 | G51: 93.20804 | H51: -193.5331876
D52: -192.9331876 | E52: 93.208 | F52: 93.208 | G52: 93.20802 | H52: -192.9331876
D53: -192.3331876 | E53: 93.20798 | F53: 93.20798 | G53: 93.208 | H53: -192.3331876
D54: -191.7331876 | E54: 93.20796 | F54: 93.20796 | G54: 93.20798 | H54: -191.7331876
D55: -191.1331876 | E55: 93.20794 | F55: 93.20794 | G55: 93.20796 | H55: -191.1331876
D56: -190.5331876 | E56: 93.20792 | F56: 93.20792 | G56: 93.20794 | H56: -190.5331876
D57: -189.9331876 | E57: 93.2079 | F57: 93.2079 | G57: 93.20792 | H57: -189.9331876
D58: -189.3331876 | E58: 93.20788 | F58: 93.20788 | G58: 93.2079 | H58: -189.3331876
D59: -188.7331876 | E59: 93.20786 | F59: 93.20786 | G59: 93.20788 | H59: -188.7331876
D60: -188.1331876 | E60: 93.20784 | F60: 93.20784 | G60: 93.20786 | H60: -188.1331876
D61: -187.5331876 | E61: 93.20782 | F61: 93.20782 | G61: 93.20784 | H61: -187.5331876
D62: -186.9331876 | E62: 93.2078 | F62: 93.2078 | G62: 93.20782 | H62: -186.9331876
D63: -186.3331876 | E63: 93.20778 | F63: 93.20778 | G63: 93.2078 | H63: -186.3331876
D64: -185.7331876 | E64: 93.20776 | F64: 93.20776 | G64: 93.20778 | H64: -185.7331876
D65: -185.1331876 | E65: 93.20774 | F65: 93.20774 | G65: 93.20776 | H65: -185.1331876
D66: -184.5331876 | E66: 93.20772 | F66: 93.20772 | G66: =IF(ISNA(D66),500,MIN(F65,G65)) -> 93.20774 | H66: =IF(ISNA(D66),H65,IF(E66<G65,D66,H65)) -> -184.5331876
D67: =IF(D66<=MAX(x)+(MAX(x)-MIN(x))/50,D66+(MAX(x)-MIN(x))/100,NA()) -> -183.9331876 | E67: =IF(ISNA(D67),NA(),a*t^2+b*t+g) -> 93.2077 | F67: 93.2077 | G67: 93.20772 | H67: -183.9331876
D68: -183.3331876 | E68: 93.20768 | F68: 93.20768 | G68: 93.2077 | H68: -183.3331876
D69: -182.7331876 | E69: 93.20766 | F69: 93.20766 | G69: 93.20768 | H69: -182.7331876
D70: -182.1331876 | E70: 93.20764 | F70: 93.20764 | G70: 93.20766 | H70: -182.1331876
D71: -181.5331876 | E71: 93.20762 | F71: 93.20762 | G71: 93.20764 | H71: -181.5331876
D72: -180.9331876 | E72: 93.2076 | F72: 93.2076 | G72: 93.20762 | H72: -180.9331876
D73: -180.3331876 | E73: 93.20758 | F73: 93.20758 | G73: 93.2076 | H73: -180.3331876
D74: -179.7331876 | E74: 93.20756 | F74: 93.20756 | G74: 93.20758 | H74: -179.7331876
D75: -179.1331876 | E75: 93.20754 | F75: 93.20754 | G75: 93.20756 | H75: -179.1331876
D76: -178.5331876 | E76: 93.20752 | F76: 93.20752 | G76: 93.20754 | H76: -178.5331876
D77: -177.9331876 | E77: 93.2075 | F77: 93.2075 | G77: 93.20752 | H77: -177.9331876
D78: -177.3331876 | E78: 93.20748 | F78: 93.20748 | G78: 93.2075 | H78: -177.3331876
D79: -176.7331876 | E79: 93.20746 | F79: 93.20746 | G79: 93.20748 | H79: -176.7331876
D80: -176.1331876 | E80: 93.20744 | F80: 93.20744 | G80: 93.20746 | H80: -176.1331876
D81: -175.5331876 | E81: 93.20742 | F81: 93.20742 | G81: 93.20744 | H81: -175.5331876
D82: -174.9331876 | E82: 93.2074 | F82: 93.2074 | G82: 93.20742 | H82: -174.9331876
D83: -174.3331876 | E83: 93.20738 | F83: 93.20738 | G83: 93.2074 | H83: -174.3331876
D84: -173.7331876 | E84: 93.20736 | F84: 93.20736 | G84: 93.20738 | H84: -173.7331876
D85: -173.1331876 | E85: 93.20734 | F85: 93.20734 | G85: 93.20736 | H85: -173.1331876
D86: -172.5331876 | E86: 93.20732 | F86: 93.20732 | G86: 93.20734 | H86: -172.5331876
D87: -171.9331876 | E87: 93.2073 | F87: 93.2073 | G87: 93.20732 | H87: -171.9331876
D88: -171.3331876 | E88: 93.20728 | F88: 93.20728 | G88: 93.2073 | H88: -171.3331876
D89: -170.7331876 | E89: 93.20726 | F89: 93.20726 | G89: 93.20728 | H89: -170.7331876
D90: -170.1331876 | E90: 93.20724 | F90: 93.20724 | G90: 93.20726 | H90: -170.1331876
D91: -169.5331876 | E91: 93.20722 | F91: 93.20722 | G91: 93.20724 | H91: -169.5331876
D92: -168.9331876 | E92: 93.2072 | F92: 93.2072 | G92: 93.20722 | H92: -168.9331876
D93: -168.3331876 | E93: 93.20718 | F93: 93.20718 | G93: 93.2072 | H93: -168.3331876
D94: -167.7331876 | E94: 93.20716 | F94: 93.20716 | G94: 93.20718 | H94: -167.7331876
D95: -167.1331876 | E95: 93.20714 | F95: =IF(ISNA(D95),NA(),u*(t-mx)^2+v*(t-mx)+w+my) -> 93.20714 | G95: 93.20716 | H95: -167.1331876
D96: -166.5331876 | E96: 93.20712 | F96: 93.20712 | G96: 93.20714 | H96: -166.5331876
D97: -165.9331876 | E97: 93.2071 | F97: 93.2071 | G97: 93.20712 | H97: -165.9331876
D98: -165.3331876 | E98: 93.20708 | F98: 93.20708 | G98: 93.2071 | H98: -165.3331876
D99: =IF(D98<=MAX(x)+(MAX(x)-MIN(x))/50,D98+(MAX(x)-MIN(x))/100,NA()) -> -164.7331876 | E99: 93.20706 | F99: 93.20706 | G99: 93.20708 | H99: -164.7331876
D100: -164.1331876 | E100: 93.20704 | F100: 93.20704 | G100: 93.20706 | H100: -164.1331876
D101: -163.5331876 | E101: 93.20702 | F101: 93.20702 | G101: 93.20704 | H101: -163.5331876
D102: -162.9331876 | E102: 93.207 | F102: 93.207 | G102: 93.20702 | H102: -162.9331876
D103: -162.3331876 | E103: 93.20698 | F103: 93.20698 | G103: 93.207 | H103: -162.3331876
D104: -161.7331876 | E104: 93.20696 | F104: 93.20696 | G104: 93.20698 | H104: -161.7331876
D105: -161.1331876 | E105: 93.20694 | F105: 93.20694 | G105: 93.20696 | H105: -161.1331876
D106: -160.5331876 | E106: 93.20692 | F106: 93.20692 | G106: 93.20694 | H106: -160.5331876
D107: -159.9331876 | E107: 93.2069 | F107: 93.2069 | G107: 93.20692 | H107: -159.9331876
D108: =IF(D107<=MAX(x)+(MAX(x)-MIN(x))/50,D107+(MAX(x)-MIN(x))/100,NA()) -> -159.3331876 | E108: =IF(ISNA(D108),NA(),a*t^2+b*t+g) -> 93.20688 | F108: =IF(ISNA(D108),NA(),u*(t-mx)^2+v*(t-mx)+w+my) -> 93.20688 | G108: 93.2069 | H108: -159.3331876
D109: -158.7331876 | E109: 93.20686 | F109: 93.20686 | G109: 93.20688 | H109: -158.7331876
D110: -158.1331876 | E110: 93.20684 | F110: 93.20684 | G110: 93.20686 | H110: -158.1331876
D111: -157.5331876 | E111: 93.20682 | F111: 93.20682 | G111: 93.20684 | H111: -157.5331876
D112: -156.9331876 | E112: 93.2068 | F112: 93.2068 | G112: 93.20682 | H112: -156.9331876
D113: -156.3331876 | E113: 93.20678 | F113: 93.20678 | G113: 93.2068 | H113: -156.3331876
D114: -155.7331876 | E114: 93.20676 | F114: 93.20676 | G114: 93.20678 | H114: -155.7331876
D115: -155.1331876 | E115: 93.20674 | F115: 93.20674 | G115: 93.20676 | H115: -155.1331876
D116: -154.5331876 | E116: 93.20672 | F116: 93.20672 | G116: 93.20674 | H116: -154.5331876
D117: -153.9331876 | E117: 93.2067 | F117: 93.2067 | G117: 93.20672 | H117: -153.9331876
D118: -153.3331876 | E118: 93.20668 | F118: 93.20668 | G118: 93.2067 | H118: -153.3331876
D119: -152.7331876 | E119: 93.20666 | F119: 93.20666 | G119: 93.20668 | H119: -152.7331876
D120: -152.1331876 | E120: 93.20664 | F120: 93.20664 | G120: =IF(ISNA(D120),500,MIN(F119,G119)) -> 93.20666 | H120: -152.1331876
D121: -151.5331876 | E121: 93.20662 | F121: 93.20662 | G121: =IF(ISNA(D121),500,MIN(F120,G120)) -> 93.20664 | H121: -151.5331876
D122: -150.9331876 | E122: 93.2066 | F122: 93.2066 | G122: 93.20662 | H122: -150.9331876
D123: -150.3331876 | E123: 93.20658 | F123: 93.20658 | G123: 93.2066 | H123: -150.3331876
D124: -149.7331876 | E124: 93.20656 | F124: 93.20656 | G124: 93.20658 | H124: -149.7331876
D125: -149.1331876 | E125: 93.20654 | F125: 93.20654 | G125: 93.20656 | H125: -149.1331876
D126: -148.5331876 | E126: 93.20652 | F126: 93.20652 | G126: 93.20654 | H126: -148.5331876
D127: -147.9331876 | E127: 93.2065 | F127: 93.2065 | G127: 93.20652 | H127: -147.9331876
D128: -147.3331876 | E128: 93.20648 | F128: 93.20648 | G128: 93.2065 | H128: -147.3331876
D129: -146.7331876 | E129: 93.20646 | F129: 93.20646 | G129: 93.20648 | H129: -146.7331876
D130: -146.1331876 | E130: 93.20644 | F130: 93.20644 | G130: 93.20646 | H130: =IF(ISNA(D130),H129,IF(E130<G129,D130,H129)) -> -146.1331876
D131: -145.5331876 | E131: =IF(ISNA(D131),NA(),a*t^2+b*t+g) -> 93.20642 | F131: 93.20642 | G131: 93.20644 | H131: -145.5331876
D132: -144.9331876 | E132: 93.2064 | F132: 93.2064 | G132: 93.20642 | H132: -144.9331876
D133: -144.3331876 | E133: 93.20638 | F133: 93.20638 | G133: 93.2064 | H133: -144.3331876
D134: -143.7331876 | E134: 93.20636 | F134: 93.20636 | G134: 93.20638 | H134: -143.7331876
D135: -143.1331876 | E135: 93.20634 | F135: 93.20634 | G135: 93.20636 | H135: -143.1331876
D136: -142.5331876 | E136: 93.20632 | F136: 93.20632 | G136: 93.20634 | H136: -142.5331876
D137: -141.9331876 | E137: 93.2063 | F137: 93.2063 | G137: 93.20632 | H137: -141.9331876
D138: -141.3331876 | E138: 93.20628 | F138: 93.20628 | G138: 93.2063 | H138: -141.3331876
D139: -140.7331876 | E139: 93.20626 | F139: 93.20626 | G139: 93.20628 | H139: -140.7331876
D140: =IF(D139<=MAX(x)+(MAX(x)-MIN(x))/50,D139+(MAX(x)-MIN(x))/100,NA()) -> -140.1331876 | E140: 93.20624 | F140: 93.20624 | G140: 93.20626 | H140: -140.1331876
D141: -139.5331876 | E141: 93.20622 | F141: 93.20622 | G141: 93.20624 | H141: -139.5331876
D142: -138.9331876 | E142: 93.2062 | F142: 93.2062 | G142: 93.20622 | H142: -138.9331876
D143: -138.3331876 | E143: 93.20618 | F143: 93.20618 | G143: 93.2062 | H143: -138.3331876
D144: -137.7331876 | E144: 93.20616 | F144: 93.20616 | G144: 93.20618 | H144: -137.7331876
D145: -137.1331876 | E145: 93.20614 | F145: 93.20614 | G145: 93.20616 | H145: -137.1331876
D146: -136.5331876 | E146: 93.20612 | F146: 93.20612 | G146: 93.20614 | H146: -136.5331876
D147: -135.9331876 | E147: 93.2061 | F147: 93.2061 | G147: 93.20612 | H147: -135.9331876
D148: -135.3331876 | E148: 93.20608 | F148: 93.20608 | G148: 93.2061 | H148: -135.3331876
D149: -134.7331876 | E149: 93.20606 | F149: 93.20606 | G149: 93.20608 | H149: -134.7331876
D150: -134.1331876 | E150: 93.20604 | F150: 93.20604 | G150: 93.20606 | H150: -134.1331876
D151: -133.5331876 | E151: 93.20602 | F151: 93.20602 | G151: 93.20604 | H151: -133.5331876
D152: -132.9331876 | E152: 93.206 | F152: 93.206 | G152: 93.20602 | H152: -132.9331876
D153: -132.3331876 | E153: 93.20598 | F153: 93.20598 | G153: 93.206 | H153: -132.3331876
D154: -131.7331876 | E154: 93.20596 | F154: 93.20596 | G154: 93.20598 | H154: -131.7331876
D155: -131.1331876 | E155: 93.20594 | F155: 93.20594 | G155: 93.20596 | H155: -131.1331876
D156: -130.5331876 | E156: 93.20592 | F156: 93.20592 | G156: 93.20594 | H156: -130.5331876
D157: -129.9331876 | E157: 93.2059 | F157: 93.2059 | G157: 93.20592 | H157: -129.9331876
D158: -129.3331876 | E158: 93.20588 | F158: 93.20588 | G158: 93.2059 | H158: -129.3331876
D159: -128.7331876 | E159: 93.20586 | F159: 93.20586 | G159: 93.20588 | H159: -128.7331876
D160: -128.1331876 | E160: 93.20584 | F160: 93.20584 | G160: 93.20586 | H160: -128.1331876
D161: -127.5331876 | E161: 93.20582 | F161: 93.20582 | G161: 93.20584 | H161: -127.5331876
D162: -126.9331876 | E162: 93.2058 | F162: 93.2058 | G162: 93.20582 | H162: -126.9331876
D163: -126.3331876 | E163: 93.20578 | F163: 93.20578 | G163: 93.2058 | H163: -126.3331876
D164: -125.7331876 | E164: 93.20576 | F164: 93.20576 | G164: 93.20578 | H164: -125.7331876
D165: -125.1331876 | E165: 93.20574 | F165: 93.20574 | G165: 93.20576 | H165: -125.1331876
D166: -124.5331876 | E166: 93.20572 | F166: 93.20572 | G166: 93.20574 | H166: -124.5331876
D167: -123.9331876 | E167: 93.2057 | F167: 93.2057 | G167: 93.20572 | H167: -123.9331876
D168: -123.3331876 | E168: 93.20568 | F168: 93.20568 | G168: 93.2057 | H168: -123.3331876
D169: -122.7331876 | E169: 93.20566 | F169: 93.20566 | G169: 93.20568 | H169: -122.7331876
D170: -122.1331876 | E170: 93.20564 | F170: 93.20564 | G170: 93.20566 | H170: -122.1331876
D171: -121.5331876 | E171: 93.20562 | F171: 93.20562 | G171: 93.20564 | H171: -121.5331876
D172: =IF(D171<=MAX(x)+(MAX(x)-MIN(x))/50,D171+(MAX(x)-MIN(x))/100,NA()) -> -120.9331876 | E172: 93.2056 | F172: =IF(ISNA(D172),NA(),u*(t-mx)^2+v*(t-mx)+w+my) -> 93.2056 | G172: 93.20562 | H172: -120.9331876
D173: -120.3331876 | E173: 93.20558 | F173: 93.20558 | G173: 93.2056 | H173: -120.3331876
D174: -119.7331876 | E174: 93.20556 | F174: 93.20556 | G174: 93.20558 | H174: -119.7331876
D175: -119.1331876 | E175: 93.20554 | F175: 93.20554 | G175: 93.20556 | H175: -119.1331876
D176: -118.5331876 | E176: 93.20552 | F176: 93.20552 | G176: 93.20554 | H176: -118.5331876
D177: -117.9331876 | E177: 93.2055 | F177: 93.2055 | G177: 93.20552 | H177: -117.9331876
D178: -117.3331876 | E178: 93.20548 | F178: 93.20548 | G178: 93.2055 | H178: -117.3331876
D179: -116.7331876 | E179: 93.20546 | F179: 93.20546 | G179: 93.20548 | H179: -116.7331876
D180: -116.1331876 | E180: 93.20544 | F180: 93.20544 | G180: 93.20546 | H180: -116.1331876
D181: -115.5331876 | E181: 93.20542 | F181: 93.20542 | G181: 93.20544 | H181: -115.5331876
D182: -114.9331876 | E182: 93.2054 | F182: 93.2054 | G182: 93.20542 | H182: -114.9331876
D183: -114.3331876 | E183: 93.20538 | F183: 93.20538 | G183: 93.2054 | H183: -114.3331876
D184: -113.7331876 | E184: 93.20536 | F184: 93.20536 | G184: 93.20538 | H184: -113.7331876
D185: -113.1331876 | E185: 93.20534 | F185: 93.20534 | G185: =IF(ISNA(D185),500,MIN(F184,G184)) -> 93.20536 | H185: -113.1331876
D186: -112.5331876 | E186: 93.20532 | F186: 93.20532 | G186: 93.20534 | H186: -112.5331876
D187: -111.9331876 | E187: 93.2053 | F187: 93.2053 | G187: 93.20532 | H187: -111.9331876
D188: -111.3331876 | E188: 93.20528 | F188: 93.20528 | G188: 93.2053 | H188: -111.3331876
D189: =IF(D188<=MAX(x)+(MAX(x)-MIN(x))/50,D188+(MAX(x)-MIN(x))/100,NA()) -> -110.7331876 | E189: 93.20526 | F189: =IF(ISNA(D189),NA(),u*(t-mx)^2+v*(t-mx)+w+my) -> 93.20526 | G189: 93.20528 | H189: -110.7331876
D190: -110.1331876 | E190: 93.20524 | F190: 93.20524 | G190: 93.20526 | H190: -110.1331876
D191: -109.5331876 | E191: 93.20522 | F191: 93.20522 | G191: 93.20524 | H191: -109.5331876
D192: -108.9331876 | E192: 93.2052 | F192: 93.2052 | G192: 93.20522 | H192: -108.9331876
D193: -108.3331876 | E193: 93.20518 | F193: 93.20518 | G193: 93.2052 | H193: -108.3331876
D194: -107.7331876 | E194: 93.20516 | F194: 93.20516 | G194: 93.20518 | H194: =IF(ISNA(D194),H193,IF(E194<G193,D194,H193)) -> -107.7331876
D195: -107.1331876 | E195: =IF(ISNA(D195),NA(),a*t^2+b*t+g) -> 93.20514 | F195: 93.20514 | G195: 93.20516 | H195: -107.1331876
D196: -106.5331876 | E196: 93.20512 | F196: 93.20512 | G196: 93.20514 | H196: -106.5331876
D197: -105.9331876 | E197: 93.2051 | F197: 93.2051 | G197: 93.20512 | H197: -105.9331876
D198: -105.3331876 | E198: 93.20508 | F198: 93.20508 | G198: 93.2051 | H198: -105.3331876
D199: -104.7331876 | E199: 93.20506 | F199: 93.20506 | G199: 93.20508 | H199: -104.7331876
D200: -104.1331876 | E200: 93.20504 | F200: 93.20504 | G200: 93.20506 | H200: -104.1331876
... 200 more rows
